Workbook

Sheet Macro Notice
A1: Click Anywhere | B1: If Macros are Running  Click Anywhere
B2: The Risk Assessment Spreadsheet relies heavily on Macros and VBA coding. In order to proceed further you are required to enable Macros. Please exit Excel and Enable Macros when you reopen. | L2: Click Anywhere
B8: Initial Options to Permit Macros | G8: When opening the Dashboard
G16: Editing Template
G17: Programmatic access to Visual Basic Project is not trusted
A34: If Macros are Running  Click Anywhere

Sheet Tables (hidden)
C1: Personnel | D1: Vessel | E1: Milestone | F1: Schedule | G1: Cost | H1: Operability | I1: Occurrence | O1: Administrator (USERNAME) | Q1: Failure
A2: 1 | B2: Personnel | C2: SOLAS | D2: Mission Degrade | E2: Significant Impact | F2: Significant Impact | G2: Significant Impact | H2: Significant Impact | I2: Unlikely to occur [1.0] | J2: 1 | O2: Kevin.Kilborn.CTR | Q2: Unlikely to occur [1.0]
A3: 2 | B3: Vessel | C3: Mission Degrade | D3: Significant Impact | E3: Moderate Impact | F3: Moderate Impact | G3: Moderate Impact | H3: Moderate Impact | I3: May occur in time [1.4] | J3: 1.4 | O3: Lukasz.Tabor | Q3: May occur in time [1.7]
A4: 3 | B4: Milestone | C4: Significant Impact | D4: Moderate Impact | E4: Little Impact | F4: Little Impact | G4: Little Impact | H4: Little Impact | I4: Probably will occur in time [1.8] | J4: 1.8 | L4: Operability | M4: =IF($L4="Death",5,IF($L4="Injury",4.8,IF($L4="SOLAS",4.8,IF($L4="Mission Degrade",4.8,IF($L4="Significant Impact",3.5,IF($L4="Moderate Impact",2.5,IF(L4="Operability",3,IF($L4="Little Impact",1)))))))) -> 3 | Q4: Probably will occur in time [2.4]
A5: 4 | B5: Schedule | C5: Moderate Impact | D5: Little Impact | I5: Likely to occur within a short period of time [2.2] | J5: 2.2 | Q5: Likely to occur within a short period of time [3.1]
A6: 5 | B6: Cost | C6: Little Impact | I6: Likely to occur immediately [2.6] | J6: 2.6 | Q6: Likely to occur immediately [3.8]
I7: Inevitable [3.0] | J7: 3
B10: OBSWeight | E10: Attribute Lookup (Used in Probability of Quality Failure Formula) Return value is set (Up To) the Percent (Ctrl-Alt-F9) Forces calculations
B11: 0 | C11: 2
B12: 10 | C12: 1.9 | F12: CheckList | G12: Percent | H12: Vlookup | I12: Return
B13: 30 | C13: 1.8 | F13: 005 | G13: 0 | H13: =F13 & TEXT(G13,"0.000") -> 0050.000 | I13: 1
B14: 50 | C14: 1.7 | F14: 005 | G14: 0.0175 | H14: 0050.018 | I14: 2
B15: 100 | C15: 1.6 | F15: 005 | G15: 0.03 | H15: 0050.030 | I15: 3.5
B16: 150 | C16: 1.5 | F16: 005 | G16: 1 | H16: 0051.000 | I16: 5 | J16: Prefix | K16: Other
B17: 200 | C17: 1.4 | F17: 006A | G17: 0 | H17: 006A0.000 | I17: 1 | J17: Percent | K17: 0.32
B18: 350 | C18: 1.3 | F18: 006A | G18: 0.0175 | H18: 006A0.018 | I18: 2 | J18: Combined | K18: =K16&TEXT(K17,"0.000") -> Other0.320
B19: 500 | C19: 1.2 | F19: 006A | G19: 0.025 | H19: 006A0.025 | I19: 3.5 | J19: Result | K19: =VLOOKUP(K18,Exceptions,2,TRUE) -> 1
B20: 1000 | C20: 1.1 | F20: 006A | G20: 1 | H20: 006A1.000 | I20: 5
B21: 10000 | C21: 1 | F21: 016 | G21: 0 | H21: 0160.000 | I21: 1
F22: 016 | G22: 0.0175 | H22: 0160.018 | I22: 2
F23: 016 | G23: 0.025 | H23: 0160.025 | I23: 3.5
F24: 016 | G24: 1 | H24: 0161.000 | I24: 5
F25: 018 | G25: 0 | H25: 0180.000 | I25: 1
B26: OBSCheckListWeight | F26: 018 | G26: 0.015 | H26: 0180.015 | I26: 2 | J26: *
B27: 0 | C27: 2 | F27: 018 | G27: 0.02 | H27: 0180.020 | I27: 3.5 | J27: *
B28: 10 | C28: 1.9 | F28: 018 | G28: 1 | H28: 0181.000 | I28: 5 | J28: *
B29: 30 | C29: 1.8 | F29: 018A | G29: 0 | H29: 018A0.000 | I29: 1 | J29: *
B30: 50 | C30: 1.7 | F30: 018A | G30: 0.015 | H30: 018A0.015 | I30: 2
B31: 100 | C31: 1.6 | F31: 018A | G31: 0.02 | H31: 018A0.020 | I31: 3.5
B32: 150 | C32: 1.5 | F32: 018A | G32: 1 | H32: 018A1.000 | I32: 5
B33: 200 | C33: 1.4 | F33: 018B | G33: 0 | H33: 018B0.000 | I33: 1
B34: 350 | C34: 1.3 | F34: 018B | G34: 0.015 | H34: 018B0.015 | I34: 2
B35: 500 | C35: 1.2 | F35: 018B | G35: 0.02 | H35: 018B0.020 | I35: 3.5
B36: 1000 | C36: 1.1 | F36: 018B | G36: 1 | H36: 018B1.000 | I36: 5
B37: 10000 | C37: 1 | F37: 018C | G37: 0 | H37: 018C0.000 | I37: 1
F38: 018C | G38: 0.015 | H38: 018C0.015 | I38: 2
F39: 018C | G39: 0.02 | H39: 018C0.020 | I39: 3.5
F40: 018C | G40: 1 | H40: 018C1.000 | I40: 5
F41: 018D | G41: 0 | H41: 018D0.000 | I41: 1
F42: 018D | G42: 0.015 | H42: 018D0.015 | I42: 2
F43: 018D | G43: 0.02 | H43: 018D0.020 | I43: 3.5
F44: 018D | G44: 1 | H44: 018D1.000 | I44: 5
F45: 018E | G45: 0 | H45: 018E0.000 | I45: 1
F46: 018E | G46: 0.015 | H46: 018E0.015 | I46: 2
F47: 018E | G47: 0.02 | H47: 018E0.020 | I47: 3.5
F48: 018E | G48: 1 | H48: 018E1.000 | I48: 5
F49: 019B | G49: 0 | H49: 019B0.000 | I49: 1
F50: 019B | G50: 0.0175 | H50: 019B0.018 | I50: 2
F51: 019B | G51: 0.025 | H51: 019B0.025 | I51: 3.5
F52: 019B | G52: 1 | H52: 019B1.000 | I52: 5
F53: Other | G53: 0 | H53: Other0.000 | I53: 1
F54: Other | G54: 0.021 | H54: Other0.021 | I54: 2
F55: Other | G55: 0.05 | H55: Other0.050 | I55: 3.5 | K55: =TEXT(G55,"0.0000") -> 0.0500
F56: Other | G56: 1 | H56: Other1.000 | I56: 5

Sheet VersionChanges (hidden)
A1: Current Version | B1: 2.01.25 | C1: =LEN(B1) -> 7
A2: Version | B2: Description Keep < 255 characters (Can't use the VBA Copy (Synchronize) Mechanism without causing 'Unable to Record' downstream problems | C2: 136
A3: 1.00.00 | B3: Beta release, including macro notice. | C3: 37
A4: 1.00.10 | B4: Rounding checklists so that they'll appear in the same object. | C4: 63
A5: 1.00.20 | B5: 1. Configurable X & Y coordinate change values that affect the grouping of checklists into the same shape. 2. Revised scatter so that if rounding the riskdata remains the same and the shapes are shifted. | C5: 206
A6: 1.00.20 | B6: 3. Added Debug property that permits changing X & Y coordinates during Matrix creation. 4. Added matrix legend. | C6: 111
A7: 1.00.25 | B7: 1. Provide drill-down into Attributes for the Shape selected. 2. Added Tile button as an additional way to 'scatter' shapes. 3. Scatter and Tile may be used in conjunction with each other. | C7: 188
A8: 1.00.50 | B8: 1. Provide colors corresponding to the Risk Matrix Legend 2. Average X & Y coordinates between the DOI & the Checklist 3. Was I & N now it's G & L 4. Y < year * 1; > = 12 < 18 then *1.5; >= 18 months * 2 | C8: 204
A9: 1.00.50 | B9: 5. Add a date reviewed to each checklist which should influence both the X & Y 6. Change the X & Y coordinates to Y - 20 & X - 7.5 7. Drop column F 'Process Review and G 'Process Quality Modifier | C9: 196
A10: 1.00.50 | B10: 8. Deletion of columns misaligned data. Needed to provide a merge function. 9. Mitigation comments were missing 10.Average row needed to be incorporated in Populate Formula 11. Total Row needed to be incorporated in Populate Formula | C10: 234
A11: 1.00.50 | B11: 12. Changed X & Y Axis and along with functions that determine position of objects including placement, scatter, color and tile. 13. Set Print Area to include the Average Line used in calculations | C11: 197
A12: 1.01.1 | B12: 1. Mechanism that propagates code changes to all files beginning with SSBA tool *.xls in the current or subfolders. This will keep all ship programs sychnronized. | C12: 162
A13: 1.20.0 | B13: 1. Function that determines the Probability of Failure. 2. Automatically put function where it belongs with dynamic parameters. 3. Factors need to use Exception list on the Settings Page 4. Not on list use the default 5. Produce Checklist Color | C13: 244
A14: 1.20.03 | B14: 1. Sort worksheets after VBA Code | C14: 34
A15: 1.21.00 | B15: 1. Didn't count Import file if no Accepts but it would have Rejects 2. Allow comma delimited Checklist and Attributes in columns AA & AB | C15: 136
A16: 1.21.10 | B16: 1. Introduce Phase of Construction and Phase Factor 2. ShipPhase worksheet and the automatic inclusion of new checklist 3. Message validating checklist Phase Factor 4. Minimum and Maximum RiskData values that keep the checklist on the matrix 5. Revised formulas to account for additional 5 risk columns | C16: 302 | D16: 2013-04-12
A17: 2.01.10 | B17: 1. Additional Columns 2. Changed Format 3. Changed Import | C17: 57
A18: 2.01.15 | B18: Process DOI worksheet | C18: 21
A19: 2.01.20 | B19: Deprecate columns AA,AZ which contain a redundant checklist and attribute list. New rule requires that only the Attribute exists in Column A while the checklist is inferred by the prefix of the worksheet. | C19: 205
A20: 2.01.21 | B20: Add Total to the DOIList | C20: 24
A21: 2.01.25 | B21: History List, Highlight DOI Months if > 18 | C21: 42
C22: 0
C23: 0
C24: 0
C25: 0
C26: 0
C27: 0
C28: 0
C29: 0
C30: 0
C31: 0
C32: 0
C33: 0
C34: 0
C35: 0
C36: 0
C37: 0
C38: 0
C39: 0
C40: 0

Sheet Settings (hidden)
A1: Configuration Settings | C1: Options | H1: Import Instructions & Features | R1: Configuration Settings
A3: Checklist Prefix | H3: • Checklists for each ship program use a prefix designation for the ship class. Please enter that prefix exactly as it is found in the TSM export file (example: DDG1000). | R3: Level Green (Up To) | T3: 190
A4: Data File Directory: | B4: \Exported Data | H4: • Point to the default export directory. You may use an absolute path by using a drive letter followed by a colon (:), or you may use a relative path beginning with just a backslash (\). • Alternatively run the TSM export (See Import File Process). | R4: Yellow Level (Up To) | T4: 900
A5: File to Process: | B5: F:\Projects\Code 300\Risk Assessmentx\Exported Data\20151214_Risk_Assess_data_wit.xlsx | H5: • Type the name of the file or press Select File. | R5: Red Level (Starting At) | T5: 800.1
A6: Import: | H6: • Imports the data in the File to Process into the worksheets | R6: UI Version | T6: 1.10.13; 02/10/2016; Corrected Combined and Phase Selection
A7: Add Rejects/Total Obs comments: | B7: TRUE | H7: • Adds Rejects/Total Observatios and (checklist/attribute) information to comment blocks. | R7: Ship Class | T7: DDG1000
A8: Displays the Comment Block: | B8: No | H8: • Shows the comment block. If false comments are available by hovering over the cell. | R8: Hull No | T8: 1000
A9: Set Print Areas: | B9: FALSE | H9: • Sets print area and headings for reports. | R9: Checklist Total Row | T9: -1
A10: View Mode: | B10: Normal | H10: • Sets the view mode to Print Preview or Normal
A11: Hide: | B11: FALSE | H11: • Hides columns Q - AB (Columns AA & AB contain the Checklist and Attribute respectively.
A12: Window Freeze: | B12: TRUE | H12: • Freezes all worksheets on C3
A13: Available Files (Used for History Import): | H13: • Indicates the files (monYY) files in the data directory. Populate this cell by selecting the History radio button. Remove the files from the list will prevent those files from processing.
A14: Protect: | B14: FALSE | H14: • All worksheets are protected after Import.
A15: Zoom: | B15: 60 | H15: • Sets the Zoom property on all worksheets.
A16: Landscape: | B16: TRUE | H16: • Sets to landscape mode.
A17: Load Matrix: | B17: FALSE | H17: • Re-loads the RA Matrix. Automatically set to True after Import, false after re-load.
A18: Matrix shows only checklists with Rejects for this period: | B18: FALSE | H18: • Removes clutter from Risk Assessment Matrix by skipping check lists without rejects for this time period. False shows all checklists.
A19: Matrix Rounds X & Y Coordinates: | B19: FALSE | H19: • Variations is checklists are often quite small and can't be plotted. Rounds checklist coordinants and displays rounded results in the same shape up to 255 characters per shape.
A20: X-Variance | B20: 0.5 | H20: • If the difference between past and current checklist's X value is >= this value then a new shape is created.
A21: Y-Variance | B21: 0.8 | H21: • If the difference between past and current checklist's Y value is >= this value then a new shape is created.
A22: Attribute DrillDown: | B22: TRUE | H22: • On RiskMatrix, clicking on checklist prompts for Attribute drilldown.
A23: Debug: | B23: FALSE | H23: • True will stop the creation of Matrix shapes and permit changing X & Y cooridinates for testing purposes. | X23: V3*W1
A24: Risk Matrix Title: | B24: Risk Matrix [FileName]
A25: Version: | B25: =Version -> 2.01.25 | H25: • Version of this spreadsheet. Click either cell to see the latest features and fixes.
A26: Ship Phase | B26: After Launch/Water | H26: The # of the current Ship Phase. Changing the phase requires that the Formulas be repopulated. To set the Phase Factor use the Ship Phase worksheet.
A27: Total Phases | B27: 6 | H27: Total Number of Ship Phases. Is used to prepopulate the ShipPhase worksheet.
A28: DOI DB Path | B28: F:\Projects\Code 300\Schedule\BE\Scheduling-IIData.accdb | H28: Path to the database containing the Procedure List
H29: Apply Formats and Formulas
A30: Place Formulas and Formats in all the Checklist Worksheets: | B30: FALSE | H30: The title block, along with all its text and formatting is copied to each worksheets. Aside from column 1 (A), all the columns widths are set here.
H31: The formula row represents each row of data in the DOI and Checklist Sections. Control the cell attributes of each cell including the locked state, colors and fonts. Change the modifier formulas or insert static text by entering the pseudo formulas into
H34: Aggregate Functions are applied immediately below the heading for DOI & Checklist. Use (Average)…Other functions require programming support.
A35: Update Underlying VBA Code | H35: To create a new ship program copy this workbook as the template for the next program. Enter the DOI's, Checklists, Governed By, Oversight columns along with Checklist and Attributes in Columns (AA, AB). Then select Clear Contents checkbox. Finally, pres
A36: Merge Data After Removing or Adding a Column: | H36: Copies all VBA & Macro code to any similarly named spreadsheets in the current folder. The workbooks changed will begin with "ssba tool" (not case sensitive).
H37: When columns are added or removed the data in each worksheet may fall under the wrong column. Merging prompts for another workbook where the data and columns are aligned. Merging gathers the data from the original file and maps it back to the correct co
A38: Checklist Formulas | C38: M - Mandatory / Statutory S - Specification driven P - Builder Process C - Crew/Customer request | M38: Reviewed: | N38: 2009-08-01 | O38: =IF(NOW()-N38< 365,1,IF(NOW()-N38>545,2,1.5)) -> 2 | V38: Phase Factor | W38: =VLOOKUP(ShipPhase,ShipPhase!A2:B1000,2,FALSE)
B39: Process Details | C39: Governed by | D39: Oversight Requirements | E39: Necessity Modifier | F39: Total OBS | G39: OBS Weight | H39: Procedure Evaluation Reject Rate | I39: Reject Probability | J39: Method A Count | K39: Method A Weight | L39: Method B Count | M39: Method B Weight | N39: N/A | O39: CAR Average | P39: Probability of Quality Failure | Q39: Failure Affects | V39: Impact Modifier | W39: Severity of Failure | AB39: Severity Modifier | AC39: Severity Factor | AD39: Max Risk | AE39: Date | AR39: CheckList | AS39: Percent
E40: MAX | P40: MAX | Q40: Personnel | R40: Vessel | S40: Milestone | T40: Schedule | U40: Cost | V40: MAX | W40: SOLAS | X40: Mission Degrade | Y40: Significant Impact | Z40: Moderate Impact | AA40: Little Impact | AB40: MAX | AC40: =V3*AB3*$W$1 | AD40: MAX | AH40: `
E41: =IF($D[row]="M",2,IF($D[row]="C",1,IF($D[row]="P",1.25,IF($D[row]="S",1.5)))) | G41: =VLOOKUP($F[row],OBSWeight,2,True) | I41: =GetRejectProbability("[Prefix]", H[row]) | J41: =GetCARCountAttr("A","[worksheet]", A[row],I[row]) | K41: =GetCARWeight("A",J[row]) | L41: =GetCARCountAttr("B","[worksheet]",A[row],K[row]) | M41: =GetCARWeight("B",L[row]) | O41: =(K[row]+M[row])/2 | P41: =(E[row]*G[row]*I[row])*O[row] | V41: =MAX($Q[row],$R[row],$S[row],$T[row],$U[row]) | AB41: =MAX($W[row],$X[row],$Y[row],$Z[row],$AA[row]) | AC41: =$V[row]*$AB[row]*$W$1 | AD41: =P[row]*AC[row]
P43: Prob of Quality Failure | Q43: Unlikely to occur [1.0] | R43: Unlikely to occur [1.0] | S43: Unlikely to occur [1.0] | T43: Unlikely to occur [1.0] | U43: Unlikely to occur [1.0] | W43: Unlikely to occur [1.0] | X43: Unlikely to occur [1.0] | Y43: Unlikely to occur [1.0] | Z43: Unlikely to occur [1.0] | AA43: Unlikely to occur [1.0]
J46: =(IF($F[row]>5%,5,(IF($F[row]>3.5%,3,(IF($F[row]>2%,2,1))))))*E[row]
A51: Total | B51: 003-TESTING | C51: 0 | D51: =GetOversight("[worksheet]",[maxrow]) | E51: =IF($D[row]="M",2,IF($D[row]="C",1,IF($D[row]="P",1.25,IF($D[row]="S",1.5)))) | F51: 109 | G51: =VLOOKUP($F[row],OBSCheckListWeight,2,True) | H51: 0 | I51: =GetRejectProbability("[Prefix]", H[row]) | J51: =GetCARCountCL("A","[worksheet]",I[row]) | K51: =GetCARWeight("A",J[row]) | L51: =GetCARCountCL("B","[worksheet]",K[row]) | M51: =GetCARWeight("B",L[row]) | O51: =(K[row]+M[row])/2 | P51: =(E[row]*G[row]*I[row])*O[row] | Q51: =MAX([col]4:[col][maxrow]) | R51: =MAX([col]4:[col][maxrow]) | S51: =MAX([col]4:[col][maxrow]) | T51: =MAX([col]4:[col][maxrow]) | U51: =MAX([col]4:[col][maxrow]) | V51: =MAX($Q[row],$R[row],$S[row],$T[row],$U[row]) | W51: =MAX([col]4:[col][maxrow]) | X51: =MAX([col]4:[col][maxrow]) | Y51: =MAX([col]4:[col][maxrow]) | Z51: =MAX([col]4:[col][maxrow]) | AA51: =MAX([col]4:[col][maxrow]) | AB51: =MAX($W[row],$X[row],$Y[row],$Z[row],$AA[row]) | AC51: =$V[row]*$AB[row]*$W$1 | AD51: =P[row]*AC[row]
A60: Import File Process
A61: The Risk Assessment data uses the same data that supplies the QDE with one notable exception. It also requires the Document/Alias column.
A62: We can change the QDE to accept this column too, but it does require a bit of work to maintain compatibility with previous export files not containing that field.
A63: • Select the shared TSM query: Monthly Data for Process Charts/Drill Downs and add Document/Alias to it's columns.
A64: • Select the appropriate Document Date range.
A65: • Export the file Saving it to the location specified in the QDE Data Files (monYY.xls) cell. It must conform to the monYY.xls naming convention.
AG69: =Tables!K16 -> Other
A92: Sample Export File
A111: Settings
A113: 003-Testing
A114: Settings

Sheet ShapeEnumeration (hidden)
A1: Description
A2: msoShape10pointStar | B2: 149
A3: msoShape12pointStar | B3: 150
A4: msoShape16pointStar | B4: 94
A5: msoShape24pointStar | B5: 95
A6: msoShape32pointStar | B6: 96
A7: msoShape4pointStar | B7: 91
A8: msoShape5pointStar | B8: 92
A9: msoShape6pointStar | B9: 147
A10: msoShape7pointStar | B10: 148
A11: msoShape8pointStar | B11: 93
A12: msoShapeActionButtonBackorPrevious | B12: 129
A13: msoShapeActionButtonBeginning | B13: 131
A14: msoShapeActionButtonCustom | B14: 125
A15: msoShapeActionButtonDocument | B15: 134
A16: msoShapeActionButtonEnd | B16: 132
A17: msoShapeActionButtonForwardorNext | B17: 130
A18: msoShapeActionButtonHelp | B18: 127
A19: msoShapeActionButtonHome | B19: 126
A20: msoShapeActionButtonInformation | B20: 128
A21: msoShapeActionButtonMovie | B21: 136
A22: msoShapeActionButtonReturn | B22: 133
A23: msoShapeActionButtonSound | B23: 135
A24: msoShapeArc | B24: 25
A25: msoShapeBalloon | B25: 137
A26: msoShapeBentArrow | B26: 41
A27: msoShapeBentUpArrow | B27: 44
A28: msoShapeBevel | B28: 15
A29: msoShapeBlockArc | B29: 20
A30: msoShapeCan | B30: 13
A31: msoShapeChartPlus | B31: 182
A32: msoShapeChartStar | B32: 181
A33: msoShapeChartX | B33: 180
A34: msoShapeChevron | B34: 52
A35: msoShapeChord | B35: 161
A36: msoShapeCircularArrow | B36: 60
A37: msoShapeCloud | B37: 179
A38: msoShapeCloudCallout | B38: 108
A39: msoShapeCorner | B39: 162
A40: msoShapeCornerTabs | B40: 169
A41: msoShapeCross | B41: 11
A42: msoShapeCube | B42: 14
A43: msoShapeCurvedDownArrow | B43: 48
A44: msoShapeCurvedDownRibbon | B44: 100
A45: msoShapeCurvedLeftArrow | B45: 46
A46: msoShapeCurvedRightArrow | B46: 45
A47: msoShapeCurvedUpArrow | B47: 47
A48: msoShapeCurvedUpRibbon | B48: 99
A49: msoShapeDecagon | B49: 144
A50: msoShapeDiagonalStripe | B50: 141
A51: msoShapeDiamond | B51: 4
A52: msoShapeDodecagon | B52: 146
A53: msoShapeDonut | B53: 18
A54: msoShapeDoubleBrace | B54: 27
A55: msoShapeDoubleBracket | B55: 26
A56: msoShapeDoubleWave | B56: 104
A57: msoShapeDownArrow | B57: 36
A58: msoShapeDownArrowCallout | B58: 56
A59: msoShapeDownRibbon | B59: 98
A60: msoShapeExplosion1 | B60: 89
A61: msoShapeExplosion2 | B61: 90
A62: msoShapeFlowchartAlternateProcess | B62: 62
A63: msoShapeFlowchartCard | B63: 75
A64: msoShapeFlowchartCollate | B64: 79
A65: msoShapeFlowchartConnector | B65: 73
A66: msoShapeFlowchartData | B66: 64
A67: msoShapeFlowchartDecision | B67: 63
A68: msoShapeFlowchartDelay | B68: 84
A69: msoShapeFlowchartDirectAccessStorage | B69: 87
A70: msoShapeFlowchartDisplay | B70: 88
A71: msoShapeFlowchartDocument | B71: 67
A72: msoShapeFlowchartExtract | B72: 81
A73: msoShapeFlowchartInternalStorage | B73: 66
A74: msoShapeFlowchartMagneticDisk | B74: 86
A75: msoShapeFlowchartManualInput | B75: 71
A76: msoShapeFlowchartManualOperation | B76: 72
A77: msoShapeFlowchartMerge | B77: 82
A78: msoShapeFlowchartMultidocument | B78: 68
A79: msoShapeFlowchartOfflineStorage | B79: 139
A80: msoShapeFlowchartOffpageConnector | B80: 74
A81: msoShapeFlowchartOr | B81: 78
A82: msoShapeFlowchartPredefinedProcess | B82: 65
A83: msoShapeFlowchartPreparation | B83: 70
A84: msoShapeFlowchartProcess | B84: 61
A85: msoShapeFlowchartPunchedTape | B85: 76
A86: msoShapeFlowchartSequentialAccessStorage | B86: 85
A87: msoShapeFlowchartSort | B87: 80
A88: msoShapeFlowchartStoredData | B88: 83
A89: msoShapeFlowchartSummingJunction | B89: 77
A90: msoShapeFlowchartTerminator | B90: 69
A91: msoShapeFoldedCorner | B91: 16
A92: msoShapeFrame | B92: 158
A93: msoShapeFunnel | B93: 174
A94: msoShapeGear6 | B94: 172
A95: msoShapeGear9 | B95: 173
A96: msoShapeHalfFrame | B96: 159
A97: msoShapeHeart | B97: 21
A98: msoShapeHeptagon | B98: 145
A99: msoShapeHexagon | B99: 10
A100: msoShapeHorizontalScroll | B100: 102
A101: msoShapeIsoscelesTriangle | B101: 7
A102: msoShapeLeftArrow | B102: 34
A103: msoShapeLeftArrowCallout | B103: 54
A104: msoShapeLeftBrace | B104: 31
A105: msoShapeLeftBracket | B105: 29
A106: msoShapeLeftCircularArrow | B106: 176
A107: msoShapeLeftRightArrow | B107: 37
A108: msoShapeLeftRightArrowCallout | B108: 57
A109: msoShapeLeftRightCircularArrow | B109: 177
A110: msoShapeLeftRightRibbon | B110: 140
A111: msoShapeLeftRightUpArrow | B111: 40
A112: msoShapeLeftUpArrow | B112: 43
A113: msoShapeLightningBolt | B113: 22
A114: msoShapeLineCallout1 | B114: 103
A115: msoShapeLineCallout1AccentBar | B115: 113
A116: msoShapeLineCallout1BorderandAccentBar | B116: 121
A117: msoShapeLineCallout1NoBorder | B117: 117
A118: msoShapeLineCallout2 | B118: 110
A119: msoShapeLineCallout2AccentBar | B119: 114
A120: msoShapeLineCallout2BorderandAccentBar | B120: 122
A121: msoShapeLineCallout2NoBorder | B121: 118
A122: msoShapeLineCallout3 | B122: 111
A123: msoShapeLineCallout3AccentBar | B123: 115
A124: msoShapeLineCallout3BorderandAccentBar | B124: 123
A125: msoShapeLineCallout3NoBorder | B125: 119
A126: msoShapeLineCallout4 | B126: 112
A127: msoShapeLineCallout4AccentBar | B127: 116
A128: msoShapeLineCallout4BorderandAccentBar | B128: 124
A129: msoShapeLineCallout4NoBorder | B129: 120
A130: msoShapeLineInverse | B130: 183
A131: msoShapeMathDivide | B131: 166
A132: msoShapeMathEqual | B132: 167
A133: msoShapeMathMinus | B133: 164
A134: msoShapeMathMultiply | B134: 165
A135: msoShapeMathNotEqual | B135: 168
A136: msoShapeMathPlus | B136: 163
A137: msoShapeMixed | B137: -2
A138: msoShapeMoon | B138: 24
A139: msoShapeNonIsoscelesTrapezoid | B139: 143
A140: msoShapeNoSymbol | B140: 19
A141: msoShapeNotchedRightArrow | B141: 50
A142: msoShapeNotPrimitive | B142: 138
A143: msoShapeOctagon | B143: 6
A144: msoShapeOval | B144: 9
A145: msoShapeOvalCallout | B145: 107
A146: msoShapeParallelogram | B146: 2
A147: msoShapePentagon | B147: 51
A148: msoShapePie | B148: 142
A149: msoShapePieWedge | B149: 175
A150: msoShapePlaque | B150: 28
A151: msoShapePlaqueTabs | B151: 171
A152: msoShapeQuadArrow | B152: 39
A153: msoShapeQuadArrowCallout | B153: 59
A154: msoShapeRectangle | B154: 1
A155: msoShapeRectangularCallout | B155: 105
A156: msoShapeRegularPentagon | B156: 12
A157: msoShapeRightArrow | B157: 33
A158: msoShapeRightArrowCallout | B158: 53
A159: msoShapeRightBrace | B159: 32
A160: msoShapeRightBracket | B160: 30
A161: msoShapeRightTriangle | B161: 8
A162: msoShapeRound1Rectangle | B162: 151
A163: msoShapeRound2DiagRectangle | B163: 153
A164: msoShapeRound2SameRectangle | B164: 152
A165: msoShapeRoundedRectangle | B165: 5
A166: msoShapeRoundedRectangularCallout | B166: 106
A167: msoShapeSmileyFace | B167: 17
A168: msoShapeSnip1Rectangle | B168: 155
A169: msoShapeSnip2DiagRectangle | B169: 157
A170: msoShapeSnip2SameRectangle | B170: 156
A171: msoShapeSnipRoundRectangle | B171: 154
A172: msoShapeSquareTabs | B172: 170
A173: msoShapeStripedRightArrow | B173: 49
A174: msoShapeSun | B174: 23
A175: msoShapeSwooshArrow | B175: 178
A176: msoShapeTear | B176: 160
A177: msoShapeTrapezoid | B177: 3
A178: msoShapeUpArrow | B178: 35
A179: msoShapeUpArrowCallout | B179: 55
A180: msoShapeUpDownArrow | B180: 38
A181: msoShapeUpDownArrowCallout | B181: 58
A182: msoShapeUpRibbon | B182: 97
A183: msoShapeUTurnArrow | B183: 42
A184: msoShapeVerticalScroll | B184: 101
A185: msoShapeWave | B185: 103

Sheet ShipPhase (hidden)
A1: Ship Phase (Derived Settings) | B1: Factor
A2: Planning/Procurement | B2: 1.5
A3: Fabrication | B3: 2
A4: Assembly/Erection | B4: 3
A5: Outfit | B5: 4
A6: Landlevel/Ways | B6: 5
A7: After Launch/Water | B7: 5.5

Sheet CheckList Color (hidden)
A1: CheckList | B1: Color

Sheet RiskData (hidden)
A1: CheckList | B1: X-Axis Phase Factor | C1: Y-Axis Prop of Qual Failure | D1: Value
A2: 001 | B2: 5.5 | C2: 3 | D2: 16.5
A3: 003 | B3: 36.3 | C3: 5.45 | D3: 197.65
A4: 004 | B4: 49.5 | C4: 9 | D4: 445.5

Sheet RiskMatrix (hidden)
E6: Risk Matrix — 1000
D9: 0 | E9: 0.5 | F9: 1 | G9: 1.5 | H9: 2 | I9: 2.5 | J9: 3 | K9: 3.5 | L9: 4 | M9: 4.5 | N9: 5 | O9: 5.5 | P9: 6 | Q9: 6.5 | R9: 7 | S9: 7.5 | T9: 8 | U9: 8.5 | V9: 9 | W9: 9.5 | X9: 10 | Y9: 10.5 | Z9: 11 | AA9: 11.5 | AB9: 12 | AC9: 12.5 | AD9: 13 | AE9: 13.5 | AF9: 14 | AG9: 14.5 | AH9: 15 | AI9: 15.5 | AJ9: 16 | AK9: 16.5 | AL9: 17 | AM9: 17.5 | AN9: 18 | AO9: 18.5 | AP9: 19 | AQ9: 19.5 | AR9: 20 | AS9: 20.5 | AT9: 21 | AU9: 21.5 | AV9: 22 | AW9: 22.5 | AX9: 23 | AY9: 23.5 | AZ9: 24 | BA9: 24.5 | BB9: 25 | BC9: 25.5 | BD9: 26 | BE9: 26.5 | BF9: 27 | BG9: 27.5 | BH9: 28 | BI9: 28.5 | BJ9: 29 | BK9: 29.5 | BL9: 30 | BM9: 30.5 | BN9: 31 | BO9: 31.5 | BP9: 32 | BQ9: 32.5 | BR9: 33 | BS9: 33.5 | BT9: 34 | BU9: 34.5 | BV9: 35 | BW9: 35.5 | BX9: 36 | BY9: 36.5 | BZ9: 37 | CA9: 37.5 | CB9: 38 | CC9: 38.5 | CD9: 39 | CE9: 39.5 | CF9: 40 | CG9: 40.5 | CH9: 41 | CI9: 41.5 | CJ9: 42 | CK9: 42.5 | CL9: 43 | CM9: 43.5 | CN9: 44 | CO9: 44.5 | CP9: 45 | CQ9: 45.5 | CR9: 46 | CS9: 46.5 | CT9: 47 | CU9: 47.5 | CV9: 48 | CW9: 48.5 | CX9: 49 | CY9: 49.5 | CZ9: 50
B10: Probability | D10: 50
D11: 49.5
D12: 49
D13: 48.5
D14: 48
D15: 47.5
D16: 47
D17: 46.5
D18: 46
D19: 45.5
D20: 45
D21: 44.5
D22: 44
D23: 43.5
C24: Probable | D24: 43
D25: 42.5
D26: 42
D27: 41.5
D28: 41
D29: 40.5
D30: 40
D31: 39.5
D32: 39
D33: 38.5
D34: 38
D35: 37.5
C36: Likely | D36: 37
D37: 36.5
D38: 36
D39: 35.5
D40: 35
D41: 34.5
D42: 34
D43: 33.5
D44: 33
D45: 32.5
D46: 32
D47: 31.5
D48: 31
D49: 30.5
D50: 30
D51: 29.5
D52: 29
D53: 28.5
D54: 28
D55: 27.5
D56: 27
D57: 26.5
C58: Occasional | D58: 26
D59: 25.5
D60: 25
D61: 24.5
D62: 24
D63: 23.5
D64: 23
D65: 22.5
D66: 22
D67: 21.5
D68: 21
D69: 20.5
D70: 20
D71: 19.5
D72: 19
D73: 18.5
D74: 18
D75: 17.5
D76: 17
C77: Seldom | D77: 16.5
D78: 16
D79: 15.5
D80: 15
D81: 14.5
D82: 14
D83: 13.5
D84: 13
D85: 12.5
D86: 12
D87: 11.5
D88: 11
D89: 10.5
D90: 10
D91: 9.5
D92: 9
D93: 8.5
D94: 8
D95: 7.5
D96: 7
D97: 6.5
D98: 6
D99: 5.5
D100: 5
D101: 4.5
C102: Unlikely | D102: 4
D103: 3.5
D104: 3
D105: 2.5
D106: 2
D107: 1.5
D108: 1
H110: Insignificant | O110: Marginal | V110: Moderate | AC110: Critical | AJ110: Catastrophic
E112: Severity/Impact
E114: Vulnerabilities
BQ119: Change the template to change the Resulting Text displayed.
L120: RISK RATING | P120: ESCALATION
L121: HIGH RISK ( >= 800.1 ) | P121: - Immediate escalation of Risk to senior Management (QAO and QM) for prioritized Risk and treatment plan response - Weekly reviews of progress by senior management (QAO and QM) to be undertaken
L124: MODERATE Risk ( >= 190 < 900) | P124: - Escalation of Risk to line Management (QAO and QM) for discussion on appropriate treatment plan response - Monthly monitoring of Risk and progress of Risk response or treatment plans to be undertaken as part of existing local program meetings
L127: LOW RISK ( 0 < 190 ) | P127: - Bi-monthly monitoring of risk and progress of risk response or treatment plans to be undertaken as part of existing local program meetings - No immediate need to develop future treatment plans or response strategies
BQ128: msoShapeRoundedRectangle
B136: Drilldown
B137: Navigate
B138: Select Shape to Move

Sheet AttrData (hidden)
A1: Attribute | B1: X-Axis | C1: Y-Axis | D1: Value
A2: SIGN OFF - COMPARTMENT VERIFIED COMPLETE | B2: 3.61 | C2: 2.85 | D2: 10.2885
A3: CANCELLATION < AFTER 0700 | B3: 3.61 | C3: 14.25 | D3: 51.4425
A4: CANCELLATION > BEFORE 0700 | B4: 3.61 | C4: 14.25 | D4: 51.4425

Sheet Sorter (hidden)
A1: oval-3 | B1: 1610.250122 | C1: 1169.25 | D1: 33 | E1: 1232.25
A2: oval-2 | B2: 1625.250122 | C2: 1184.25 | D2: 33 | E2: 1316.25
A3: oval-1 | B3: 1640.250122 | C3: 1199.25 | D3: 33 | E3: 1320

Sheet DOIList (hidden)
A1: DOI Formulas | C1: M - Mandatory / Statutory S - Specification driven P - Builder Process C - Crew/Customer request | M1: Reviewed: | N1: 2009-08-01 | O1: =IF(NOW()-N1< 365,1,IF(NOW()-N1>545,2,1.5)) -> 2 | V1: Phase Factor | W1: =VLOOKUP(ShipPhase,ShipPhase!A2:B1000,2,FALSE) -> 5.5
A2: DOI | B2: Process Details | C2: Click 'Gorverned by' to reset | D2: Oversight Requirements | E2: Necessity Modifier | F2: Total OBS | G2: OBS Weight | H2: Procedure Evaluation Reject Rate | I2: Reject Probability | J2: Method A Count | K2: Method A Weight | L2: Method B Count | M2: Method B Weight | N2: N/A | O2: CAR Average | P2: Probability of Quality Failure | Q2: Failure Affects | V2: Impact Modifier | W2: Severity of Failure | AB2: Severity Modifier | AC2: Severity Factor | AD2: Max Risk | AE2: PE Date | AF2: Elapsed Months
E3: =MAX(E4:E30) -> 1.25 | P3: =MAX(P4:P30) -> 2.5 | Q3: Personnel | R3: Vessel | S3: Milestone | T3: Schedule | U3: Cost | V3: =MAX(V4:V30) -> 1 | W3: SOLAS | X3: Mission Degrade | Y3: Significant Impact | Z3: Moderate Impact | AA3: Little Impact | AB3: =MAX(AB4:AB30) -> 1 | AC3: =V3*AB3*$W$1 -> 5.5 | AD3: =MAX(AD4:AD30) -> 13.75 | AF3: =IF(AE4>36500,(YEAR(TODAY())-YEAR(AE4))*12+(MONTH(TODAY())-MONTH(AE4)),"") -> 79
A4: BIW-NDT-WP | B4: BIW-NDT-WRITTEN PRACTICE | C4: Proc | D4: P | E4: =IF($D4="M",2,IF($D4="C",1,IF($D4="P",1.25,IF($D4="S",1.5)))) -> 1.25 | F4: 0 | G4: =VLOOKUP($F4,OBSWeight,2,TRUE) -> 2 | H4: 0 | I4: =GetRejectProbability("001-Document", H4) -> 1 | J4: =GetCARCountAttr("A","001-Document Review ", A4,I4) -> 0 | K4: =GetCARWeight("A",J4) -> 1 | L4: =GetCARCountAttr("B","001-Document Review ",A4,K4) -> 0 | M4: =GetCARWeight("B",L4) -> 1 | O4: =(K4+M4)/2 -> 1 | P4: =(E4*G4*I4)*O4 -> 2.5 | Q4: 1 | R4: 1 | S4: 1 | T4: 1 | U4: 1 | V4: =MAX($Q4,$R4,$S4,$T4,$U4) -> 1 | W4: 1 | X4: 1 | Y4: 1 | Z4: 1 | AA4: 1 | AB4: =MAX($W4,$X4,$Y4,$Z4,$AA4) -> 1 | AC4: =$V4*$AB4*$W$1 -> 5.5 | AD4: =P4*AC4 -> 13.75 | AE4: 2011-10-20
A5: DOI 10-120 | B5: VENTILATION INSPECTION PRIOR TO COVERING AND TESTING | C5: Proc | D5: P | E5: =IF($D5="M",2,IF($D5="C",1,IF($D5="P",1.25,IF($D5="S",1.5)))) -> 1.25 | F5: 0 | G5: 2 | H5: 0 | I5: =GetRejectProbability("001-Document", H5) -> 1 | J5: =GetCARCountAttr("A","001-Document Review ", A5,I5) -> 0 | K5: =GetCARWeight("A",J5) -> 1 | L5: =GetCARCountAttr("B","001-Document Review ",A5,K5) -> 0 | M5: =GetCARWeight("B",L5) -> 1 | O5: =(K5+M5)/2 -> 1 | P5: =(E5*G5*I5)*O5 -> 2.5 | Q5: 1 | R5: 1 | S5: 1 | T5: 1 | U5: 1 | V5: =MAX($Q5,$R5,$S5,$T5,$U5) -> 1 | W5: 1 | X5: 1 | Y5: 1 | Z5: 1 | AA5: 1 | AB5: =MAX($W5,$X5,$Y5,$Z5,$AA5) -> 1 | AC5: =$V5*$AB5*$W$1 -> 5.5 | AD5: =P5*AC5 -> 13.75
A6: DOI-06-101 | B6: Hull Structural Material Control | C6: Proc | D6: P | E6: 1.25 | F6: 0 | G6: 2 | H6: 0 | I6: 1 | J6: 0 | K6: 1 | L6: 0 | M6: 1 | O6: 1 | P6: 2.5 | Q6: 1 | R6: 1 | S6: 1 | T6: 1 | U6: 1 | V6: 1 | W6: 1 | X6: 1 | Y6: 1 | Z6: 1 | AA6: 1 | AB6: 1 | AC6: 5.5 | AD6: 13.75
A7: DOI-06-103 | B7: Issuing and Processing the Record of Quality Deficiency (RQD) | C7: Proc | D7: P | E7: 1.25 | F7: 0 | G7: 2 | H7: 0 | I7: 1 | J7: 0 | K7: 1 | L7: 0 | M7: 1 | O7: 1 | P7: 2.5 | Q7: 1 | R7: 1 | S7: 1 | T7: 1 | U7: 1 | V7: 1 | W7: 1 | X7: 1 | Y7: 1 | Z7: 1 | AA7: 1 | AB7: 1 | AC7: 5.5 | AD7: 13.75 | AE7: 2011-09-15
A8: DOI-06-104 | B8: Quality Assurance Receipt Inspection | C8: Proc | D8: P | E8: 1.25 | F8: 0 | G8: 2 | H8: 0 | I8: 1 | J8: 0 | K8: 1 | L8: 0 | M8: 1 | O8: 1 | P8: 2.5 | Q8: 1 | R8: 1 | S8: 1 | T8: 1 | U8: 1 | V8: 1 | W8: 1 | X8: 1 | Y8: 1 | Z8: 1 | AA8: 1 | AB8: 1 | AC8: 5.5 | AD8: 13.75 | AE8: 2012-05-22 | AF8: 2012-01-27 | AG8: 2011-11-29 | AH8: 2011-10-26 | AI8: 2011-09-15 | AJ8: 2010-10-01
A9: DOI-06-106 | B9: DOI 06-106, Non-Destructive Testing (NDT) of Hull Structure | C9: Proc | D9: P | E9: 1.25 | F9: 0 | G9: 2 | H9: 0 | I9: 1 | J9: 0 | K9: 1 | L9: 0 | M9: 1 | O9: 1 | P9: 2.5 | Q9: 1 | R9: 1 | S9: 1 | T9: 1 | U9: 1 | V9: 1 | W9: 1 | X9: 1 | Y9: 1 | Z9: 1 | AA9: 1 | AB9: 1 | AC9: 5.5 | AD9: 13.75 | AE9: 2012-02-29 | AF9: 2012-01-25
A10: DOI-06-106 MT | B10: Non-Destructive Testing (NDT) - MT | C10: Proc | D10: P | E10: 1.25 | F10: 0 | G10: 2 | H10: 0 | I10: 1 | J10: 0 | K10: 1 | L10: 0 | M10: 1 | O10: 1 | P10: 2.5 | Q10: 1 | R10: 1 | S10: 1 | T10: 1 | U10: 1 | V10: 1 | W10: 1 | X10: 1 | Y10: 1 | Z10: 1 | AA10: 1 | AB10: 1 | AC10: 5.5 | AD10: 13.75
A11: DOI-06-106 PT | B11: Non-Destructive Testing (NDT) - PT | C11: Proc | D11: P | E11: 1.25 | F11: 0 | G11: 2 | H11: 0 | I11: 1 | J11: 0 | K11: 1 | L11: 0 | M11: 1 | O11: 1 | P11: 2.5 | Q11: 1 | R11: 1 | S11: 1 | T11: 1 | U11: 1 | V11: 1 | W11: 1 | X11: 1 | Y11: 1 | Z11: 1 | AA11: 1 | AB11: 1 | AC11: 5.5 | AD11: 13.75
A12: DOI-06-106 RT | B12: Non-Destructive Testing (NDT) - RT | C12: Proc | D12: P | E12: 1.25 | F12: 0 | G12: 2 | H12: 0 | I12: 1 | J12: 0 | K12: 1 | L12: 0 | M12: 1 | O12: 1 | P12: 2.5 | Q12: 1 | R12: 1 | S12: 1 | T12: 1 | U12: 1 | V12: 1 | W12: 1 | X12: 1 | Y12: 1 | Z12: 1 | AA12: 1 | AB12: 1 | AC12: 5.5 | AD12: 13.75
A13: DOI-06-106 UT | B13: Non-Destructive Testing (NDT) - UT | C13: Proc | D13: P | E13: 1.25 | F13: 0 | G13: 2 | H13: 0 | I13: 1 | J13: 0 | K13: 1 | L13: 0 | M13: 1 | O13: 1 | P13: 2.5 | Q13: 1 | R13: 1 | S13: 1 | T13: 1 | U13: 1 | V13: 1 | W13: 1 | X13: 1 | Y13: 1 | Z13: 1 | AA13: 1 | AB13: 1 | AC13: 5.5 | AD13: 13.75
A14: DOI-06-106 VT | B14: Non-Destructive Testing (NDT) - VT | C14: Proc | D14: P | E14: 1.25 | F14: 0 | G14: 2 | H14: 0 | I14: 1 | J14: 0 | K14: 1 | L14: 0 | M14: 1 | O14: 1 | P14: 2.5 | Q14: 1 | R14: 1 | S14: 1 | T14: 1 | U14: 1 | V14: 1 | W14: 1 | X14: 1 | Y14: 1 | Z14: 1 | AA14: 1 | AB14: 1 | AC14: 5.5 | AD14: 13.75
A15: DOI-06-107 | B15: Inspection and Documentation of Welded Pipe Joints in P-1 Piping | C15: Proc | D15: P | E15: 1.25 | F15: 0 | G15: 2 | H15: 0 | I15: 1 | J15: 0 | K15: 1 | L15: 0 | M15: 1 | O15: 1 | P15: 2.5 | Q15: 1 | R15: 1 | S15: 1 | T15: 1 | U15: 1 | V15: 1 | W15: 1 | X15: 1 | Y15: 1 | Z15: 1 | AA15: 1 | AB15: 1 | AC15: 5.5 | AD15: 13.75 | AE15: 2010-08-16 | AF15: 2010-04-07
A16: DOI-06-109 | B16: Compartment General Inspection | C16: Proc | D16: P | E16: 1.25 | F16: 17 | G16: 1.9 | H16: 0 | I16: 1 | J16: 0 | K16: 1 | L16: 0 | M16: 1 | O16: 1 | P16: 2.375 | Q16: 1 | R16: 1 | S16: 1 | T16: 1 | U16: 1 | V16: 1 | W16: 1 | X16: 1 | Y16: 1 | Z16: 1 | AA16: 1 | AB16: 1 | AC16: 5.5 | AD16: 13.0625 | AE16: 2014-09-01
A17: DOI-06-113 | B17: Issuing and Processing the Record of Quality Observation(QO) | C17: Proc | D17: P | E17: 1.25 | F17: 0 | G17: 2 | H17: 0 | I17: 1 | J17: 0 | K17: 1 | L17: 0 | M17: 1 | O17: 1 | P17: 2.5 | Q17: 1 | R17: 1 | S17: 1 | T17: 1 | U17: 1 | V17: 1 | W17: 1 | X17: 1 | Y17: 1 | Z17: 1 | AA17: 1 | AB17: 1 | AC17: 5.5 | AD17: 13.75
A18: DOI-06-116 | B18: Review of Supplier Furnished Radiographs | C18: Proc | D18: P | E18: 1.25 | F18: 0 | G18: 2 | H18: 0 | I18: 1 | J18: 0 | K18: 1 | L18: 0 | M18: 1 | O18: 1 | P18: 2.5 | Q18: 1 | R18: 1 | S18: 1 | T18: 1 | U18: 1 | V18: 1 | W18: 1 | X18: 1 | Y18: 1 | Z18: 1 | AA18: 1 | AB18: 1 | AC18: 5.5 | AD18: 13.75 | AE18: 2010-04-16
A19: DOI-06-119 | B19: Evaluation, Selection and Use of Suppliers | C19: Proc | D19: P | E19: 1.25 | F19: 0 | G19: 2 | H19: 0 | I19: 1 | J19: 0 | K19: 1 | L19: 0 | M19: 1 | O19: 1 | P19: 2.5 | Q19: 1 | R19: 1 | S19: 1 | T19: 1 | U19: 1 | V19: 1 | W19: 1 | X19: 1 | Y19: 1 | Z19: 1 | AA19: 1 | AB19: 1 | AC19: 5.5 | AD19: 13.75 | AE19: 2014-11-18 | AF19: 2013-07-09
A20: DOI-06-120 | B20: Supplier Quality System | C20: Proc | D20: P | E20: 1.25 | F20: 0 | G20: 2 | H20: 0 | I20: 1 | J20: 0 | K20: 1 | L20: 0 | M20: 1 | O20: 1 | P20: 2.5 | Q20: 1 | R20: 1 | S20: 1 | T20: 1 | U20: 1 | V20: 1 | W20: 1 | X20: 1 | Y20: 1 | Z20: 1 | AA20: 1 | AB20: 1 | AC20: 5.5 | AD20: 13.75 | AE20: 2013-07-09
A21: DOI-06-123 | B21: Material Identification by Color Code | C21: Proc | D21: P | E21: 1.25 | F21: 0 | G21: 2 | H21: 0 | I21: 1 | J21: 0 | K21: 1 | L21: 0 | M21: 1 | O21: 1 | P21: 2.5 | Q21: 1 | R21: 1 | S21: 1 | T21: 1 | U21: 1 | V21: 1 | W21: 1 | X21: 1 | Y21: 1 | Z21: 1 | AA21: 1 | AB21: 1 | AC21: 5.5 | AD21: 13.75
A22: DOI-06-124 | B22: Procedure to be used in Receiving, Handling, Storing and Transporting Resiliently Mounted Equipment | C22: Proc | D22: P | E22: 1.25 | F22: 0 | G22: 2 | H22: 0 | I22: 1 | J22: 0 | K22: 1 | L22: 0 | M22: 1 | O22: 1 | P22: 2.5 | Q22: 1 | R22: 1 | S22: 1 | T22: 1 | U22: 1 | V22: 1 | W22: 1 | X22: 1 | Y22: 1 | Z22: 1 | AA22: 1 | AB22: 1 | AC22: 5.5 | AD22: 13.75 | AE22: 2014-03-01 | AF22: 2013-12-09 | AG22: 2012-01-19
A23: DOI-06-125 | B23: Procedure for Source Inspection | C23: Proc | D23: P | E23: 1.25 | F23: 0 | G23: 2 | H23: 0 | I23: 1 | J23: 0 | K23: 1 | L23: 0 | M23: 1 | O23: 1 | P23: 2.5 | Q23: 1 | R23: 1 | S23: 1 | T23: 1 | U23: 1 | V23: 1 | W23: 1 | X23: 1 | Y23: 1 | Z23: 1 | AA23: 1 | AB23: 1 | AC23: 5.5 | AD23: 13.75 | AE23: 2014-11-01
A24: DOI-06-128 | B24: Qualification of Nondestructive Test (NDT) Personnel | C24: Proc | D24: P | E24: 1.25 | F24: 0 | G24: 2 | H24: 0 | I24: 1 | J24: 0 | K24: 1 | L24: 0 | M24: 1 | O24: 1 | P24: 2.5 | Q24: 1 | R24: 1 | S24: 1 | T24: 1 | U24: 1 | V24: 1 | W24: 1 | X24: 1 | Y24: 1 | Z24: 1 | AA24: 1 | AB24: 1 | AC24: 5.5 | AD24: 13.75 | AE24: 2011-10-20
A25: DOI-06-129 | B25: Statistical Techniques | C25: Proc | D25: P | E25: 1.25 | F25: 0 | G25: 2 | H25: 0 | I25: 1 | J25: 0 | K25: 1 | L25: 0 | M25: 1 | O25: 1 | P25: 2.5 | Q25: 1 | R25: 1 | S25: 1 | T25: 1 | U25: 1 | V25: 1 | W25: 1 | X25: 1 | Y25: 1 | Z25: 1 | AA25: 1 | AB25: 1 | AC25: 5.5 | AD25: 13.75
A26: DOI-06-130 | B26: Unplanned Labor System | C26: Proc | D26: P | E26: 1.25 | F26: 0 | G26: 2 | H26: 0 | I26: 1 | J26: 0 | K26: 1 | L26: 0 | M26: 1 | O26: 1 | P26: 2.5 | Q26: 1 | R26: 1 | S26: 1 | T26: 1 | U26: 1 | V26: 1 | W26: 1 | X26: 1 | Y26: 1 | Z26: 1 | AA26: 1 | AB26: 1 | AC26: 5.5 | AD26: 13.75
A27: DOI-06-133 | B27: Procedure for Approving shipment of Discrepant Supplier Equipment/Material | C27: Proc | D27: P | E27: 1.25 | F27: 0 | G27: 2 | H27: 0 | I27: 1 | J27: 0 | K27: 1 | L27: 0 | M27: 1 | O27: 1 | P27: 2.5 | Q27: 1 | R27: 1 | S27: 1 | T27: 1 | U27: 1 | V27: 1 | W27: 1 | X27: 1 | Y27: 1 | Z27: 1 | AA27: 1 | AB27: 1 | AC27: 5.5 | AD27: 13.75
A28: DOI-06-134 | B28: PREVENTIVE MAINTENANCE OF SHIP MATERIAL FROM STORAGE THROUGH DELIVERY | C28: Proc | D28: P | E28: 1.25 | F28: 204 | G28: 1.4 | H28: 0 | I28: 1 | J28: 0 | K28: 1 | L28: 0 | M28: 1 | O28: 1 | P28: 1.75 | Q28: 1 | R28: 1 | S28: 1 | T28: 1 | U28: 1 | V28: 1 | W28: 1 | X28: 1 | Y28: 1 | Z28: 1 | AA28: 1 | AB28: 1 | AC28: 5.5 | AD28: 9.625 | AE28: 2014-08-01 | AF28: 2014-07-01 | AG28: 2014-06-01 | AH28: 2014-02-01 | AI28: 2014-01-01 | AJ28: 2013-12-27 | AK28: 2013-12-26 | AL28: 2013-12-09 | AM28: 2013-09-27 | AN28: 2013-02-25 | AO28: 2012-11-29 | AP28: 2012-09-14 | AQ28: 2012-08-23 | AR28: 2012-05-30 | AS28: 2012-05-23 | AT28: 2012-04-27 | AU28: 2011-11-29 | AV28: 2011-04-28
A29: DOI-06-135 | B29: D/91 Receipt Inspection and Storage of Contractor Furnished Material | C29: Proc | D29: P | E29: 1.25 | F29: 0 | G29: 2 | H29: 0 | I29: 1 | J29: 0 | K29: 1 | L29: 0 | M29: 1 | O29: 1 | P29: 2.5 | Q29: 1 | R29: 1 | S29: 1 | T29: 1 | U29: 1 | V29: 1 | W29: 1 | X29: 1 | Y29: 1 | Z29: 1 | AA29: 1 | AB29: 1 | AC29: 5.5 | AD29: 13.75 | AE29: 2011-11-18
A30: DOI-06-136 | B30: Identification of Bolting Materials | C30: Proc | D30: P | E30: 1.25 | F30: 0 | G30: 2 | H30: 0 | I30: 1 | J30: 0 | K30: 1 | L30: 0 | M30: 1 | O30: 1 | P30: 2.5 | Q30: 1 | R30: 1 | S30: 1 | T30: 1 | U30: 1 | V30: 1 | W30: 1 | X30: 1 | Y30: 1 | Z30: 1 | AA30: 1 | AB30: 1 | AC30: 5.5 | AD30: 13.75 | AE30: 2013-03-26
A31: DOI-06-138 | B31: Procedure for Layout of Hull Markings | C31: Proc | D31: P | E31: 1.25 | F31: 0 | G31: 2 | H31: 0 | I31: 1 | J31: 0 | K31: 1 | L31: 0 | M31: 1 | O31: 1 | P31: 2.5 | Q31: 1 | R31: 1 | S31: 1 | T31: 1 | U31: 1 | V31: 1 | W31: 1 | X31: 1 | Y31: 1 | Z31: 1 | AA31: 1 | AB31: 1 | AC31: 5.5 | AD31: 13.75 | AE31: 2013-10-29 | AF31: 2013-10-21 | AG31: 2013-10-10
A32: DOI-06-140 | B32: Quality Problem Log | C32: Proc | D32: P | E32: 1.25 | F32: 0 | G32: 2 | H32: 0 | I32: 1 | J32: 0 | K32: 1 | L32: 0 | M32: 1 | O32: 1 | P32: 2.5 | Q32: 1 | R32: 1 | S32: 1 | T32: 1 | U32: 1 | V32: 1 | W32: 1 | X32: 1 | Y32: 1 | Z32: 1 | AA32: 1 | AB32: 1 | AC32: 5.5 | AD32: 13.75 | AE32: 2014-03-01 | AF32: 2014-02-01
A33: DOI-06-142 | B33: Instruction for Completing the F-2506 | C33: Proc | D33: P | E33: 1.25 | F33: 0 | G33: 2 | H33: 0 | I33: 1 | J33: 0 | K33: 1 | L33: 0 | M33: 1 | O33: 1 | P33: 2.5 | Q33: 1 | R33: 1 | S33: 1 | T33: 1 | U33: 1 | V33: 1 | W33: 1 | X33: 1 | Y33: 1 | Z33: 1 | AA33: 1 | AB33: 1 | AC33: 5.5 | AD33: 13.75
A34: DOI-06-144 | B34: Material Discrepancy Reporting (MDR) System | C34: Proc | D34: P | E34: 1.25 | F34: 0 | G34: 2 | H34: 0 | I34: 1 | J34: 0 | K34: 1 | L34: 0 | M34: 1 | O34: 1 | P34: 2.5 | Q34: 1 | R34: 1 | S34: 1 | T34: 1 | U34: 1 | V34: 1 | W34: 1 | X34: 1 | Y34: 1 | Z34: 1 | AA34: 1 | AB34: 1 | AC34: 5.5 | AD34: 13.75
A35: DOI-06-147 | B35: Corrective Action Requests (CARs) | C35: Proc | D35: P | E35: 1.25 | F35: 0 | G35: 2 | H35: 0 | I35: 1 | J35: 0 | K35: 1 | L35: 0 | M35: 1 | O35: 1 | P35: 2.5 | Q35: 1 | R35: 1 | S35: 1 | T35: 1 | U35: 1 | V35: 1 | W35: 1 | X35: 1 | Y35: 1 | Z35: 1 | AA35: 1 | AB35: 1 | AC35: 5.5 | AD35: 13.75
A36: DOI-06-148 | B36: Initial Quality Planning | C36: Proc | D36: P | E36: 1.25 | F36: 0 | G36: =VLOOKUP($F36,OBSWeight,2,TRUE) -> 2 | H36: 0 | I36: 1 | J36: 0 | K36: 1 | L36: 0 | M36: 1 | O36: 1 | P36: 2.5 | Q36: 1 | R36: 1 | S36: 1 | T36: 1 | U36: 1 | V36: 1 | W36: 1 | X36: 1 | Y36: 1 | Z36: 1 | AA36: 1 | AB36: 1 | AC36: 5.5 | AD36: 13.75
A37: DOI-06-149 | B37: Quality Program Organization | C37: Proc | D37: P | E37: 1.25 | F37: 0 | G37: 2 | H37: 0 | I37: 1 | J37: 0 | K37: 1 | L37: 0 | M37: 1 | O37: 1 | P37: 2.5 | Q37: 1 | R37: 1 | S37: 1 | T37: 1 | U37: 1 | V37: 1 | W37: 1 | X37: 1 | Y37: 1 | Z37: 1 | AA37: 1 | AB37: 1 | AC37: 5.5 | AD37: 13.75
A38: DOI-06-152 | B38: Inspection Plan for Random or Partial RT and UT Inspections | C38: Proc | D38: P | E38: 1.25 | F38: 0 | G38: 2 | H38: 0 | I38: 1 | J38: 0 | K38: 1 | L38: 0 | M38: 1 | O38: 1 | P38: 2.5 | Q38: 1 | R38: 1 | S38: 1 | T38: 1 | U38: 1 | V38: 1 | W38: 1 | X38: 1 | Y38: 1 | Z38: 1 | AA38: 1 | AB38: 1 | AC38: 5.5 | AD38: 13.75
A39: DOI-07-101 | B39: Relief Valve Calibration Test | C39: Proc | D39: P | E39: 1.25 | F39: 0 | G39: 2 | H39: 0 | I39: 1 | J39: 0 | K39: 1 | L39: 0 | M39: 1 | O39: 1 | P39: 2.5 | Q39: 1 | R39: 1 | S39: 1 | T39: 1 | U39: 1 | V39: 1 | W39: 1 | X39: 1 | Y39: 1 | Z39: 1 | AA39: 1 | AB39: 1 | AC39: 5.5 | AD39: 13.75 | AE39: 2014-07-01 | AF39: 2013-12-26 | AG39: 2013-03-26 | AH39: 2013-02-28
A40: DOI-07-102 | B40: BIW MANUFACTURED BOLTS | C40: Proc | D40: P | E40: 1.25 | F40: 0 | G40: 2 | H40: 0 | I40: 1 | J40: 0 | K40: 1 | L40: 0 | M40: 1 | O40: 1 | P40: 2.5 | Q40: 1 | R40: 1 | S40: 1 | T40: 1 | U40: 1 | V40: 1 | W40: 1 | X40: 1 | Y40: 1 | Z40: 1 | AA40: 1 | AB40: 1 | AC40: 5.5 | AD40: 13.75
A41: DOI-09-109 | B41: Installation and Alignment of Machinery and Equipment | C41: Proc | D41: P | E41: 1.25 | F41: 0 | G41: 2 | H41: 0 | I41: 1 | J41: 0 | K41: 1 | L41: 0 | M41: 1 | O41: 1 | P41: 2.5 | Q41: 1 | R41: 1 | S41: 1 | T41: 1 | U41: 1 | V41: 1 | W41: 1 | X41: 1 | Y41: 1 | Z41: 1 | AA41: 1 | AB41: 1 | AC41: 5.5 | AD41: 13.75 | AE41: 2014-08-01 | AF41: 2014-07-01 | AG41: 2014-01-01 | AH41: 2013-11-21
A42: DOI-09-110 | B42: Process for Verifying Weight of Fire Fighting and Actuation Cylinders | C42: Proc | D42: P | E42: 1.25 | F42: 0 | G42: 2 | H42: 0 | I42: 1 | J42: 0 | K42: 1 | L42: 0 | M42: 1 | O42: 1 | P42: 2.5 | Q42: 1 | R42: 1 | S42: 1 | T42: 1 | U42: 1 | V42: 1 | W42: 1 | X42: 1 | Y42: 1 | Z42: 1 | AA42: 1 | AB42: 1 | AC42: 5.5 | AD42: 13.75
A43: DOI-09-117 | B43: Special Care & Protection of DDG 1000 Gas Turbine Generators (ATG's) | C43: Proc | D43: P | E43: 1.25 | F43: 0 | G43: 2 | H43: 0 | I43: 1 | J43: 0 | K43: 1 | L43: 0 | M43: 1 | O43: 1 | P43: 2.5 | Q43: 1 | R43: 1 | S43: 1 | T43: 1 | U43: 1 | V43: 1 | W43: 1 | X43: 1 | Y43: 1 | Z43: 1 | AA43: 1 | AB43: 1 | AC43: 5.5 | AD43: 13.75 | AE43: 2014-07-01 | AF43: 2014-01-01 | AG43: 2013-08-16 | AH43: 2013-07-17 | AI43: 2013-04-05 | AJ43: 2012-08-29
A44: DOI-09-125 | B44: INSTALLATION OF FIXED PITCH PROPELLERS AND RUDDERS | C44: Proc | D44: P | E44: 1.25 | F44: 0 | G44: 2 | H44: 0 | I44: 1 | J44: 0 | K44: 1 | L44: 0 | M44: 1 | O44: 1 | P44: 2.5 | Q44: 1 | R44: 1 | S44: 1 | T44: 1 | U44: 1 | V44: 1 | W44: 1 | X44: 1 | Y44: 1 | Z44: 1 | AA44: 1 | AB44: 1 | AC44: 5.5 | AD44: 13.75 | AE44: 2013-09-06 | AF44: 2013-08-15
A45: DOI-10-104 | B45: Flushing and Cleaning Hydraulic Power Transmission System Piping | C45: Proc | D45: P | E45: 1.25 | F45: 0 | G45: 2 | H45: 0 | I45: 1 | J45: 0 | K45: 1 | L45: 0 | M45: 1 | O45: 1 | P45: 2.5 | Q45: 1 | R45: 1 | S45: 1 | T45: 1 | U45: 1 | V45: 1 | W45: 1 | X45: 1 | Y45: 1 | Z45: 1 | AA45: 1 | AB45: 1 | AC45: 5.5 | AD45: 13.75 | AE45: 2014-11-01 | AF45: 2014-01-01 | AG45: 2013-02-08 | AH45: 2013-01-04
A46: DOI-10-105 | B46: Procedure to Control hot Work on Structure Supporting Ordnance and Other Alignment Critical Foundations | C46: Proc | D46: P | E46: 1.25 | F46: 0 | G46: 2 | H46: 0 | I46: 1 | J46: 0 | K46: 1 | L46: 0 | M46: 1 | O46: 1 | P46: 2.5 | Q46: 1 | R46: 1 | S46: 1 | T46: 1 | U46: 1 | V46: 1 | W46: 1 | X46: 1 | Y46: 1 | Z46: 1 | AA46: 1 | AB46: 1 | AC46: 5.5 | AD46: 13.75 | AE46: 2013-04-10
A47: DOI-10-106 | B47: PROCEDURE FOR FLUSHING AND CLEANING LOW PRESSURE VITAL, ELECTRONIC DRY AND COMPRESSED BREATHING AIR PIPING SYSTEMS | C47: Proc | D47: P | E47: 1.25 | F47: 0 | G47: 2 | H47: 0 | I47: 1 | J47: 0 | K47: 1 | L47: 0 | M47: 1 | O47: 1 | P47: 2.5 | Q47: 1 | R47: 1 | S47: 1 | T47: 1 | U47: 1 | V47: 1 | W47: 1 | X47: 1 | Y47: 1 | Z47: 1 | AA47: 1 | AB47: 1 | AC47: 5.5 | AD47: 13.75
A48: DOI-10-110 | B48: FLUSHING AND CLEANING POTABLE/ FRESH WATER SYSTEM PIPING | C48: Proc | D48: P | E48: 1.25 | F48: 0 | G48: 2 | H48: 0 | I48: 1 | J48: 0 | K48: 1 | L48: 0 | M48: 1 | O48: 1 | P48: 2.5 | Q48: 1 | R48: 1 | S48: 1 | T48: 1 | U48: 1 | V48: 1 | W48: 1 | X48: 1 | Y48: 1 | Z48: 1 | AA48: 1 | AB48: 1 | AC48: 5.5 | AD48: 13.75
A49: DOI-10-111 | B49: Procedure for Flushing and Cleaning the A/C Chilled Water System | C49: Proc | D49: P | E49: 1.25 | F49: 0 | G49: 2 | H49: 0 | I49: 1 | J49: 0 | K49: 1 | L49: 0 | M49: 1 | O49: 1 | P49: 2.5 | Q49: 1 | R49: 1 | S49: 1 | T49: 1 | U49: 1 | V49: 1 | W49: 1 | X49: 1 | Y49: 1 | Z49: 1 | AA49: 1 | AB49: 1 | AC49: 5.5 | AD49: 13.75 | AE49: 2013-09-20
A50: DOI-10-113 | B50: PROCEDURE FOR FLUSHING AND CLEANING DESALINATED WATER SYSTEMS | C50: Proc | D50: P | E50: 1.25 | F50: 0 | G50: 2 | H50: 0 | I50: 1 | J50: 0 | K50: 1 | L50: 0 | M50: 1 | O50: 1 | P50: 2.5 | Q50: 1 | R50: 1 | S50: 1 | T50: 1 | U50: 1 | V50: 1 | W50: 1 | X50: 1 | Y50: 1 | Z50: 1 | AA50: 1 | AB50: 1 | AC50: 5.5 | AD50: 13.75
A51: DOI-10-114 | B51: Flushing and Cleaning Fuel Oil System Piping | C51: Proc | D51: P | E51: 1.25 | F51: 0 | G51: 2 | H51: 0 | I51: 1 | J51: 0 | K51: 1 | L51: 0 | M51: 1 | O51: 1 | P51: 2.5 | Q51: 1 | R51: 1 | S51: 1 | T51: 1 | U51: 1 | V51: 1 | W51: 1 | X51: 1 | Y51: 1 | Z51: 1 | AA51: 1 | AB51: 1 | AC51: 5.5 | AD51: 13.75 | AE51: 2014-07-01
A52: DOI-10-116 | B52: VT Of Hull Structure, Record of Accomplishment (Fabrication) | C52: Proc | D52: P | E52: 1.25 | F52: 0 | G52: 2 | H52: 0 | I52: 1 | J52: 0 | K52: 1 | L52: 0 | M52: 1 | O52: 1 | P52: 2.5 | Q52: 1 | R52: 1 | S52: 1 | T52: 1 | U52: 1 | V52: 1 | W52: 1 | X52: 1 | Y52: 1 | Z52: 1 | AA52: 1 | AB52: 1 | AC52: 5.5 | AD52: 13.75 | AE52: 2010-06-03 | AF52: 2010-02-09 | AG52: 2010-02-08 | AH52: 2009-08-26 | AI52: 2009-04-17
A53: DOI-10-118 | B53: Use of Red Danger Tags | C53: Proc | D53: P | E53: 1.25 | F53: 0 | G53: 2 | H53: 0 | I53: 1 | J53: 0 | K53: 1 | L53: 0 | M53: 1 | O53: 1 | P53: 2.5 | Q53: 1 | R53: 1 | S53: 1 | T53: 1 | U53: 1 | V53: 1 | W53: 1 | X53: 1 | Y53: 1 | Z53: 1 | AA53: 1 | AB53: 1 | AC53: 5.5 | AD53: 13.75 | AE53: 2010-05-25
A54: DOI-10-119 | B54: WATERTIGHT DOORS, HATCHES, AND SCUTTLES INSTALLATION, INSPECTION AND PRE-OPERATIONAL TEST | C54: Proc | D54: P | E54: 1.25 | F54: 0 | G54: 2 | H54: 0 | I54: 1 | J54: 0 | K54: 1 | L54: 0 | M54: 1 | O54: 1 | P54: 2.5 | Q54: 1 | R54: 1 | S54: 1 | T54: 1 | U54: 1 | V54: 1 | W54: 1 | X54: 1 | Y54: 1 | Z54: 1 | AA54: 1 | AB54: 1 | AC54: 5.5 | AD54: 13.75 | AE54: 2011-12-21
A55: DOI-10-120 | B55: VENTILATION INSPECTION PRIOR TO COVERING AND TESTING | C55: Proc | D55: P | E55: 1.25 | F55: 0 | G55: 2 | H55: 0 | I55: 1 | J55: 0 | K55: 1 | L55: 0 | M55: 1 | O55: 1 | P55: 2.5 | Q55: 1 | R55: 1 | S55: 1 | T55: 1 | U55: 1 | V55: 1 | W55: 1 | X55: 1 | Y55: 1 | Z55: 1 | AA55: 1 | AB55: 1 | AC55: 5.5 | AD55: 13.75 | AE55: 2014-09-01
A56: DOI-10-123 | B56: Readying Ship for Sea Trials | C56: Proc | D56: P | E56: 1.25 | F56: 0 | G56: 2 | H56: 0 | I56: 1 | J56: 0 | K56: 1 | L56: 0 | M56: 1 | O56: 1 | P56: 2.5 | Q56: 1 | R56: 1 | S56: 1 | T56: 1 | U56: 1 | V56: 1 | W56: 1 | X56: 1 | Y56: 1 | Z56: 1 | AA56: 1 | AB56: 1 | AC56: 5.5 | AD56: 13.75
A57: DOI-10-124 | B57: DDG 1000 DOI 10-124 INSTALLATION AND CLEANLINESS INSPECTION FOR GAS TURBINE COMBUSTION AIR INTAKES AND EXHAUST SYSTEMS | C57: Proc | D57: P | E57: 1.25 | F57: 0 | G57: 2 | H57: 0 | I57: 1 | J57: 0 | K57: 1 | L57: 0 | M57: 1 | O57: 1 | P57: 2.5 | Q57: 1 | R57: 1 | S57: 1 | T57: 1 | U57: 1 | V57: 1 | W57: 1 | X57: 1 | Y57: 1 | Z57: 1 | AA57: 1 | AB57: 1 | AC57: 5.5 | AD57: 13.75 | AE57: 2014-06-01 | AF57: 2014-05-01 | AG57: 2014-01-03 | AH57: 2014-01-02 | AI57: 2013-12-17 | AJ57: 2013-12-16 | AK57: 2013-12-12 | AL57: 2013-12-02 | AM57: 2013-11-13 | AN57: 2013-11-12 | AO57: 2013-10-30 | AP57: 2013-10-18
A58: DOI-10-126 | B58: Fabrication Inspection of Structure Requiring Static Load Test | C58: Proc | D58: P | E58: 1.25 | F58: 0 | G58: 2 | H58: 0 | I58: 1 | J58: 0 | K58: 1 | L58: 0 | M58: 1 | O58: 1 | P58: 2.5 | Q58: 1 | R58: 1 | S58: 1 | T58: 1 | U58: 1 | V58: 1 | W58: 1 | X58: 1 | Y58: 1 | Z58: 1 | AA58: 1 | AB58: 1 | AC58: 5.5 | AD58: 13.75
A59: DOI-10-129 | B59: VISUAL INSPECTION (VT) OF HULL STRUCTURE | C59: Proc | D59: P | E59: 1.25 | F59: 27 | G59: 1.9 | H59: 0 | I59: 1 | J59: 0 | K59: 1 | L59: 0 | M59: 1 | O59: 1 | P59: 2.375 | Q59: 1 | R59: 1 | S59: 1 | T59: 1 | U59: 1 | V59: 1 | W59: 1 | X59: 1 | Y59: 1 | Z59: 1 | AA59: 1 | AB59: 1 | AC59: 5.5 | AD59: 13.0625 | AE59: 2014-05-22 | AF59: 2010-04-15 | AG59: 2010-02-05 | AH59: 2010-02-04 | AI59: 2009-08-26
A60: DOI-10-130 | B60: VISUAL INSPECTION OF BIW MANUFACTURED GAS TURBINE UPTAKE/INTAKE COMPONENTS AT FABRICATION | C60: Proc | D60: P | E60: 1.25 | F60: 0 | G60: 2 | H60: 0 | I60: 1 | J60: 0 | K60: 1 | L60: 0 | M60: 1 | O60: 1 | P60: 2.5 | Q60: 1 | R60: 1 | S60: 1 | T60: 1 | U60: 1 | V60: 1 | W60: 1 | X60: 1 | Y60: 1 | Z60: 1 | AA60: 1 | AB60: 1 | AC60: 5.5 | AD60: 13.75
A61: DOI-10-131 | B61: Strength, Tightness and Flushing Testing of Piping Systems | C61: Proc | D61: P | E61: 1.25 | F61: 0 | G61: 2 | H61: 0 | I61: 1 | J61: 0 | K61: 1 | L61: 0 | M61: 1 | O61: 1 | P61: 2.5 | Q61: 1 | R61: 1 | S61: 1 | T61: 1 | U61: 1 | V61: 1 | W61: 1 | X61: 1 | Y61: 1 | Z61: 1 | AA61: 1 | AB61: 1 | AC61: 5.5 | AD61: 13.75 | AE61: 2013-04-19 | AF61: 2012-06-29 | AG61: 2011-08-30 | AH61: 2011-07-29
A62: DOI-10-132 | B62: Reporting Discrepancies and Repairs using the 2644 Form | C62: Proc | D62: P | E62: 1.25 | F62: 0 | G62: 2 | H62: 0 | I62: 1 | J62: 0 | K62: 1 | L62: 0 | M62: 1 | O62: 1 | P62: 2.5 | Q62: 1 | R62: 1 | S62: 1 | T62: 1 | U62: 1 | V62: 1 | W62: 1 | X62: 1 | Y62: 1 | Z62: 1 | AA62: 1 | AB62: 1 | AC62: 5.5 | AD62: 13.75
A63: DOI-10-133 | B63: PROCEDURE FOR FLUSHING AND CLEANING THE NITROGEN PIPING SYSTEM ABOARD SHIP | C63: Proc | D63: P | E63: 1.25 | F63: 0 | G63: 2 | H63: 0 | I63: 1 | J63: 0 | K63: 1 | L63: 0 | M63: 1 | O63: 1 | P63: 2.5 | Q63: 1 | R63: 1 | S63: 1 | T63: 1 | U63: 1 | V63: 1 | W63: 1 | X63: 1 | Y63: 1 | Z63: 1 | AA63: 1 | AB63: 1 | AC63: 5.5 | AD63: 13.75
A64: DOI-10-135 | B64: Final Inspection of Cascade Orificial Restrictive Devices (CORDS) | C64: Proc | D64: P | E64: 1.25 | F64: 0 | G64: 2 | H64: 0 | I64: 1 | J64: 0 | K64: 1 | L64: 0 | M64: 1 | O64: 1 | P64: 2.5 | Q64: 1 | R64: 1 | S64: 1 | T64: 1 | U64: 1 | V64: 1 | W64: 1 | X64: 1 | Y64: 1 | Z64: 1 | AA64: 1 | AB64: 1 | AC64: 5.5 | AD64: 13.75 | AE64: 2014-03-01 | AF64: 2012-12-28
A65: DOI-10-136 | B65: Underwater Hull Inspections | C65: Proc | D65: P | E65: 1.25 | F65: 0 | G65: 2 | H65: 0 | I65: 1 | J65: 0 | K65: 1 | L65: 0 | M65: 1 | O65: 1 | P65: 2.5 | Q65: 1 | R65: 1 | S65: 1 | T65: 1 | U65: 1 | V65: 1 | W65: 1 | X65: 1 | Y65: 1 | Z65: 1 | AA65: 1 | AB65: 1 | AC65: 5.5 | AD65: 13.75
A66: DOI-10-138 | B66: Gas Turbine Water Wash | C66: Proc | D66: P | E66: 1.25 | F66: 0 | G66: 2 | H66: 0 | I66: 1 | J66: 0 | K66: 1 | L66: 0 | M66: 1 | O66: 1 | P66: 2.5 | Q66: 1 | R66: 1 | S66: 1 | T66: 1 | U66: 1 | V66: 1 | W66: 1 | X66: 1 | Y66: 1 | Z66: 1 | AA66: 1 | AB66: 1 | AC66: 5.5 | AD66: 13.75
A67: DOI-10-141 | B67: INSTALLATION INSPECTION OF STRUCTURE AND EQUIPMENT REQUIRING STATIC LOAD TEST | C67: Proc | D67: P | E67: 1.25 | F67: 2 | G67: 2 | H67: 0 | I67: 1 | J67: 0 | K67: 1 | L67: 0 | M67: 1 | O67: 1 | P67: 2.5 | Q67: 1 | R67: 1 | S67: 1 | T67: 1 | U67: 1 | V67: 1 | W67: 1 | X67: 1 | Y67: 1 | Z67: 1 | AA67: 1 | AB67: 1 | AC67: 5.5 | AD67: 13.75
A68: DOI-10-142 | B68: Procedure for Care and Protection of Ships and Equipment during Construction | C68: Proc | D68: P | E68: 1.25 | F68: 342 | G68: =VLOOKUP($F68,OBSWeight,2,TRUE) -> 1.4 | H68: 0.02395209581 | I68: 3.5 | J68: 0 | K68: 1 | L68: 0 | M68: 1 | O68: 1 | P68: 6.125 | Q68: 1 | R68: 1 | S68: 1 | T68: 1 | U68: 1 | V68: 1 | W68: 1 | X68: 1 | Y68: 1 | Z68: 1 | AA68: 1 | AB68: 1 | AC68: 5.5 | AD68: 33.6875 | AE68: 2014-10-01 | AF68: 2014-08-01 | AG68: 2014-06-01 | AH68: 2014-04-01 | AI68: 2014-03-01 | AJ68: 2014-02-01 | AK68: 2013-12-09 | AL68: 2013-04-18 | AM68: 2012-12-27 | AN68: 2012-12-07 | AO68: 2012-11-29 | AP68: 2012-09-27 | AQ68: 2012-06-12 | AR68: 2012-05-30 | AS68: 2012-03-30 | AT68: 2011-11-23 | AU68: 2011-10-27 | AV68: 2011-08-31 | AW68: 2011-07-29 | AX68: 2011-06-27 | AY68: 2011-04-28 | AZ68: 2011-04-27 | BA68: 2011-01-27
A69: DOI-10-144 | B69: Unit/Product Turn Over | C69: Proc | D69: P | E69: =IF($D69="M",2,IF($D69="C",1,IF($D69="P",1.25,IF($D69="S",1.5)))) -> 1.25 | F69: 0 | G69: 2 | H69: 0.02395209581 | I69: =GetRejectProbability("001-Document", H69) -> 3.5 | J69: =GetCARCountAttr("A","001-Document Review ", A69,I69) -> 0 | K69: =GetCARWeight("A",J69) -> 1 | L69: =GetCARCountAttr("B","001-Document Review ",A69,K69) -> 0 | M69: =GetCARWeight("B",L69) -> 1 | O69: =(K69+M69)/2 -> 1 | P69: =(E69*G69*I69)*O69 -> 8.75 | Q69: 1 | R69: 1 | S69: 1 | T69: 1 | U69: 1 | V69: =MAX($Q69,$R69,$S69,$T69,$U69) -> 1 | W69: 1 | X69: 1 | Y69: 1 | Z69: 1 | AA69: 1 | AB69: =MAX($W69,$X69,$Y69,$Z69,$AA69) -> 1 | AC69: =$V69*$AB69*$W$1 -> 5.5 | AD69: =P69*AC69 -> 48.125
A70: DOI-10-145 | B70: Procedure for Flushing and Cleaning JP-5 Systems | C70: Proc | D70: P | E70: 1.25 | F70: 0 | G70: 2 | H70: 0.02395209581 | I70: 3.5 | J70: 0 | K70: 1 | L70: 0 | M70: 1 | O70: 1 | P70: 8.75 | Q70: 1 | R70: 1 | S70: 1 | T70: 1 | U70: 1 | V70: 1 | W70: 1 | X70: 1 | Y70: 1 | Z70: 1 | AA70: 1 | AB70: 1 | AC70: 5.5 | AD70: 48.125
A71: DOI-10-146 | B71: Use of Yellow Caution Tags | C71: Proc | D71: P | E71: 1.25 | F71: 0 | G71: 2 | H71: 0.02395209581 | I71: 3.5 | J71: 0 | K71: 1 | L71: 0 | M71: 1 | O71: 1 | P71: 8.75 | Q71: 1 | R71: 1 | S71: 1 | T71: 1 | U71: 1 | V71: 1 | W71: 1 | X71: 1 | Y71: 1 | Z71: 1 | AA71: 1 | AB71: 1 | AC71: 5.5 | AD71: 48.125 | AE71: 2013-12-09 | AF71: 2013-04-25 | AG71: 2011-10-21 | AH71: 2010-05-25
A72: DOI-10-148 | B72: Flushing and Cleaning PolyAlphaOlefin (PAO) | C72: Proc | D72: P | E72: 1.25 | F72: 0 | G72: 2 | H72: 0.02395209581 | I72: 3.5 | J72: 0 | K72: 1 | L72: 0 | M72: 1 | O72: 1 | P72: 8.75 | Q72: 1 | R72: 1 | S72: 1 | T72: 1 | U72: 1 | V72: 1 | W72: 1 | X72: 1 | Y72: 1 | Z72: 1 | AA72: 1 | AB72: 1 | AC72: 5.5 | AD72: 48.125
A73: DOI-10-150 | B73: Procedure for Ship Transfer | C73: Proc | D73: P | E73: 1.25 | F73: 0 | G73: 2 | H73: 0.02395209581 | I73: 3.5 | J73: 0 | K73: 1 | L73: 0 | M73: 1 | O73: 1 | P73: 8.75 | Q73: 1 | R73: 1 | S73: 1 | T73: 1 | U73: 1 | V73: 1 | W73: 1 | X73: 1 | Y73: 1 | Z73: 1 | AA73: 1 | AB73: 1 | AC73: 5.5 | AD73: 48.125
A74: DOI-10-151 | B74: Sampling Techniques | C74: Proc | D74: P | E74: 1.25 | F74: 0 | G74: 2 | H74: 0.02395209581 | I74: 3.5 | J74: 0 | K74: 1 | L74: 0 | M74: 1 | O74: 1 | P74: 8.75 | Q74: 1 | R74: 1 | S74: 1 | T74: 1 | U74: 1 | V74: 1 | W74: 1 | X74: 1 | Y74: 1 | Z74: 1 | AA74: 1 | AB74: 1 | AC74: 5.5 | AD74: 48.125 | AE74: 2010-04-08
A75: DOI-10-152 | B75: Customer Notification for Tests/Inspections | C75: Proc | D75: P | E75: 1.25 | F75: 0 | G75: 2 | H75: 0.02395209581 | I75: 3.5 | J75: 0 | K75: 1 | L75: 0 | M75: 1 | O75: 1 | P75: 8.75 | Q75: 1 | R75: 1 | S75: 1 | T75: 1 | U75: 1 | V75: 1 | W75: 1 | X75: 1 | Y75: 1 | Z75: 1 | AA75: 1 | AB75: 1 | AC75: 5.5 | AD75: 48.125
A76: DOI-10-153 | B76: Measuring and Test Equipment Calibration Program | C76: Proc | D76: P | E76: 1.25 | F76: 0 | G76: 2 | H76: 0.02395209581 | I76: 3.5 | J76: 0 | K76: 1 | L76: 0 | M76: 1 | O76: 1 | P76: 8.75 | Q76: 1 | R76: 1 | S76: 1 | T76: 1 | U76: 1 | V76: 1 | W76: 1 | X76: 1 | Y76: 1 | Z76: 1 | AA76: 1 | AB76: 1 | AC76: 5.5 | AD76: 48.125 | AE76: 2014-05-01 | AF76: 2013-08-30 | AG76: 2012-01-13
A77: DOI-10-154 | B77: Quality Alert Procedure | C77: Proc | D77: P | E77: 1.25 | F77: 0 | G77: 2 | H77: 0.02395209581 | I77: 3.5 | J77: 0 | K77: 1 | L77: 0 | M77: 1 | O77: 1 | P77: 8.75 | Q77: 1 | R77: 1 | S77: 1 | T77: 1 | U77: 1 | V77: 1 | W77: 1 | X77: 1 | Y77: 1 | Z77: 1 | AA77: 1 | AB77: 1 | AC77: 5.5 | AD77: 48.125
A78: DOI-10-155 | B78: Fabrication and Inspection of MAFO of MAFO Doors at Hardings Plant | C78: Proc | D78: P | E78: 1.25 | F78: 0 | G78: 2 | H78: 0.02395209581 | I78: 3.5 | J78: 0 | K78: 1 | L78: 0 | M78: 1 | O78: 1 | P78: 8.75 | Q78: 1 | R78: 1 | S78: 1 | T78: 1 | U78: 1 | V78: 1 | W78: 1 | X78: 1 | Y78: 1 | Z78: 1 | AA78: 1 | AB78: 1 | AC78: 5.5 | AD78: 48.125 | AE78: 2011-06-22
A79: DOI-10-157 | B79: Procedure for Sign-Off and Completing Status Of Manufacturing Work Orders | C79: Proc | D79: P | E79: 1.25 | F79: 0 | G79: 2 | H79: 0.02395209581 | I79: 3.5 | J79: 0 | K79: 1 | L79: 0 | M79: 1 | O79: 1 | P79: 8.75 | Q79: 1 | R79: 1 | S79: 1 | T79: 1 | U79: 1 | V79: 1 | W79: 1 | X79: 1 | Y79: 1 | Z79: 1 | AA79: 1 | AB79: 1 | AC79: 5.5 | AD79: 48.125
A80: DOI-10-158 | B80: Procedure for Auditing Work Orders | C80: Proc | D80: P | E80: 1.25 | F80: 0 | G80: 2 | H80: 0.02395209581 | I80: 3.5 | J80: 0 | K80: 1 | L80: 0 | M80: 1 | O80: 1 | P80: 8.75 | Q80: 1 | R80: 1 | S80: 1 | T80: 1 | U80: 1 | V80: 1 | W80: 1 | X80: 1 | Y80: 1 | Z80: 1 | AA80: 1 | AB80: 1 | AC80: 5.5 | AD80: 48.125
A81: DOI-10-161 | B81: MAFO DOOR INSTALLATION PROCEDURE | C81: Proc | D81: P | E81: 1.25 | F81: 0 | G81: 2 | H81: 0.02395209581 | I81: 3.5 | J81: 0 | K81: 1 | L81: 0 | M81: 1 | O81: 1 | P81: 8.75 | Q81: 1 | R81: 1 | S81: 1 | T81: 1 | U81: 1 | V81: 1 | W81: 1 | X81: 1 | Y81: 1 | Z81: 1 | AA81: 1 | AB81: 1 | AC81: 5.5 | AD81: 48.125 | AE81: 2011-05-25 | AF81: 2011-05-24
A82: DOI-10-162 | B82: Procedure for Protection of the MK57 Vertical Launch System (PVLS Compartments & MK57 Modules) | C82: Proc | D82: P | E82: 1.25 | F82: 0 | G82: 2 | H82: 0.02395209581 | I82: 3.5 | J82: 0 | K82: 1 | L82: 0 | M82: 1 | O82: 1 | P82: 8.75 | Q82: 1 | R82: 1 | S82: 1 | T82: 1 | U82: 1 | V82: 1 | W82: 1 | X82: 1 | Y82: 1 | Z82: 1 | AA82: 1 | AB82: 1 | AC82: 5.5 | AD82: 48.125 | AE82: 2014-11-01 | AF82: 2014-10-01 | AG82: 2014-09-01 | AH82: 2014-08-01 | AI82: 2014-07-01 | AJ82: 2014-06-01 | AK82: 2014-05-21 | AL82: 2014-04-08 | AM82: 2014-04-01 | AN82: 2014-03-12 | AO82: 2014-03-01 | AP82: 2014-02-01 | AQ82: 2014-01-01 | AR82: 2013-06-14 | AS82: 2013-05-28 | AT82: 2013-04-29 | AU82: 2013-03-04 | AV82: 2013-02-26 | AW82: 2013-01-25 | AX82: 2013-01-02 | AY82: 2012-05-08
A83: DOI-10-163 | B83: Inspection of Mil-Spec Manufactured Power and Lighting Panels | C83: Proc | D83: P | E83: 1.25 | F83: 0 | G83: 2 | H83: 0.02395209581 | I83: 3.5 | J83: 0 | K83: 1 | L83: 0 | M83: 1 | O83: 1 | P83: 8.75 | Q83: 1 | R83: 1 | S83: 1 | T83: 1 | U83: 1 | V83: 1 | W83: 1 | X83: 1 | Y83: 1 | Z83: 1 | AA83: 1 | AB83: 1 | AC83: 5.5 | AD83: 48.125 | AE83: 2012-05-24
A84: DOI-10-164 | B84: Temporary / Final Closure of Tanks, Voids, Cofferdams, Etc. | C84: Proc | D84: P | E84: 1.25 | F84: 12 | G84: 1.9 | H84: 0 | I84: 1 | J84: 0 | K84: 1 | L84: 0 | M84: 1 | O84: 1 | P84: 2.375 | Q84: 1 | R84: 1 | S84: 1 | T84: 1 | U84: 1 | V84: 1 | W84: 1 | X84: 1 | Y84: 1 | Z84: 1 | AA84: 1 | AB84: 1 | AC84: 5.5 | AD84: 13.0625 | AE84: 2013-06-21
A85: DOI-10-165 | B85: PROCEDURE FOR CRITICAL COATED AREA | C85: Proc | D85: P | E85: 1.25 | F85: 10 | G85: 1.9 | H85: 0.1111111111 | I85: 5 | J85: 0 | K85: 1 | L85: 0 | M85: 1 | O85: 1 | P85: 11.875 | Q85: 1 | R85: 1 | S85: 1 | T85: 1 | U85: 1 | V85: 1 | W85: 1 | X85: 1 | Y85: 1 | Z85: 1 | AA85: 1 | AB85: 1 | AC85: 5.5 | AD85: 65.3125 | AE85: 2014-02-01 | AF85: 2013-10-29 | AG85: 2013-09-04 | AH85: 2013-05-09 | AI85: 2013-04-30 | AJ85: 2010-07-20
A86: DOI-10-166 | B86: GALLEY DRIP PAN AND COAMING INSTALLATION AND TIGHTNESS TEST PROCEDURE | C86: Proc | D86: P | E86: 1.25 | F86: 0 | G86: 2 | H86: 0.1111111111 | I86: 5 | J86: 0 | K86: 1 | L86: 0 | M86: 1 | O86: 1 | P86: 12.5 | Q86: 1 | R86: 1 | S86: 1 | T86: 1 | U86: 1 | V86: 1 | W86: 1 | X86: 1 | Y86: 1 | Z86: 1 | AA86: 1 | AB86: 1 | AC86: 5.5 | AD86: 68.75 | AE86: 2010-06-30
A87: DOI-10-168 | B87: Compartment Trade Work Inspection Prior to Paint | C87: Proc | D87: P | E87: 1.25 | F87: 0 | G87: 2 | H87: 0.1111111111 | I87: 5 | J87: 0 | K87: 1 | L87: 0 | M87: 1 | O87: 1 | P87: 12.5 | Q87: 1 | R87: 1 | S87: 1 | T87: 1 | U87: 1 | V87: 1 | W87: 1 | X87: 1 | Y87: 1 | Z87: 1 | AA87: 1 | AB87: 1 | AC87: 5.5 | AD87: 68.75 | AE87: 2013-04-29 | AF87: 2012-12-06 | AG87: 2012-03-28 | AH87: 2011-10-27
A88: DOI-10-169 | B88: Resistance Testing of Grounded Piping in Hazarous Spaces | C88: Proc | D88: P | E88: 1.25 | F88: 0 | G88: 2 | H88: 0.1111111111 | I88: 5 | J88: 0 | K88: 1 | L88: 0 | M88: 1 | O88: 1 | P88: 12.5 | Q88: 1 | R88: 1 | S88: 1 | T88: 1 | U88: 1 | V88: 1 | W88: 1 | X88: 1 | Y88: 1 | Z88: 1 | AA88: 1 | AB88: 1 | AC88: 5.5 | AD88: 68.75 | AE88: 2014-09-03 | AF88: 2014-07-01
A89: DOI-10-176 | B89: Watertight Door, Hatches, Scuttles and manholdes Pressure Test (Shop Test) | C89: Proc | D89: P | E89: 1.25 | F89: 0 | G89: 2 | H89: 0.1111111111 | I89: 5 | J89: 0 | K89: 1 | L89: 0 | M89: 1 | O89: 1 | P89: 12.5 | Q89: 1 | R89: 1 | S89: 1 | T89: 1 | U89: 1 | V89: 1 | W89: 1 | X89: 1 | Y89: 1 | Z89: 1 | AA89: 1 | AB89: 1 | AC89: 5.5 | AD89: 68.75 | AE89: 2011-09-20 | AF89: 2010-09-17
A90: DOI-10-178 | B90: INSPECTION FOR PROPER HULL PROTECTION PRIOR TO BLAST AND PAINT OF THE UNDERWATER HULL | C90: Proc | D90: P | E90: 1.25 | F90: 0 | G90: 2 | H90: 0.1111111111 | I90: 5 | J90: 0 | K90: 1 | L90: 0 | M90: 1 | O90: 1 | P90: 12.5 | Q90: 1 | R90: 1 | S90: 1 | T90: 1 | U90: 1 | V90: 1 | W90: 1 | X90: 1 | Y90: 1 | Z90: 1 | AA90: 1 | AB90: 1 | AC90: 5.5 | AD90: 68.75
A91: DOI-10-179 | B91: ADVANCED INDUCTION MOTOR (AIM) RECEIPT INSTRUCTIONS AND PREVENTATIVE MAINTENANCE | C91: Proc | D91: P | E91: 1.25 | F91: 0 | G91: 2 | H91: 0.1111111111 | I91: 5 | J91: 0 | K91: 1 | L91: 0 | M91: 1 | O91: 1 | P91: 12.5 | Q91: 1 | R91: 1 | S91: 1 | T91: 1 | U91: 1 | V91: 1 | W91: 1 | X91: 1 | Y91: 1 | Z91: 1 | AA91: 1 | AB91: 1 | AC91: 5.5 | AD91: 68.75 | AE91: 2014-09-01 | AF91: 2014-03-01 | AG91: 2014-02-01 | AH91: 2013-11-22 | AI91: 2010-10-19
A92: DOI-10-180 | B92: PROCEDURE FOR FLUSHING AND CLEANING THE PROPULSION FRESH WATER SYSTEM | C92: Proc | D92: P | E92: 1.25 | F92: 0 | G92: 2 | H92: 0.1111111111 | I92: 5 | J92: 0 | K92: 1 | L92: 0 | M92: 1 | O92: 1 | P92: 12.5 | Q92: 1 | R92: 1 | S92: 1 | T92: 1 | U92: 1 | V92: 1 | W92: 1 | X92: 1 | Y92: 1 | Z92: 1 | AA92: 1 | AB92: 1 | AC92: 5.5 | AD92: 68.75 | AE92: 2013-01-17
A93: DOI-10-181 | B93: Protection of Electronic Modular Enclosures (EME) | C93: Proc | D93: P | E93: 1.25 | F93: 0 | G93: 2 | H93: 0.1111111111 | I93: 5 | J93: 0 | K93: 1 | L93: 0 | M93: 1 | O93: 1 | P93: 12.5 | Q93: 1 | R93: 1 | S93: 1 | T93: 1 | U93: 1 | V93: 1 | W93: 1 | X93: 1 | Y93: 1 | Z93: 1 | AA93: 1 | AB93: 1 | AC93: 5.5 | AD93: 68.75 | AE93: 2014-06-01 | AF93: 2012-04-24
A94: DOI-10-184 | B94: Procedure for Flushing and Cleaning Common Array Cooling System | C94: Proc | D94: P | E94: 1.25 | F94: 0 | G94: 2 | H94: 0.1111111111 | I94: 5 | J94: 0 | K94: 1 | L94: 0 | M94: 1 | O94: 1 | P94: 12.5 | Q94: 1 | R94: 1 | S94: 1 | T94: 1 | U94: 1 | V94: 1 | W94: 1 | X94: 1 | Y94: 1 | Z94: 1 | AA94: 1 | AB94: 1 | AC94: 5.5 | AD94: 68.75
A95: DOI-10-186 | B95: Procedure for Flushing and Cleaning High Pressure Water Mist Fire Extinguishing System | C95: Proc | D95: P | E95: 1.25 | F95: 0 | G95: 2 | H95: 0.1111111111 | I95: 5 | J95: 0 | K95: 1 | L95: 0 | M95: 1 | O95: 1 | P95: 12.5 | Q95: 1 | R95: 1 | S95: 1 | T95: 1 | U95: 1 | V95: 1 | W95: 1 | X95: 1 | Y95: 1 | Z95: 1 | AA95: 1 | AB95: 1 | AC95: 5.5 | AD95: 68.75
A96: DOI-10-188 | B96: Procedure for Material Substitutions | C96: Proc | D96: P | E96: 1.25 | F96: 0 | G96: 2 | H96: 0.1111111111 | I96: 5 | J96: 0 | K96: 1 | L96: 0 | M96: 1 | O96: 1 | P96: 12.5 | Q96: 1 | R96: 1 | S96: 1 | T96: 1 | U96: 1 | V96: 1 | W96: 1 | X96: 1 | Y96: 1 | Z96: 1 | AA96: 1 | AB96: 1 | AC96: 5.5 | AD96: 68.75
A97: DOI-10-189 | B97: Pre-Load Out Inspection of EME Compartments | C97: Proc | D97: P | E97: 1.25 | F97: 0 | G97: 2 | H97: 0.1111111111 | I97: 5 | J97: 0 | K97: 1 | L97: 0 | M97: 1 | O97: 1 | P97: 12.5 | Q97: 1 | R97: 1 | S97: 1 | T97: 1 | U97: 1 | V97: 1 | W97: 1 | X97: 1 | Y97: 1 | Z97: 1 | AA97: 1 | AB97: 1 | AC97: 5.5 | AD97: 68.75
A98: DOI-10-190 | B98: Storage & Transportation Requirements For Propulsion Shafting | C98: Proc | D98: P | E98: 1.25 | F98: 0 | G98: 2 | H98: 0.1111111111 | I98: 5 | J98: 0 | K98: 1 | L98: 0 | M98: 1 | O98: 1 | P98: 12.5 | Q98: 1 | R98: 1 | S98: 1 | T98: 1 | U98: 1 | V98: 1 | W98: 1 | X98: 1 | Y98: 1 | Z98: 1 | AA98: 1 | AB98: 1 | AC98: 5.5 | AD98: 68.75
A99: DOI-10-192 | B99: Care and Protection of the Composite Superstructure and Helicopter Hanger | C99: Proc | D99: P | E99: 1.25 | F99: 0 | G99: 2 | H99: 0.1111111111 | I99: 5 | J99: 0 | K99: 1 | L99: 0 | M99: 1 | O99: 1 | P99: 12.5 | Q99: 1 | R99: 1 | S99: 1 | T99: 1 | U99: 1 | V99: 1 | W99: 1 | X99: 1 | Y99: 1 | Z99: 1 | AA99: 1 | AB99: 1 | AC99: 5.5 | AD99: 68.75 | AE99: 2013-06-14
A100: DOI-10-193 | B100: Care and Protection of Passive Countermeasures System (PCMS) Material | C100: Proc | D100: P | E100: 1.25 | F100: 0 | G100: =VLOOKUP($F100,OBSWeight,2,TRUE) -> 2 | H100: 0.1111111111 | I100: 5 | J100: 0 | K100: 1 | L100: 0 | M100: 1 | O100: 1 | P100: 12.5 | Q100: 1 | R100: 1 | S100: 1 | T100: 1 | U100: 1 | V100: 1 | W100: 1 | X100: 1 | Y100: 1 | Z100: 1 | AA100: 1 | AB100: 1 | AC100: 5.5 | AD100: 68.75 | AE100: 2013-06-14
A101: DOI-10-195 | B101: Post Blast & Paint Hot Work Care & Protection | C101: Proc | D101: P | E101: 1.25 | F101: 0 | G101: 2 | H101: 0.1111111111 | I101: 5 | J101: 0 | K101: 1 | L101: 0 | M101: 1 | O101: 1 | P101: 12.5 | Q101: 1 | R101: 1 | S101: 1 | T101: 1 | U101: 1 | V101: 1 | W101: 1 | X101: 1 | Y101: 1 | Z101: 1 | AA101: 1 | AB101: 1 | AC101: 5.5 | AD101: 68.75
A102: DOI-10-196 | B102: Flooding Control Procedure | C102: Proc | D102: P | E102: 1.25 | F102: 0 | G102: 2 | H102: 0.1111111111 | I102: 5 | J102: 0 | K102: 1 | L102: 0 | M102: 1 | O102: 1 | P102: 12.5 | Q102: 1 | R102: 1 | S102: 1 | T102: 1 | U102: 1 | V102: 1 | W102: 1 | X102: 1 | Y102: 1 | Z102: 1 | AA102: 1 | AB102: 1 | AC102: 5.5 | AD102: 68.75
A103: DOI-10-197 | B103: Flushing Procedure for Gas Turbine Water Wash Systems Ã¢?? Supply Side | C103: Proc | D103: P | E103: 1.25 | F103: 0 | G103: 2 | H103: 0.1111111111 | I103: 5 | J103: 0 | K103: 1 | L103: 0 | M103: 1 | O103: 1 | P103: 12.5 | Q103: 1 | R103: 1 | S103: 1 | T103: 1 | U103: 1 | V103: 1 | W103: 1 | X103: 1 | Y103: 1 | Z103: 1 | AA103: 1 | AB103: 1 | AC103: 5.5 | AD103: 68.75
A104: DOI-10-198 | B104: Preventing Pre-Loading of Ship Stanchions | C104: Proc | D104: P | E104: 1.25 | F104: 0 | G104: 2 | H104: 0.1111111111 | I104: 5 | J104: 0 | K104: 1 | L104: 0 | M104: 1 | O104: 1 | P104: 12.5 | Q104: 1 | R104: 1 | S104: 1 | T104: 1 | U104: 1 | V104: 1 | W104: 1 | X104: 1 | Y104: 1 | Z104: 1 | AA104: 1 | AB104: 1 | AC104: 5.5 | AD104: 68.75
A105: DOI-10-199 | B105: Procedure for Marking and Handling of Government Property Removed from Ships and Units | C105: Proc | D105: P | E105: 1.25 | F105: 0 | G105: 2 | H105: 0.1111111111 | I105: 5 | J105: 0 | K105: 1 | L105: 0 | M105: 1 | O105: 1 | P105: 12.5 | Q105: 1 | R105: 1 | S105: 1 | T105: 1 | U105: 1 | V105: 1 | W105: 1 | X105: 1 | Y105: 1 | Z105: 1 | AA105: 1 | AB105: 1 | AC105: 5.5 | AD105: 68.75
A106: DOI-10-200 | B106: Care and Protection of Main Turbine Generator Termination Box | C106: Proc | D106: P | E106: 1.25 | F106: 0 | G106: 2 | H106: 0.1111111111 | I106: 5 | J106: 0 | K106: 1 | L106: 0 | M106: 1 | O106: 1 | P106: 12.5 | Q106: 1 | R106: 1 | S106: 1 | T106: 1 | U106: 1 | V106: 1 | W106: 1 | X106: 1 | Y106: 1 | Z106: 1 | AA106: 1 | AB106: 1 | AC106: 5.5 | AD106: 68.75
A107: DOI-11-102 | B107: Installation Procedure for PCMS Tile | C107: Proc | D107: P | E107: 1.25 | F107: 0 | G107: 2 | H107: 0.1111111111 | I107: 5 | J107: 0 | K107: 1 | L107: 0 | M107: 1 | O107: 1 | P107: 12.5 | Q107: 1 | R107: 1 | S107: 1 | T107: 1 | U107: 1 | V107: 1 | W107: 1 | X107: 1 | Y107: 1 | Z107: 1 | AA107: 1 | AB107: 1 | AC107: 5.5 | AD107: 68.75
A108: DOI-15-102 | B108: Cleaning Requirements for Pipe during Shop Fabrication and Post Installation | C108: Proc | D108: P | E108: 1.25 | F108: 0 | G108: 2 | H108: 0.1111111111 | I108: 5 | J108: 0 | K108: 1 | L108: 0 | M108: 1 | O108: 1 | P108: 12.5 | Q108: 1 | R108: 1 | S108: 1 | T108: 1 | U108: 1 | V108: 1 | W108: 1 | X108: 1 | Y108: 1 | Z108: 1 | AA108: 1 | AB108: 1 | AC108: 5.5 | AD108: 68.75
A109: DOI-15-105 | B109: PROCEDURE FOR VISUAL INSPECTION OF CLASS "P-2" PIPE JOINT (VT) | C109: Proc | D109: P | E109: 1.25 | F109: 0 | G109: 2 | H109: 0.1111111111 | I109: 5 | J109: 0 | K109: 1 | L109: 0 | M109: 1 | O109: 1 | P109: 12.5 | Q109: 1 | R109: 1 | S109: 1 | T109: 1 | U109: 1 | V109: 1 | W109: 1 | X109: 1 | Y109: 1 | Z109: 1 | AA109: 1 | AB109: 1 | AC109: 5.5 | AD109: 68.75
A110: DOI-15-106 | B110: PROCEDURE FOR MANUAL TORCH BRAZED PIPING SYSTEMS | C110: Proc | D110: P | E110: 1.25 | F110: 0 | G110: 2 | H110: 0.1111111111 | I110: 5 | J110: 0 | K110: 1 | L110: 0 | M110: 1 | O110: 1 | P110: 12.5 | Q110: 1 | R110: 1 | S110: 1 | T110: 1 | U110: 1 | V110: 1 | W110: 1 | X110: 1 | Y110: 1 | Z110: 1 | AA110: 1 | AB110: 1 | AC110: 5.5 | AD110: 68.75
A111: DOI-15-107 | B111: Procedure for Bending and Inspection of Pipe and Tubing | C111: Proc | D111: P | E111: 1.25 | F111: 0 | G111: 2 | H111: 0.1111111111 | I111: 5 | J111: 0 | K111: 1 | L111: 0 | M111: 1 | O111: 1 | P111: 12.5 | Q111: 1 | R111: 1 | S111: 1 | T111: 1 | U111: 1 | V111: 1 | W111: 1 | X111: 1 | Y111: 1 | Z111: 1 | AA111: 1 | AB111: 1 | AC111: 5.5 | AD111: 68.75 | AE111: 2011-03-03
A112: DOI-15-110 | B112: SHOP TEST OF HOSE ASSEMBLIES FOR RESILIENTLY MOUNTED EQUIPMENT | C112: Proc | D112: P | E112: 1.25 | F112: 4 | G112: 2 | H112: 0 | I112: 1 | J112: 0 | K112: 1 | L112: 0 | M112: 1 | O112: 1 | P112: 2.5 | Q112: 1 | R112: 1 | S112: 1 | T112: 1 | U112: 1 | V112: 1 | W112: 1 | X112: 1 | Y112: 1 | Z112: 1 | AA112: 1 | AB112: 1 | AC112: 5.5 | AD112: 13.75 | AE112: 2014-06-01 | AF112: 2013-06-28 | AG112: 2012-12-13 | AH112: 2012-09-14 | AI112: 2012-08-17 | AJ112: 2012-07-26 | AK112: 2012-06-15 | AL112: 2012-03-16 | AM112: 2011-09-30
A113: DOI-15-113 | B113: Installation Inspection of Degaussing & Catholic Protection Cable Conduits | C113: Proc | D113: P | E113: 1.25 | F113: 0 | G113: 2 | H113: 0 | I113: 1 | J113: 0 | K113: 1 | L113: 0 | M113: 1 | O113: 1 | P113: 2.5 | Q113: 1 | R113: 1 | S113: 1 | T113: 1 | U113: 1 | V113: 1 | W113: 1 | X113: 1 | Y113: 1 | Z113: 1 | AA113: 1 | AB113: 1 | AC113: 5.5 | AD113: 13.75
A114: DOI-16-005 | B114: INSP OF CLASS A-3 & A-4 NON-STRUCTUAL TANKS & CLASS P2 MANIFOLDS | C114: Proc | D114: P | E114: 1.25 | F114: 0 | G114: 2 | H114: 0 | I114: 1 | J114: 0 | K114: 1 | L114: 0 | M114: 1 | O114: 1 | P114: 2.5 | Q114: 1 | R114: 1 | S114: 1 | T114: 1 | U114: 1 | V114: 1 | W114: 1 | X114: 1 | Y114: 1 | Z114: 1 | AA114: 1 | AB114: 1 | AC114: 5.5 | AD114: 13.75
A115: DOI-16-100 | B115: Quality Inspection Process | C115: Proc | D115: P | E115: 1.25 | F115: 0 | G115: 2 | H115: 0 | I115: 1 | J115: 0 | K115: 1 | L115: 0 | M115: 1 | O115: 1 | P115: 2.5 | Q115: 1 | R115: 1 | S115: 1 | T115: 1 | U115: 1 | V115: 1 | W115: 1 | X115: 1 | Y115: 1 | Z115: 1 | AA115: 1 | AB115: 1 | AC115: 5.5 | AD115: 13.75 | AE115: 2009-12-30
A116: DOI-16-101 | B116: Dimensional Control of Ship Hull Structure Shipyard Areas 20 Through 65 | C116: Proc | D116: P | E116: 1.25 | F116: 0 | G116: 2 | H116: 0 | I116: 1 | J116: 0 | K116: 1 | L116: 0 | M116: 1 | O116: 1 | P116: 2.5 | Q116: 1 | R116: 1 | S116: 1 | T116: 1 | U116: 1 | V116: 1 | W116: 1 | X116: 1 | Y116: 1 | Z116: 1 | AA116: 1 | AB116: 1 | AC116: 5.5 | AD116: 13.75
A117: DOI-16-102 | B117: DIMENTIONAL CONTROL OF HULL STRUCTURE AT FABRICATION | C117: Proc | D117: P | E117: 1.25 | F117: 0 | G117: 2 | H117: 0 | I117: 1 | J117: 0 | K117: 1 | L117: 0 | M117: 1 | O117: 1 | P117: 2.5 | Q117: 1 | R117: 1 | S117: 1 | T117: 1 | U117: 1 | V117: 1 | W117: 1 | X117: 1 | Y117: 1 | Z117: 1 | AA117: 1 | AB117: 1 | AC117: 5.5 | AD117: 13.75
A118: DOI-16-103 | B118: Final Closure of Tanks, Voids, Cofferdams, Etc. | C118: Proc | D118: P | E118: 1.25 | F118: 0 | G118: 2 | H118: 0 | I118: 1 | J118: 0 | K118: 1 | L118: 0 | M118: 1 | O118: 1 | P118: 2.5 | Q118: 1 | R118: 1 | S118: 1 | T118: 1 | U118: 1 | V118: 1 | W118: 1 | X118: 1 | Y118: 1 | Z118: 1 | AA118: 1 | AB118: 1 | AC118: 5.5 | AD118: 13.75
A119: DOI-16-105 | B119: INSPECTION AND TEST OF SHOP FABRICATED TANKS AND COMPONENTS | C119: Proc | D119: P | E119: 1.25 | F119: 2 | G119: 2 | H119: 0 | I119: 1 | J119: 0 | K119: 1 | L119: 0 | M119: 1 | O119: 1 | P119: 2.5 | Q119: 1 | R119: 1 | S119: 1 | T119: 1 | U119: 1 | V119: 1 | W119: 1 | X119: 1 | Y119: 1 | Z119: 1 | AA119: 1 | AB119: 1 | AC119: 5.5 | AD119: 13.75
A120: DOI-16-106 | B120: Inspection of Piping Systems Installation | C120: Proc | D120: P | E120: 1.25 | F120: 0 | G120: 2 | H120: 0 | I120: 1 | J120: 0 | K120: 1 | L120: 0 | M120: 1 | O120: 1 | P120: 2.5 | Q120: 1 | R120: 1 | S120: 1 | T120: 1 | U120: 1 | V120: 1 | W120: 1 | X120: 1 | Y120: 1 | Z120: 1 | AA120: 1 | AB120: 1 | AC120: 5.5 | AD120: 13.75
A121: DOI-16-107 | B121: In-Process and Final Inspection of Hatches, Scuttles and Manholes during Fabrication | C121: Proc | D121: P | E121: 1.25 | F121: 0 | G121: 2 | H121: 0 | I121: 1 | J121: 0 | K121: 1 | L121: 0 | M121: 1 | O121: 1 | P121: 2.5 | Q121: 1 | R121: 1 | S121: 1 | T121: 1 | U121: 1 | V121: 1 | W121: 1 | X121: 1 | Y121: 1 | Z121: 1 | AA121: 1 | AB121: 1 | AC121: 5.5 | AD121: 13.75 | AE121: 2011-11-22 | AF121: 2010-11-23
A122: DOI-16-111 | B122: DIMENSIONAL CONTROL OF HULL STRUCTURE AT UNIT ERECTION | C122: Proc | D122: P | E122: 1.25 | F122: 0 | G122: 2 | H122: 0 | I122: 1 | J122: 0 | K122: 1 | L122: 0 | M122: 1 | O122: 1 | P122: 2.5 | Q122: 1 | R122: 1 | S122: 1 | T122: 1 | U122: 1 | V122: 1 | W122: 1 | X122: 1 | Y122: 1 | Z122: 1 | AA122: 1 | AB122: 1 | AC122: 5.5 | AD122: 13.75 | AE122: 2011-10-28
A123: DOI-16-112 | B123: INSPECTION OF KEEL CONDITION DURING ERECTION AND PRIOR TO LAUNCH | C123: Proc | D123: P | E123: 1.25 | F123: 0 | G123: 2 | H123: 0 | I123: 1 | J123: 0 | K123: 1 | L123: 0 | M123: 1 | O123: 1 | P123: 2.5 | Q123: 1 | R123: 1 | S123: 1 | T123: 1 | U123: 1 | V123: 1 | W123: 1 | X123: 1 | Y123: 1 | Z123: 1 | AA123: 1 | AB123: 1 | AC123: 5.5 | AD123: 13.75 | AE123: 2011-07-21
A124: DOI-19-104 | B124: Procedure for Cables Splicing/Repair | C124: Proc | D124: P | E124: 1.25 | F124: 0 | G124: 2 | H124: 0 | I124: 1 | J124: 0 | K124: 1 | L124: 0 | M124: 1 | O124: 1 | P124: 2.5 | Q124: 1 | R124: 1 | S124: 1 | T124: 1 | U124: 1 | V124: 1 | W124: 1 | X124: 1 | Y124: 1 | Z124: 1 | AA124: 1 | AB124: 1 | AC124: 5.5 | AD124: 13.75 | AE124: 2014-01-08 | AF124: 2014-01-06 | AG124: 2013-04-23 | AH124: 2013-04-09 | AI124: 2012-08-06 | AJ124: 2012-08-03
A125: DOI-19-106 | B125: Examination of Electrical Equipment Prior to Activation | C125: Proc | D125: P | E125: 1.25 | F125: 0 | G125: 2 | H125: 0 | I125: 1 | J125: 0 | K125: 1 | L125: 0 | M125: 1 | O125: 1 | P125: 2.5 | Q125: 1 | R125: 1 | S125: 1 | T125: 1 | U125: 1 | V125: 1 | W125: 1 | X125: 1 | Y125: 1 | Z125: 1 | AA125: 1 | AB125: 1 | AC125: 5.5 | AD125: 13.75
A126: DOI-19-108 | B126: Bonding, Grounding and Installation of Electronic TEMPEST Equipment | C126: Proc | D126: P | E126: 1.25 | F126: 0 | G126: 2 | H126: 0 | I126: 1 | J126: 0 | K126: 1 | L126: 0 | M126: 1 | O126: 1 | P126: 2.5 | Q126: 1 | R126: 1 | S126: 1 | T126: 1 | U126: 1 | V126: 1 | W126: 1 | X126: 1 | Y126: 1 | Z126: 1 | AA126: 1 | AB126: 1 | AC126: 5.5 | AD126: 13.75
A127: DOI-19-113 | B127: MONITORING THE OPERATION OF AUTOMATIC IMPRESSED CURRENT CATHODIC PROTECTION SYSTEMS | C127: Proc | D127: P | E127: 1.25 | F127: 0 | G127: 2 | H127: 0 | I127: 1 | J127: 0 | K127: 1 | L127: 0 | M127: 1 | O127: 1 | P127: 2.5 | Q127: 1 | R127: 1 | S127: 1 | T127: 1 | U127: 1 | V127: 1 | W127: 1 | X127: 1 | Y127: 1 | Z127: 1 | AA127: 1 | AB127: 1 | AC127: 5.5 | AD127: 13.75
A128: DOI-19-116 | B128: Procedure for Handling, Protection and Transportation of Electronics Equipment from Arrival until Installation | C128: Proc | D128: P | E128: 1.25 | F128: 0 | G128: 2 | H128: 0 | I128: 1 | J128: 0 | K128: 1 | L128: 0 | M128: 1 | O128: 1 | P128: 2.5 | Q128: 1 | R128: 1 | S128: 1 | T128: 1 | U128: 1 | V128: 1 | W128: 1 | X128: 1 | Y128: 1 | Z128: 1 | AA128: 1 | AB128: 1 | AC128: 5.5 | AD128: 13.75 | AE128: 2014-05-01
A129: DOI-19-118 | B129: INSPECTION AND TESTING OF FIBER OPTIC CABLE IN STROAGE | C129: Proc | D129: P | E129: 1.25 | F129: 0 | G129: 2 | H129: 0 | I129: 1 | J129: 0 | K129: 1 | L129: 0 | M129: 1 | O129: 1 | P129: 2.5 | Q129: 1 | R129: 1 | S129: 1 | T129: 1 | U129: 1 | V129: 1 | W129: 1 | X129: 1 | Y129: 1 | Z129: 1 | AA129: 1 | AB129: 1 | AC129: 5.5 | AD129: 13.75 | AE129: 2014-05-01 | AF129: 2014-01-07 | AG129: 2013-12-05 | AH129: 2013-11-19 | AI129: 2013-09-20 | AJ129: 2012-05-25
A130: DOI-19-122 | B130: Battery Maintenance | C130: Proc | D130: P | E130: 1.25 | F130: 0 | G130: 2 | H130: 0 | I130: 1 | J130: 0 | K130: 1 | L130: 0 | M130: 1 | O130: 1 | P130: 2.5 | Q130: 1 | R130: 1 | S130: 1 | T130: 1 | U130: 1 | V130: 1 | W130: 1 | X130: 1 | Y130: 1 | Z130: 1 | AA130: 1 | AB130: 1 | AC130: 5.5 | AD130: 13.75
A131: DOI-19-140 | B131: IPS Equipment Inspection | C131: Proc | D131: P | E131: 1.25 | F131: 21 | G131: 1.9 | H131: 0 | I131: 1 | J131: 0 | K131: 1 | L131: 0 | M131: 1 | O131: 1 | P131: 2.375 | Q131: 1 | R131: 1 | S131: 1 | T131: 1 | U131: 1 | V131: 1 | W131: 1 | X131: 1 | Y131: 1 | Z131: 1 | AA131: 1 | AB131: 1 | AC131: 5.5 | AD131: 13.0625 | AE131: 2013-03-25 | AF131: 2013-02-01
A132: DOI-19-141 | B132: Electrical Safety Approach for Shipboard System Activation | C132: Proc | D132: P | E132: 1.25 | F132: 0 | G132: =VLOOKUP($F132,OBSWeight,2,TRUE) -> 2 | H132: 0 | I132: 1 | J132: 0 | K132: 1 | L132: 0 | M132: 1 | O132: 1 | P132: 2.5 | Q132: 1 | R132: 1 | S132: 1 | T132: 1 | U132: 1 | V132: 1 | W132: 1 | X132: 1 | Y132: 1 | Z132: 1 | AA132: 1 | AB132: 1 | AC132: 5.5 | AD132: 13.75
A133: DOI-24-001 | B133: PURCHASING | C133: Proc | D133: P | E133: =IF($D133="M",2,IF($D133="C",1,IF($D133="P",1.25,IF($D133="S",1.5)))) -> 1.25 | F133: 1195 | G133: 1.1 | H133: 0 | I133: =GetRejectProbability("001-Document", H133) -> 1 | J133: =GetCARCountAttr("A","001-Document Review ", A133,I133) -> 0 | K133: =GetCARWeight("A",J133) -> 1 | L133: =GetCARCountAttr("B","001-Document Review ",A133,K133) -> 0 | M133: =GetCARWeight("B",L133) -> 1 | O133: =(K133+M133)/2 -> 1 | P133: =(E133*G133*I133)*O133 -> 1.375 | Q133: 1 | R133: 1 | S133: 1 | T133: 1 | U133: 1 | V133: =MAX($Q133,$R133,$S133,$T133,$U133) -> 1 | W133: 1 | X133: 1 | Y133: 1 | Z133: 1 | AA133: 1 | AB133: =MAX($W133,$X133,$Y133,$Z133,$AA133) -> 1 | AC133: =$V133*$AB133*$W$1 -> 5.5 | AD133: =P133*AC133 -> 7.5625
A134: DOI-26-101 | B134: Procedure for Assuring Virus Free Delivery of DDG 1000 Class Ships | C134: Proc | D134: P | E134: 1.25 | F134: 0 | G134: 2 | H134: 0 | I134: 1 | J134: 0 | K134: 1 | L134: 0 | M134: 1 | O134: 1 | P134: 2.5 | Q134: 1 | R134: 1 | S134: 1 | T134: 1 | U134: 1 | V134: 1 | W134: 1 | X134: 1 | Y134: 1 | Z134: 1 | AA134: 1 | AB134: 1 | AC134: 5.5 | AD134: 13.75
A135: DOI-27-109 | B135: Inspection Plan for the Application of Pre-Construction Primer (PCP) | C135: Proc | D135: P | E135: 1.25 | F135: 0 | G135: 2 | H135: 0 | I135: 1 | J135: 0 | K135: 1 | L135: 0 | M135: 1 | O135: 1 | P135: 2.5 | Q135: 1 | R135: 1 | S135: 1 | T135: 1 | U135: 1 | V135: 1 | W135: 1 | X135: 1 | Y135: 1 | Z135: 1 | AA135: 1 | AB135: 1 | AC135: 5.5 | AD135: 13.75
A136: DOI-40-102 | B136: Foundation Machining and Alignment Procedure for Weapons Systems | C136: Proc | D136: P | E136: 1.25 | F136: 0 | G136: 2 | H136: 0 | I136: 1 | J136: 0 | K136: 1 | L136: 0 | M136: 1 | O136: 1 | P136: 2.5 | Q136: 1 | R136: 1 | S136: 1 | T136: 1 | U136: 1 | V136: 1 | W136: 1 | X136: 1 | Y136: 1 | Z136: 1 | AA136: 1 | AB136: 1 | AC136: 5.5 | AD136: 13.75 | AE136: 2014-05-01 | AF136: 2013-07-05 | AG136: 2013-06-05 | AH136: 2013-05-23
A137: DOI-40-103 | B137: Procedure for Combat Systems Mechanical Alignment | C137: Proc | D137: P | E137: 1.25 | F137: 0 | G137: 2 | H137: 0 | I137: 1 | J137: 0 | K137: 1 | L137: 0 | M137: 1 | O137: 1 | P137: 2.5 | Q137: 1 | R137: 1 | S137: 1 | T137: 1 | U137: 1 | V137: 1 | W137: 1 | X137: 1 | Y137: 1 | Z137: 1 | AA137: 1 | AB137: 1 | AC137: 5.5 | AD137: 13.75 | AE137: 2014-09-26
A138: DOI-40-104 | B138: Flatness Critical Foundation Fabrication and Installation Procedure | C138: Proc | D138: P | E138: 1.25 | F138: 0 | G138: 2 | H138: 0 | I138: 1 | J138: 0 | K138: 1 | L138: 0 | M138: 1 | O138: 1 | P138: 2.5 | Q138: 1 | R138: 1 | S138: 1 | T138: 1 | U138: 1 | V138: 1 | W138: 1 | X138: 1 | Y138: 1 | Z138: 1 | AA138: 1 | AB138: 1 | AC138: 5.5 | AD138: 13.75
A139: DOI-40-105 | B139: Procedure for Establishing Reference Lines for Combat Systems Alignment | C139: Proc | D139: P | E139: 1.25 | F139: 0 | G139: 2 | H139: 0 | I139: 1 | J139: 0 | K139: 1 | L139: 0 | M139: 1 | O139: 1 | P139: 2.5 | Q139: 1 | R139: 1 | S139: 1 | T139: 1 | U139: 1 | V139: 1 | W139: 1 | X139: 1 | Y139: 1 | Z139: 1 | AA139: 1 | AB139: 1 | AC139: 5.5 | AD139: 13.75
A140: DOI-413-01 | B140: Control of Nonconforming Product | C140: Proc | D140: P | E140: 1.25 | F140: 0 | G140: 2 | H140: 0 | I140: 1 | J140: 0 | K140: 1 | L140: 0 | M140: 1 | O140: 1 | P140: 2.5 | Q140: 1 | R140: 1 | S140: 1 | T140: 1 | U140: 1 | V140: 1 | W140: 1 | X140: 1 | Y140: 1 | Z140: 1 | AA140: 1 | AB140: 1 | AC140: 5.5 | AD140: 13.75 | AE140: 2011-11-15
A141: DOI-414-01 | B141: Corrective/Preventive Action Program | C141: Proc | D141: P | E141: 1.25 | F141: 0 | G141: 2 | H141: 0 | I141: 1 | J141: 0 | K141: 1 | L141: 0 | M141: 1 | O141: 1 | P141: 2.5 | Q141: 1 | R141: 1 | S141: 1 | T141: 1 | U141: 1 | V141: 1 | W141: 1 | X141: 1 | Y141: 1 | Z141: 1 | AA141: 1 | AB141: 1 | AC141: 5.5 | AD141: 13.75
A142: DOI-416-01 | B142: Control of Quality Records | C142: Proc | D142: P | E142: 1.25 | F142: 0 | G142: 2 | H142: 0 | I142: 1 | J142: 0 | K142: 1 | L142: 0 | M142: 1 | O142: 1 | P142: 2.5 | Q142: 1 | R142: 1 | S142: 1 | T142: 1 | U142: 1 | V142: 1 | W142: 1 | X142: 1 | Y142: 1 | Z142: 1 | AA142: 1 | AB142: 1 | AC142: 5.5 | AD142: 13.75
A143: DOI-417-01 | B143: Quality Assurance Audit Program Plan | C143: Proc | D143: P | E143: 1.25 | F143: 0 | G143: 2 | H143: 0 | I143: 1 | J143: 0 | K143: 1 | L143: 0 | M143: 1 | O143: 1 | P143: 2.5 | Q143: 1 | R143: 1 | S143: 1 | T143: 1 | U143: 1 | V143: 1 | W143: 1 | X143: 1 | Y143: 1 | Z143: 1 | AA143: 1 | AB143: 1 | AC143: 5.5 | AD143: 13.75
A144: DOI-42-101 | B144: WELDING AND BRAZING PROCEDURE QUALIFICATION | C144: Proc | D144: P | E144: 1.25 | F144: 0 | G144: 2 | H144: 0 | I144: 1 | J144: 0 | K144: 1 | L144: 0 | M144: 1 | O144: 1 | P144: 2.5 | Q144: 1 | R144: 1 | S144: 1 | T144: 1 | U144: 1 | V144: 1 | W144: 1 | X144: 1 | Y144: 1 | Z144: 1 | AA144: 1 | AB144: 1 | AC144: 5.5 | AD144: 13.75
A145: DOI-42-102 | B145: VT Inspection Acceptance Criteria | C145: Proc | D145: P | E145: 1.25 | F145: 0 | G145: 2 | H145: 0 | I145: 1 | J145: 0 | K145: 1 | L145: 0 | M145: 1 | O145: 1 | P145: 2.5 | Q145: 1 | R145: 1 | S145: 1 | T145: 1 | U145: 1 | V145: 1 | W145: 1 | X145: 1 | Y145: 1 | Z145: 1 | AA145: 1 | AB145: 1 | AC145: 5.5 | AD145: 13.75
A146: DOI-42-103 | B146: Structural Workmanship Inspection Acceptance Criteria | C146: Proc | D146: P | E146: 1.25 | F146: 0 | G146: 2 | H146: 0 | I146: 1 | J146: 0 | K146: 1 | L146: 0 | M146: 1 | O146: 1 | P146: 2.5 | Q146: 1 | R146: 1 | S146: 1 | T146: 1 | U146: 1 | V146: 1 | W146: 1 | X146: 1 | Y146: 1 | Z146: 1 | AA146: 1 | AB146: 1 | AC146: 5.5 | AD146: 13.75 | AE146: 2010-08-20
A147: DOI-42-104 | B147: Training and Qualification Requirements for Visual Weld Inspections (VT) | C147: Proc | D147: P | E147: 1.25 | F147: 0 | G147: 2 | H147: 0 | I147: 1 | J147: 0 | K147: 1 | L147: 0 | M147: 1 | O147: 1 | P147: 2.5 | Q147: 1 | R147: 1 | S147: 1 | T147: 1 | U147: 1 | V147: 1 | W147: 1 | X147: 1 | Y147: 1 | Z147: 1 | AA147: 1 | AB147: 1 | AC147: 5.5 | AD147: 13.75
A148: DOI-42-105 | B148: Welding Practices | C148: Proc | D148: P | E148: 1.25 | F148: 0 | G148: 2 | H148: 0 | I148: 1 | J148: 0 | K148: 1 | L148: 0 | M148: 1 | O148: 1 | P148: 2.5 | Q148: 1 | R148: 1 | S148: 1 | T148: 1 | U148: 1 | V148: 1 | W148: 1 | X148: 1 | Y148: 1 | Z148: 1 | AA148: 1 | AB148: 1 | AC148: 5.5 | AD148: 13.75
A149: DOI-42-106 | B149: Inspection of Stud Welding | C149: Proc | D149: P | E149: 1.25 | F149: 0 | G149: 2 | H149: 0 | I149: 1 | J149: 0 | K149: 1 | L149: 0 | M149: 1 | O149: 1 | P149: 2.5 | Q149: 1 | R149: 1 | S149: 1 | T149: 1 | U149: 1 | V149: 1 | W149: 1 | X149: 1 | Y149: 1 | Z149: 1 | AA149: 1 | AB149: 1 | AC149: 5.5 | AD149: 13.75
A150: DOI-42-107 | B150: Welder and Welding Operator Qualification | C150: Proc | D150: P | E150: 1.25 | F150: 0 | G150: 2 | H150: 0 | I150: 1 | J150: 0 | K150: 1 | L150: 0 | M150: 1 | O150: 1 | P150: 2.5 | Q150: 1 | R150: 1 | S150: 1 | T150: 1 | U150: 1 | V150: 1 | W150: 1 | X150: 1 | Y150: 1 | Z150: 1 | AA150: 1 | AB150: 1 | AC150: 5.5 | AD150: 13.75
A151: DOI-42-108 | B151: Fabrication Requirements for Titanium (S-51 Material) | C151: Proc | D151: P | E151: 1.25 | F151: 0 | G151: 2 | H151: 0 | I151: 1 | J151: 0 | K151: 1 | L151: 0 | M151: 1 | O151: 1 | P151: 2.5 | Q151: 1 | R151: 1 | S151: 1 | T151: 1 | U151: 1 | V151: 1 | W151: 1 | X151: 1 | Y151: 1 | Z151: 1 | AA151: 1 | AB151: 1 | AC151: 5.5 | AD151: 13.75
A152: DOI-422-01 | B152: Inspection System | C152: Proc | D152: P | E152: 1.25 | F152: 0 | G152: 2 | H152: 0 | I152: 1 | J152: 0 | K152: 1 | L152: 0 | M152: 1 | O152: 1 | P152: 2.5 | Q152: 1 | R152: 1 | S152: 1 | T152: 1 | U152: 1 | V152: 1 | W152: 1 | X152: 1 | Y152: 1 | Z152: 1 | AA152: 1 | AB152: 1 | AC152: 5.5 | AD152: 13.75
A153: DOI-50-101 | B153: UNIT ERECTION | C153: Proc | D153: P | E153: 1.25 | F153: 0 | G153: 2 | H153: 0 | I153: 1 | J153: 0 | K153: 1 | L153: 0 | M153: 1 | O153: 1 | P153: 2.5 | Q153: 1 | R153: 1 | S153: 1 | T153: 1 | U153: 1 | V153: 1 | W153: 1 | X153: 1 | Y153: 1 | Z153: 1 | AA153: 1 | AB153: 1 | AC153: 5.5 | AD153: 13.75 | AE153: 2011-07-21
A154: DOI-50-103 | B154: FAIRNESS AND SMOOTHNESS INSPECTION OF CRITICAL UNDERWATER HULL STRUCTURE | C154: Proc | D154: P | E154: 1.25 | F154: 0 | G154: 2 | H154: 0 | I154: 1 | J154: 0 | K154: 1 | L154: 0 | M154: 1 | O154: 1 | P154: 2.5 | Q154: 1 | R154: 1 | S154: 1 | T154: 1 | U154: 1 | V154: 1 | W154: 1 | X154: 1 | Y154: 1 | Z154: 1 | AA154: 1 | AB154: 1 | AC154: 5.5 | AD154: 13.75
A155: DOI-50-107 | B155: Compartment/Tank Air Testing | C155: Proc | D155: P | E155: 1.25 | F155: 0 | G155: 2 | H155: 0 | I155: 1 | J155: 0 | K155: 1 | L155: 0 | M155: 1 | O155: 1 | P155: 2.5 | Q155: 1 | R155: 1 | S155: 1 | T155: 1 | U155: 1 | V155: 1 | W155: 1 | X155: 1 | Y155: 1 | Z155: 1 | AA155: 1 | AB155: 1 | AC155: 5.5 | AD155: 13.75 | AE155: 2013-07-10
A156: DOI-50-109 | B156: EXTERIOR HULL FAIRNESS | C156: Proc | D156: P | E156: 1.25 | F156: 0 | G156: 2 | H156: 0 | I156: 1 | J156: 0 | K156: 1 | L156: 0 | M156: 1 | O156: 1 | P156: 2.5 | Q156: 1 | R156: 1 | S156: 1 | T156: 1 | U156: 1 | V156: 1 | W156: 1 | X156: 1 | Y156: 1 | Z156: 1 | AA156: 1 | AB156: 1 | AC156: 5.5 | AD156: 13.75
A157: DOI-50-110 | B157: PROCEDURE FOR COMPLETION TESTING OF SEACHESTS AND OVERBOARD DISCHARGES | C157: Proc | D157: P | E157: 1.25 | F157: 0 | G157: 2 | H157: 0 | I157: 1 | J157: 0 | K157: 1 | L157: 0 | M157: 1 | O157: 1 | P157: 2.5 | Q157: 1 | R157: 1 | S157: 1 | T157: 1 | U157: 1 | V157: 1 | W157: 1 | X157: 1 | Y157: 1 | Z157: 1 | AA157: 1 | AB157: 1 | AC157: 5.5 | AD157: 13.75 | AE157: 2013-05-09
A158: DOI-83-102 | B158: CALIBRATION OF SUPPORT AND TEST EQUIPMENT | C158: Proc | D158: P | E158: 1.25 | F158: 0 | G158: 2 | H158: 0 | I158: 1 | J158: 0 | K158: 1 | L158: 0 | M158: 1 | O158: 1 | P158: 2.5 | Q158: 1 | R158: 1 | S158: 1 | T158: 1 | U158: 1 | V158: 1 | W158: 1 | X158: 1 | Y158: 1 | Z158: 1 | AA158: 1 | AB158: 1 | AC158: 5.5 | AD158: 13.75 | AE158: 2014-05-01
A159: DOI-91-010 | B159: Material Control (Handling & Storage) | C159: Proc | D159: P | E159: 1.25 | F159: 0 | G159: 2 | H159: 0 | I159: 1 | J159: 0 | K159: 1 | L159: 0 | M159: 1 | O159: 1 | P159: 2.5 | Q159: 1 | R159: 1 | S159: 1 | T159: 1 | U159: 1 | V159: 1 | W159: 1 | X159: 1 | Y159: 1 | Z159: 1 | AA159: 1 | AB159: 1 | AC159: 5.5 | AD159: 13.75
A160: DOI-91-101 | B160: BIW Trial Card System | C160: Proc | D160: P | E160: 1.25 | F160: 0 | G160: 2 | H160: 0 | I160: 1 | J160: 0 | K160: 1 | L160: 0 | M160: 1 | O160: 1 | P160: 2.5 | Q160: 1 | R160: 1 | S160: 1 | T160: 1 | U160: 1 | V160: 1 | W160: 1 | X160: 1 | Y160: 1 | Z160: 1 | AA160: 1 | AB160: 1 | AC160: 5.5 | AD160: 13.75
A161: DOI-91-102 | B161: RECEIPT INSPECTION OF PAINT | C161: Proc | D161: P | E161: 1.25 | F161: 0 | G161: 2 | H161: 0 | I161: 1 | J161: 0 | K161: 1 | L161: 0 | M161: 1 | O161: 1 | P161: 2.5 | Q161: 1 | R161: 1 | S161: 1 | T161: 1 | U161: 1 | V161: 1 | W161: 1 | X161: 1 | Y161: 1 | Z161: 1 | AA161: 1 | AB161: 1 | AC161: 5.5 | AD161: 13.75 | AE161: 2014-11-01 | AF161: 2013-05-06
A162: DOI-91-103 | B162: Material Control in Stockrooms and Storage Areas | C162: Proc | D162: P | E162: 1.25 | F162: 0 | G162: 2 | H162: 0 | I162: 1 | J162: 0 | K162: 1 | L162: 0 | M162: 1 | O162: 1 | P162: 2.5 | Q162: 1 | R162: 1 | S162: 1 | T162: 1 | U162: 1 | V162: 1 | W162: 1 | X162: 1 | Y162: 1 | Z162: 1 | AA162: 1 | AB162: 1 | AC162: 5.5 | AD162: 13.75
A163: DOI-91-104 | B163: Direct Put-a-way for Material | C163: Proc | D163: P | E163: 1.25 | F163: 0 | G163: 2 | H163: 0 | I163: 1 | J163: 0 | K163: 1 | L163: 0 | M163: 1 | O163: 1 | P163: 2.5 | Q163: 1 | R163: 1 | S163: 1 | T163: 1 | U163: 1 | V163: 1 | W163: 1 | X163: 1 | Y163: 1 | Z163: 1 | AA163: 1 | AB163: 1 | AC163: 5.5 | AD163: 13.75
A164: DOI-91-106 | B164: REMAKE WORK ORDER SYSTEM | C164: Proc | D164: P | E164: 1.25 | F164: 0 | G164: =VLOOKUP($F164,OBSWeight,2,TRUE) -> 2 | H164: 0 | I164: 1 | J164: 0 | K164: 1 | L164: 0 | M164: 1 | O164: 1 | P164: 2.5 | Q164: 1 | R164: 1 | S164: 1 | T164: 1 | U164: 1 | V164: 1 | W164: 1 | X164: 1 | Y164: 1 | Z164: 1 | AA164: 1 | AB164: 1 | AC164: 5.5 | AD164: 13.75
A165: DOI-91-109 | B165: PIER MANAGEMENT | C165: Proc | D165: P | E165: 1.25 | F165: 0 | G165: 2 | H165: 0 | I165: 1 | J165: 0 | K165: 1 | L165: 0 | M165: 1 | O165: 1 | P165: 2.5 | Q165: 1 | R165: 1 | S165: 1 | T165: 1 | U165: 1 | V165: 1 | W165: 1 | X165: 1 | Y165: 1 | Z165: 1 | AA165: 1 | AB165: 1 | AC165: 5.5 | AD165: 13.75
A166: DOI-91-122 | B166: MATERIAL REASSIGNMENT AFTER ISSUE | C166: Proc | D166: P | E166: 1.25 | F166: 0 | G166: 2 | H166: 0 | I166: 1 | J166: 0 | K166: 1 | L166: 0 | M166: 1 | O166: 1 | P166: 2.5 | Q166: 1 | R166: 1 | S166: 1 | T166: 1 | U166: 1 | V166: 1 | W166: 1 | X166: 1 | Y166: 1 | Z166: 1 | AA166: 1 | AB166: 1 | AC166: 5.5 | AD166: 13.75
A167: OP 6.2.2.1 (SUPSHIP) | B167: (SUPSHIP) Personnel Training and Certification of Nondestructive Personnel rev 4 | C167: Proc | D167: P | E167: 1.25 | F167: 0 | G167: 2 | H167: 0 | I167: 1 | J167: 0 | K167: 1 | L167: 0 | M167: 1 | O167: 1 | P167: 2.5 | Q167: 1 | R167: 1 | S167: 1 | T167: 1 | U167: 1 | V167: 1 | W167: 1 | X167: 1 | Y167: 1 | Z167: 1 | AA167: 1 | AB167: 1 | AC167: 5.5 | AD167: 13.75
A168: QA MANUAL | B168: QA MANUAL | C168: Proc | D168: P | E168: 1.25 | F168: 0 | G168: 2 | H168: 0 | I168: 1 | J168: 0 | K168: 1 | L168: 0 | M168: 1 | O168: 1 | P168: 2.5 | Q168: 1 | R168: 1 | S168: 1 | T168: 1 | U168: 1 | V168: 1 | W168: 1 | X168: 1 | Y168: 1 | Z168: 1 | AA168: 1 | AB168: 1 | AC168: 5.5 | AD168: 13.75 | AE168: 2012-10-03
A169: QP 405-01 | B169: CONTROL OF DOCUMENTS | C169: Proc | D169: P | E169: 1.25 | F169: 0 | G169: 2 | H169: 0 | I169: 1 | J169: 0 | K169: 1 | L169: 0 | M169: 1 | O169: 1 | P169: 2.5 | Q169: 1 | R169: 1 | S169: 1 | T169: 1 | U169: 1 | V169: 1 | W169: 1 | X169: 1 | Y169: 1 | Z169: 1 | AA169: 1 | AB169: 1 | AC169: 5.5 | AD169: 13.75
A170: QP 413-01 | B170: Control of Nonconforming Product | C170: Proc | D170: P | E170: 1.25 | F170: 0 | G170: 2 | H170: 0 | I170: 1 | J170: 0 | K170: 1 | L170: 0 | M170: 1 | O170: 1 | P170: 2.5 | Q170: 1 | R170: 1 | S170: 1 | T170: 1 | U170: 1 | V170: 1 | W170: 1 | X170: 1 | Y170: 1 | Z170: 1 | AA170: 1 | AB170: 1 | AC170: 5.5 | AD170: 13.75
A171: QP 414-01 | B171: Corrective/Preventive Action Program | C171: Proc | D171: P | E171: 1.25 | F171: 0 | G171: 2 | H171: 0 | I171: 1 | J171: 0 | K171: 1 | L171: 0 | M171: 1 | O171: 1 | P171: 2.5 | Q171: 1 | R171: 1 | S171: 1 | T171: 1 | U171: 1 | V171: 1 | W171: 1 | X171: 1 | Y171: 1 | Z171: 1 | AA171: 1 | AB171: 1 | AC171: 5.5 | AD171: 13.75
A172: QP 416-01 | B172: Control of Quality Records | C172: Proc | D172: P | E172: 1.25 | F172: 0 | G172: 2 | H172: 0 | I172: 1 | J172: 0 | K172: 1 | L172: 0 | M172: 1 | O172: 1 | P172: 2.5 | Q172: 1 | R172: 1 | S172: 1 | T172: 1 | U172: 1 | V172: 1 | W172: 1 | X172: 1 | Y172: 1 | Z172: 1 | AA172: 1 | AB172: 1 | AC172: 5.5 | AD172: 13.75
A173: QP-417-01 | B173: Quality Assurance Audit Program Plan | C173: Proc | D173: P | E173: 1.25 | F173: 0 | G173: 2 | H173: 0 | I173: 1 | J173: 0 | K173: 1 | L173: 0 | M173: 1 | O173: 1 | P173: 2.5 | Q173: 1 | R173: 1 | S173: 1 | T173: 1 | U173: 1 | V173: 1 | W173: 1 | X173: 1 | Y173: 1 | Z173: 1 | AA173: 1 | AB173: 1 | AC173: 5.5 | AD173: 13.75
A174: QP-422-01 | B174: Inspection System | C174: Proc | D174: P | E174: 1.25 | F174: 0 | G174: 2 | H174: 0 | I174: 1 | J174: 0 | K174: 1 | L174: 0 | M174: 1 | O174: 1 | P174: 2.5 | Q174: 1 | R174: 1 | S174: 1 | T174: 1 | U174: 1 | V174: 1 | W174: 1 | X174: 1 | Y174: 1 | Z174: 1 | AA174: 1 | AB174: 1 | AC174: 5.5 | AD174: 13.75
A175: SPM-EL-11 | B175: Gas Freeing and Hot Work Control on Vessels and Vessel Sections and Landside Spaces | C175: Proc | D175: P | E175: 1.25 | F175: 0 | G175: 2 | H175: 0 | I175: 1 | J175: 0 | K175: 1 | L175: 0 | M175: 1 | O175: 1 | P175: 2.5 | Q175: 1 | R175: 1 | S175: 1 | T175: 1 | U175: 1 | V175: 1 | W175: 1 | X175: 1 | Y175: 1 | Z175: 1 | AA175: 1 | AB175: 1 | AC175: 5.5 | AD175: 13.75
A176: SPM-EL-19 | B176: TEST & INSPECTION FOR THE FABRICATION AND INSTALLATION OF RE-USABLE LIFTING PADS | C176: Proc | D176: P | E176: 1.25 | F176: 0 | G176: 2 | H176: 0 | I176: 1 | J176: 0 | K176: 1 | L176: 0 | M176: 1 | O176: 1 | P176: 2.5 | Q176: 1 | R176: 1 | S176: 1 | T176: 1 | U176: 1 | V176: 1 | W176: 1 | X176: 1 | Y176: 1 | Z176: 1 | AA176: 1 | AB176: 1 | AC176: 5.5 | AD176: 13.75
A177: SPM-S-21 | B177: Lockout/Tags-Plus Requirements For Shipboard And Landside Applications | C177: Proc | D177: P | E177: 1.25 | F177: 0 | G177: 2 | H177: 0 | I177: 1 | J177: 0 | K177: 1 | L177: 0 | M177: 1 | O177: 1 | P177: 2.5 | Q177: 1 | R177: 1 | S177: 1 | T177: 1 | U177: 1 | V177: 1 | W177: 1 | X177: 1 | Y177: 1 | Z177: 1 | AA177: 1 | AB177: 1 | AC177: 5.5 | AD177: 13.75
A178: WE-20 | B178: Procedure for Welding and VT Inspection Surface Ship Hull Structure | C178: Proc | D178: P | E178: 1.25 | F178: 0 | G178: 2 | H178: 0 | I178: 1 | J178: 0 | K178: 1 | L178: 0 | M178: 1 | O178: 1 | P178: 2.5 | Q178: 1 | R178: 1 | S178: 1 | T178: 1 | U178: 1 | V178: 1 | W178: 1 | X178: 1 | Y178: 1 | Z178: 1 | AA178: 1 | AB178: 1 | AC178: 5.5 | AD178: 13.75 | AE178: 2011-03-02
A179: WE-21 | B179: Procedure for Welding and VT Inspection Pipe and Pressure Vessels | C179: Proc | D179: P | E179: 1.25 | F179: 0 | G179: 2 | H179: 0 | I179: 1 | J179: 0 | K179: 1 | L179: 0 | M179: 1 | O179: 1 | P179: 2.5 | Q179: 1 | R179: 1 | S179: 1 | T179: 1 | U179: 1 | V179: 1 | W179: 1 | X179: 1 | Y179: 1 | Z179: 1 | AA179: 1 | AB179: 1 | AC179: 5.5 | AD179: 13.75
A180: WE-VT-01 | B180: Written Practice for Control and Administration of VT Personnel, Training Examination and Certification | C180: Proc | D180: P | E180: 1.25 | F180: 0 | G180: 2 | H180: 0 | I180: 1 | J180: 0 | K180: 1 | L180: 0 | M180: 1 | O180: 1 | P180: 2.5 | Q180: 1 | R180: 1 | S180: 1 | T180: 1 | U180: 1 | V180: 1 | W180: 1 | X180: 1 | Y180: 1 | Z180: 1 | AA180: 1 | AB180: 1 | AC180: 5.5 | AD180: 13.75
P182: Prob of Quality Failure | Q182: Unlikely to occur [1.0] | R182: Unlikely to occur [1.0] | S182: Unlikely to occur [1.0] | T182: Unlikely to occur [1.0] | U182: Unlikely to occur [1.0] | W182: Unlikely to occur [1.0] | X182: Unlikely to occur [1.0] | Y182: Unlikely to occur [1.0] | Z182: Unlikely to occur [1.0] | AA182: Unlikely to occur [1.0]
A190: Total | B190: DOI List | C190: 0 | D190: =GetOversight("DOIList",180) -> P | E190: =IF($D190="M",2,IF($D190="C",1,IF($D190="P",1.25,IF($D190="S",1.5)))) -> 1.25 | F190: 109 | G190: =VLOOKUP($F190,OBSCheckListWeight,2,TRUE) -> 1.6 | H190: 0 | I190: =GetRejectProbability("[Prefix]", H190) -> 1 | J190: =GetCARCountCL("A","DOIList",I190) -> 0 | K190: =GetCARWeight("A",J190) -> 1 | L190: =GetCARCountCL("B","DOIList",K190) -> 0 | M190: =GetCARWeight("B",L190) -> 1 | O190: =(K190+M190)/2 -> 1 | P190: =(E190*G190*I190)*O190 -> 2 | Q190: =MAX(AF4:AF180) -> 41913 | R190: =MAX(AF4:AF180) -> 41913 | S190: =MAX(AF4:AF180) -> 41913 | T190: =MAX(AF4:AF180) -> 41913 | U190: =MAX(AF4:AF180) -> 41913 | V190: =MAX($Q190,$R190,$S190,$T190,$U190) -> 41913 | W190: =MAX(AF4:AF180) -> 41913 | X190: =MAX(AF4:AF180) -> 41913 | Y190: =MAX(AF4:AF180) -> 41913 | Z190: =MAX(AF4:AF180) -> 41913 | AA190: =MAX(AF4:AF180) -> 41913 | AB190: =MAX($W190,$X190,$Y190,$Z190,$AA190) -> 41913 | AC190: =$V190*$AB190*$W$1 -> 9661847630 | AD190: =P190*AC190 -> 19323695259

Sheet CARCount (hidden)
A1: CheckList | B1: AttributeNo | C1: CARType | D1: Key | E1: CLKey | F1: Count | G1: CLCount
A2: 003 | B2: 003-A3-PE-0025 | C2: B | D2: 003-003-A3-PE-0025-B | E2: 003-B | F2: 1 | G2: 1
A3: 003 | B3: 003-PE-0036 | C3: A | D3: 003-003-PE-0036-A | E3: 003-A | F3: 1 | G3: 1
A4: 005 | B4: 005-PE-0070 | C4: A | D4: 005-005-PE-0070-A | E4: 005-A | F4: 1 | G4: 7
A5: 005 | B5: 005-PE-0067 | C5: A | D5: 005-005-PE-0067-A | E5: 005-A | F5: 1
A6: 005 | B6: 005-PE-0065 | C6: A | D6: 005-005-PE-0065-A | E6: 005-A | F6: 3
A7: 005 | B7: 005-PE-0066 | C7: A | D7: 005-005-PE-0066-A | E7: 005-A | F7: 1
A8: 005 | B8: 005-PE-0071 | C8: A | D8: 005-005-PE-0071-A | E8: 005-A | F8: 1
A9: 005A | B9: 005A-PE-0076 | C9: B | D9: 005A-005A-PE-0076-B | E9: 005A-B | F9: 1 | G9: 1
A10: 014 | B10: 014-PVI-0128 | C10: A | D10: 014-014-PVI-0128-A | E10: 014-A | F10: 1 | G10: 1
A11: 019 | B11: 019-PVI-0198 | C11: A | D11: 019-019-PVI-0198-A | E11: 019-A | F11: 1 | G11: 1

Sheet 001-Document Review (hidden)
A1: Checklist Formulas | C1: M - Mandatory / Statutory S - Specification driven P - Builder Process C - Crew/Customer request | M1: Reviewed: | N1: 2009-08-01 | O1: =IF(NOW()-N1< 365,1,IF(NOW()-N1>545,2,1.5)) -> 2 | V1: Phase Factor | W1: =VLOOKUP(ShipPhase,ShipPhase!A2:B1000,2,FALSE) -> 5.5
B2: Process Details | C2: Governed by | D2: Oversight Requirements | E2: Necessity Modifier | F2: Total OBS | G2: OBS Weight | H2: Procedure Evaluation Reject Rate | I2: Reject Probability | J2: Method A Count | K2: Method A Weight | L2: Method B Count | M2: Method B Weight | N2: N/A | O2: CAR Average | P2: Probability of Quality Failure | Q2: Failure Affects | V2: Impact Modifier | W2: Severity of Failure | AB2: Severity Modifier | AC2: Severity Factor | AD2: Max Risk | AE2: Date
E3: =MAX(E4:E18) -> 1.5 | P3: =MAX(P4:P18) -> 3 | Q3: Personnel | R3: Vessel | S3: Milestone | T3: Schedule | U3: Cost | V3: =MAX(V4:V18) -> 1 | W3: SOLAS | X3: Mission Degrade | Y3: Significant Impact | Z3: Moderate Impact | AA3: Little Impact | AB3: =MAX(AB4:AB18) -> 1 | AC3: =V3*AB3*$W$1 -> 5.5 | AD3: =MAX(AD4:AD18) -> 16.5
A4: 001-DR-0001 | B4: Purpose Adequate | C4: Spec | D4: S | E4: =IF($D4="M",2,IF($D4="C",1,IF($D4="P",1.25,IF($D4="S",1.5)))) -> 1.5 | F4: 0 | G4: =VLOOKUP($F4,OBSWeight,2,TRUE) -> 2 | H4: 0 | I4: =GetRejectProbability("001-Document", H4) -> 1 | J4: =GetCARCountAttr("A","001-Document Review ", A4,I4) -> 0 | K4: =GetCARWeight("A",J4) -> 1 | L4: =GetCARCountAttr("B","001-Document Review ",A4,K4) -> 0 | M4: =GetCARWeight("B",L4) -> 1 | O4: =(K4+M4)/2 -> 1 | P4: =(E4*G4*I4)*O4 -> 3 | Q4: 1 | R4: 1 | S4: 1 | T4: 1 | U4: 1 | V4: =MAX($Q4,$R4,$S4,$T4,$U4) -> 1 | W4: 1 | X4: 1 | Y4: 1 | Z4: 1 | AA4: 1 | AB4: =MAX($W4,$X4,$Y4,$Z4,$AA4) -> 1 | AC4: =$V4*$AB4*$W$1 -> 5.5 | AD4: =P4*AC4 -> 16.5
A5: 001-DR-0002 | B5: Scope Adequate | C5: Spec | D5: S | E5: 1.5 | F5: 0 | G5: 2 | H5: 0 | I5: 1 | J5: 0 | K5: 1 | L5: 0 | M5: 1 | O5: 1 | P5: 3 | Q5: 1 | R5: 1 | S5: 1 | T5: 1 | U5: 1 | V5: 1 | W5: 1 | X5: 1 | Y5: 1 | Z5: 1 | AA5: 1 | AB5: 1 | AC5: 5.5 | AD5: 16.5
A6: 001-DR-0003 | B6: References Adequate | C6: Spec | D6: S | E6: 1.5 | F6: 0 | G6: 2 | H6: 0 | I6: 1 | J6: 0 | K6: 1 | L6: 0 | M6: 1 | O6: 1 | P6: 3 | Q6: 1 | R6: 1 | S6: 1 | T6: 1 | U6: 1 | V6: 1 | W6: 1 | X6: 1 | Y6: 1 | Z6: 1 | AA6: 1 | AB6: 1 | AC6: 5.5 | AD6: 16.5
A7: 001-DR-0004 | B7: Definitions Adequate | C7: Spec | D7: S | E7: 1.5 | F7: 0 | G7: 2 | H7: 0 | I7: 1 | J7: 0 | K7: 1 | L7: 0 | M7: 1 | O7: 1 | P7: 3 | Q7: 1 | R7: 1 | S7: 1 | T7: 1 | U7: 1 | V7: 1 | W7: 1 | X7: 1 | Y7: 1 | Z7: 1 | AA7: 1 | AB7: 1 | AC7: 5.5 | AD7: 16.5
A8: 001-DR-0005 | B8: Procedure Adequate | C8: Spec | D8: S | E8: 1.5 | F8: 0 | G8: 2 | H8: 0 | I8: 1 | J8: 0 | K8: 1 | L8: 0 | M8: 1 | O8: 1 | P8: 3 | Q8: 1 | R8: 1 | S8: 1 | T8: 1 | U8: 1 | V8: 1 | W8: 1 | X8: 1 | Y8: 1 | Z8: 1 | AA8: 1 | AB8: 1 | AC8: 5.5 | AD8: 16.5
A9: 001-DR-0006 | B9: Records Adequate | C9: Spec | D9: S | E9: 1.5 | F9: 0 | G9: 2 | H9: 0 | I9: 1 | J9: 0 | K9: 1 | L9: 0 | M9: 1 | O9: 1 | P9: 3 | Q9: 1 | R9: 1 | S9: 1 | T9: 1 | U9: 1 | V9: 1 | W9: 1 | X9: 1 | Y9: 1 | Z9: 1 | AA9: 1 | AB9: 1 | AC9: 5.5 | AD9: 16.5
A10: 001-DR-0007 | B10: Responsibilities Adequate | C10: Spec | D10: S | E10: 1.5 | F10: 0 | G10: 2 | H10: 0 | I10: 1 | J10: 0 | K10: 1 | L10: 0 | M10: 1 | O10: 1 | P10: 3 | Q10: 1 | R10: 1 | S10: 1 | T10: 1 | U10: 1 | V10: 1 | W10: 1 | X10: 1 | Y10: 1 | Z10: 1 | AA10: 1 | AB10: 1 | AC10: 5.5 | AD10: 16.5
A11: 001-DR-0008 | B11: Notification of inspection and /or Test Adequate | C11: Spec | D11: S | E11: 1.5 | F11: 0 | G11: 2 | H11: 0 | I11: 1 | J11: 0 | K11: 1 | L11: 0 | M11: 1 | O11: 1 | P11: 3 | Q11: 1 | R11: 1 | S11: 1 | T11: 1 | U11: 1 | V11: 1 | W11: 1 | X11: 1 | Y11: 1 | Z11: 1 | AA11: 1 | AB11: 1 | AC11: 5.5 | AD11: 16.5
A12: 001-DR-0009 | B12: Special Equipment or Process Required Adequate | C12: Spec | D12: S | E12: 1.5 | F12: 0 | G12: 2 | H12: 0 | I12: 1 | J12: 0 | K12: 1 | L12: 0 | M12: 1 | O12: 1 | P12: 3 | Q12: 1 | R12: 1 | S12: 1 | T12: 1 | U12: 1 | V12: 1 | W12: 1 | X12: 1 | Y12: 1 | Z12: 1 | AA12: 1 | AB12: 1 | AC12: 5.5 | AD12: 16.5
A13: 001-DR-0010 | B13: Special Personnel Qualifications Adequate | C13: Spec | D13: S | E13: 1.5 | F13: 0 | G13: 2 | H13: 0 | I13: 1 | J13: 0 | K13: 1 | L13: 0 | M13: 1 | O13: 1 | P13: 3 | Q13: 1 | R13: 1 | S13: 1 | T13: 1 | U13: 1 | V13: 1 | W13: 1 | X13: 1 | Y13: 1 | Z13: 1 | AA13: 1 | AB13: 1 | AC13: 5.5 | AD13: 16.5
A14: 001-DR-0011 | B14: Acceptance Standards | C14: Spec | D14: S | E14: 1.5 | F14: 0 | G14: 2 | H14: 0 | I14: 1 | J14: 0 | K14: 1 | L14: 0 | M14: 1 | O14: 1 | P14: 3 | Q14: 1 | R14: 1 | S14: 1 | T14: 1 | U14: 1 | V14: 1 | W14: 1 | X14: 1 | Y14: 1 | Z14: 1 | AA14: 1 | AB14: 1 | AC14: 5.5 | AD14: 16.5
A15: 001-DR-0012 | B15: Complies with source document/ contract tech requirement | C15: Spec | D15: S | E15: 1.5 | F15: 0 | G15: 2 | H15: 0 | I15: 1 | J15: 0 | K15: 1 | L15: 0 | M15: 1 | O15: 1 | P15: 3 | Q15: 1 | R15: 1 | S15: 1 | T15: 1 | U15: 1 | V15: 1 | W15: 1 | X15: 1 | Y15: 1 | Z15: 1 | AA15: 1 | AB15: 1 | AC15: 5.5 | AD15: 16.5
A16: 001-DR-0013 | B16: Provides for Corrective Action where Appropriate | C16: Spec | D16: S | E16: 1.5 | F16: 0 | G16: 2 | H16: 0 | I16: 1 | J16: 0 | K16: 1 | L16: 0 | M16: 1 | O16: 1 | P16: 3 | Q16: 1 | R16: 1 | S16: 1 | T16: 1 | U16: 1 | V16: 1 | W16: 1 | X16: 1 | Y16: 1 | Z16: 1 | AA16: 1 | AB16: 1 | AC16: 5.5 | AD16: 16.5
A17: 001-DR-0014 | B17: Safety Precautions Adequate where Appropriate | C17: Spec | D17: S | E17: 1.5 | F17: 0 | G17: 2 | H17: 0 | I17: 1 | J17: 0 | K17: 1 | L17: 0 | M17: 1 | O17: 1 | P17: 3 | Q17: 1 | R17: 1 | S17: 1 | T17: 1 | U17: 1 | V17: 1 | W17: 1 | X17: 1 | Y17: 1 | Z17: 1 | AA17: 1 | AB17: 1 | AC17: 5.5 | AD17: 16.5
A18: 001-DR-0015 | B18: DOI Cancelled | C18: Spec | D18: S | E18: 1.5 | F18: 0 | G18: 2 | H18: 0 | I18: 1 | J18: 0 | K18: 1 | L18: 0 | M18: 1 | O18: 1 | P18: 3 | Q18: 1 | R18: 1 | S18: 1 | T18: 1 | U18: 1 | V18: 1 | W18: 1 | X18: 1 | Y18: 1 | Z18: 1 | AA18: 1 | AB18: 1 | AC18: 5.5 | AD18: 16.5
P20: Prob of Quality Failure | Q20: Unlikely to occur [1.0] | R20: Unlikely to occur [1.0] | S20: Unlikely to occur [1.0] | T20: Unlikely to occur [1.0] | U20: Unlikely to occur [1.0] | W20: Unlikely to occur [1.0] | X20: Unlikely to occur [1.0] | Y20: Unlikely to occur [1.0] | Z20: Unlikely to occur [1.0] | AA20: Unlikely to occur [1.0]
C27: Reject
A28: Total | B28: 001-Document Review | C28: 0 | D28: =GetOversight("001-Document Review ",18) -> S | E28: =IF($D28="M",2,IF($D28="C",1,IF($D28="P",1.25,IF($D28="S",1.5)))) -> 1.5 | F28: 0 | G28: =VLOOKUP($F28,OBSCheckListWeight,2,TRUE) -> 2 | H28: =IF(F28>0,C28/F28,0) -> 0 | I28: =GetRejectProbability("001-Document", H28) -> 1 | J28: =GetCARCountCL("A","001-Document Review ",I28) -> 0 | K28: =GetCARWeight("A",J28) -> 1 | L28: =GetCARCountCL("B","001-Document Review ",K28) -> 0 | M28: =GetCARWeight("B",L28) -> 1 | O28: =(K28+M28)/2 -> 1 | P28: =(E28*G28*I28)*O28 -> 3 | Q28: =MAX(Q4:Q18) -> 1 | R28: =MAX(R4:R18) -> 1 | S28: =MAX(S4:S18) -> 1 | T28: =MAX(T4:T18) -> 1 | U28: =MAX(U4:U18) -> 1 | V28: =MAX($Q28,$R28,$S28,$T28,$U28) -> 1 | W28: =MAX(W4:W18) -> 1 | X28: =MAX(X4:X18) -> 1 | Y28: =MAX(Y4:Y18) -> 1 | Z28: =MAX(Z4:Z18) -> 1 | AA28: =MAX(AA4:AA18) -> 1 | AB28: =MAX($W28,$X28,$Y28,$Z28,$AA28) -> 1 | AC28: =$V28*$AB28*$W$1 -> 5.5 | AD28: =P28*AC28 -> 16.5

Sheet 003-TESTING (hidden)
A1: Checklist Formulas | C1: M - Mandatory / Statutory S - Specification driven P - Builder Process C - Crew/Customer request | M1: Reviewed: | N1: 2009-08-01 | O1: =IF(NOW()-N1< 365,1,IF(NOW()-N1>545,2,1.5)) -> 2 | V1: Phase Factor | W1: =VLOOKUP(ShipPhase,ShipPhase!A2:B1000,2,FALSE) -> 5.5
B2: Process Details | C2: Governed by | D2: Oversight Requirements | E2: Necessity Modifier | F2: Total OBS | G2: OBS Weight | H2: Procedure Evaluation Reject Rate | I2: Reject Probability | J2: Method A Count | K2: Method A Weight | L2: Method B Count | M2: Method B Weight | N2: N/A | O2: CAR Average | P2: Probability of Quality Failure | Q2: Failure Affects | V2: Impact Modifier | W2: Severity of Failure | AB2: Severity Modifier | AC2: Severity Factor | AD2: Max Risk | AE2: Date
E3: =MAX(E4:E30) -> 1.5 | P3: =MAX(P4:P30) -> 21 | Q3: Personnel | R3: Vessel | S3: Milestone | T3: Schedule | U3: Cost | V3: =MAX(V4:V30) -> 2.2 | W3: SOLAS | X3: Mission Degrade | Y3: Significant Impact | Z3: Moderate Impact | AA3: Little Impact | AB3: =MAX(AB4:AB30) -> 3 | AC3: =V3*AB3*$W$1 -> 36.3 | AD3: =MAX(AD4:AD30) -> 762.3
A4: 003-A0-PE-0022 | B4: Notification of Release of Compartment/Doors/Hatches/ Scuttles | C4: Spec | D4: S | E4: =IF($D4="M",2,IF($D4="C",1,IF($D4="P",1.25,IF($D4="S",1.5)))) -> 1.5 | F4: 0 | G4: =VLOOKUP($F4,OBSWeight,2,TRUE) -> 2 | H4: 0 | I4: =GetRejectProbability("003", H4) -> 1 | J4: =GetCARCountAttr("A","003-TESTING", A4,I4) -> 0 | K4: =GetCARWeight("A",J4) -> 1 | L4: =GetCARCountAttr("B","003-TESTING",A4,K4) -> 0 | M4: =GetCARWeight("B",L4) -> 1 | O4: =(K4+M4)/2 -> 1 | P4: =(E4*G4*I4)*O4 -> 3 | Q4: 2.2 | R4: 1.8 | S4: 1.8 | T4: 1.8 | U4: 2.2 | V4: =MAX($Q4,$R4,$S4,$T4,$U4) -> 2.2 | W4: 1.8 | X4: 1.4 | Y4: 1.8 | Z4: 1.4 | AA4: 1.4 | AB4: =MAX($W4,$X4,$Y4,$Z4,$AA4) -> 1.8 | AC4: =$V4*$AB4*$W$1 -> 21.78 | AD4: =P4*AC4 -> 65.34
A5: 003-A1-PE-0023 | B5: Notification of Previously Released Test That was Cancelled, Corrected or Duplicate | C5: Spec | D5: S | E5: 1.5 | F5: 22 | G5: 1.9 | H5: 0 | I5: 1 | J5: 0 | K5: 1 | L5: 0 | M5: 1 | O5: 1 | P5: 2.85 | Q5: 2.2 | R5: 1.8 | S5: 1.8 | T5: 1.8 | U5: 2.2 | V5: 2.2 | W5: 1.8 | X5: 1.4 | Y5: 1.8 | Z5: 1.4 | AA5: 1.4 | AB5: 1.8 | AC5: 21.78 | AD5: 62.073 | AE5: 2015-12-02
A6: 003-A2-PE-0024 | B6: Release Cancelled/Not Ready for Inspection | C6: Spec | D6: S | E6: 1.5 | F6: 10 | G6: 1.9 | H6: 0 | I6: 1 | J6: 0 | K6: 1 | L6: 0 | M6: 1 | O6: 1 | P6: 2.85 | Q6: 2.2 | R6: 1.8 | S6: 1.8 | T6: 1.8 | U6: 2.2 | V6: 2.2 | W6: 1.8 | X6: 1.4 | Y6: 1.8 | Z6: 1.4 | AA6: 1.4 | AB6: 1.8 | AC6: 21.78 | AD6: 62.073 | AE6: 2015-12-01
A7: 003-A3-PE-0025 | B7: Notification of Late Release | C7: Spec | D7: S | E7: 1.5 | F7: 8 | G7: 2 | H7: 0.125 | I7: 5 | J7: 0 | K7: 1 | L7: 1 | M7: 1.8 | O7: 1.4 | P7: 21 | Q7: 2.2 | R7: 1.8 | S7: 1.8 | T7: 1.8 | U7: 2.2 | V7: 2.2 | W7: 1.8 | X7: 1.4 | Y7: 3 | Z7: 1.4 | AA7: 1.4 | AB7: 3 | AC7: 36.3 | AD7: 762.3 | AE7: 2015-12-03
A8: 003-A4-PE-0026 | B8: Ongoing Test | C8: Spec | D8: S | E8: 1.5 | F8: 126 | G8: 1.6 | H8: 0 | I8: 1 | J8: 0 | K8: 1 | L8: 0 | M8: 1 | O8: 1 | P8: 2.4 | Q8: 2.2 | R8: 1.8 | S8: 1.8 | T8: 1.8 | U8: 2.2 | V8: 2.2 | W8: 1.8 | X8: 1.4 | Y8: 1.8 | Z8: 1.4 | AA8: 1.4 | AB8: 1.8 | AC8: 21.78 | AD8: 52.272 | AE8: 2015-12-03
A9: 003-A5-PE-0027 | B9: Test Correction | C9: Spec | D9: S | E9: 1.5 | F9: 5 | G9: 2 | H9: 0 | I9: 1 | J9: 0 | K9: 1 | L9: 0 | M9: 1 | O9: 1 | P9: 3 | Q9: 2.2 | R9: 1.8 | S9: 1.8 | T9: 1.8 | U9: 2.2 | V9: 2.2 | W9: 1.8 | X9: 1.4 | Y9: 1.8 | Z9: 1.4 | AA9: 1.4 | AB9: 1.8 | AC9: 21.78 | AD9: 65.34 | AE9: 2015-11-17
A10: 003-A6-PE-0028 | B10: Test/Inspection Outside Normal Working Hours | C10: Spec | D10: S | E10: 1.5 | F10: 5 | G10: 2 | H10: 0 | I10: 1 | J10: 0 | K10: 1 | L10: 0 | M10: 1 | O10: 1 | P10: 3 | Q10: 2.2 | R10: 1.8 | S10: 1.8 | T10: 1.8 | U10: 2.2 | V10: 2.2 | W10: 1.8 | X10: 1.4 | Y10: 1.8 | Z10: 1.4 | AA10: 1.4 | AB10: 1.8 | AC10: 21.78 | AD10: 65.34 | AE10: 2015-12-04
A11: 003-A7-PE-0029 | B11: Test/Inspection Not Witnessed Outside Normal Working Hours | C11: Spec | D11: S | E11: 1.5 | F11: 7 | G11: 2 | H11: 0 | I11: 1 | J11: 0 | K11: 1 | L11: 0 | M11: 1 | O11: 1 | P11: 3 | Q11: 2.2 | R11: 1.8 | S11: 1.8 | T11: 1.8 | U11: 2.2 | V11: 2.2 | W11: 1.8 | X11: 1.4 | Y11: 1.8 | Z11: 1.4 | AA11: 1.4 | AB11: 1.8 | AC11: 21.78 | AD11: 65.34 | AE11: 2015-11-13
A12: 003-A8-PE-0030 | B12: Notification for Release or Previously Rejected Release | C12: Spec | D12: S | E12: 1.5 | F12: 0 | G12: 2 | H12: 0 | I12: 1 | J12: 0 | K12: 1 | L12: 0 | M12: 1 | O12: 1 | P12: 3 | Q12: 2.2 | R12: 1.8 | S12: 1.8 | T12: 1.8 | U12: 2.2 | V12: 2.2 | W12: 1.8 | X12: 1.4 | Y12: 1.8 | Z12: 1.4 | AA12: 1.4 | AB12: 1.8 | AC12: 21.78 | AD12: 65.34
A13: 003-A9-PE-0031 | B13: Not Witnessed with Remarks | C13: Spec | D13: S | E13: 1.5 | F13: 14 | G13: 1.9 | H13: 0 | I13: 1 | J13: 0 | K13: 1 | L13: 0 | M13: 1 | O13: 1 | P13: 2.85 | Q13: 2.2 | R13: 1.8 | S13: 1.8 | T13: 1.8 | U13: 2.2 | V13: 2.2 | W13: 1.8 | X13: 1.4 | Y13: 1.8 | Z13: 1.4 | AA13: 1.4 | AB13: 1.8 | AC13: 21.78 | AD13: 62.073 | AE13: 2015-11-30
A14: 003-PE-0033 | B14: Procedure/ Instruction | C14: Spec | D14: S | E14: 1.5 | F14: 71 | G14: 1.7 | H14: 0 | I14: 1 | J14: 0 | K14: 1 | L14: 0 | M14: 1 | O14: 1 | P14: 2.55 | Q14: 2.2 | R14: 1.8 | S14: 1.8 | T14: 1.8 | U14: 2.2 | V14: 2.2 | W14: 1.8 | X14: 1.4 | Y14: 1.8 | Z14: 1.4 | AA14: 1.4 | AB14: 1.8 | AC14: 21.78 | AD14: 55.539 | AE14: 2015-12-04
A15: 003-PE-0034 | B15: Prerequisites | C15: Spec | D15: S | E15: 1.5 | F15: 75 | G15: 1.7 | H15: 0 | I15: 1 | J15: 0 | K15: 1 | L15: 0 | M15: 1 | O15: 1 | P15: 2.55 | Q15: 2.2 | R15: 1.8 | S15: 1.8 | T15: 1.8 | U15: 2.2 | V15: 2.2 | W15: 1.8 | X15: 1.4 | Y15: 1.8 | Z15: 1.4 | AA15: 1.4 | AB15: 1.8 | AC15: 21.78 | AD15: 55.539 | AE15: 2015-12-03
A16: 003-PE-0035 | B16: Calibration | C16: Spec | D16: S | E16: 1.5 | F16: 39 | G16: 1.8 | H16: 0 | I16: 1 | J16: 0 | K16: 1 | L16: 0 | M16: 1 | O16: 1 | P16: 2.7 | Q16: 2.2 | R16: 1.8 | S16: 1.8 | T16: 1.8 | U16: 2.2 | V16: 2.2 | W16: 1.8 | X16: 1.4 | Y16: 1.8 | Z16: 1.4 | AA16: 1.4 | AB16: 1.8 | AC16: 21.78 | AD16: 58.806 | AE16: 2015-12-02
A17: 003-PE-0036 | B17: Tolerance | C17: Spec | D17: S | E17: 1.5 | F17: 1185 | G17: 1.1 | H17: 0.0008438818565 | I17: 2 | J17: 1 | K17: 1.5 | L17: 0 | M17: 1 | O17: 1.25 | P17: 4.125 | Q17: 2.2 | R17: 1.8 | S17: 1.8 | T17: 1.8 | U17: 2.2 | V17: 2.2 | W17: 1.8 | X17: 1.4 | Y17: 1.8 | Z17: 1.4 | AA17: 1.4 | AB17: 1.8 | AC17: 21.78 | AD17: 89.8425 | AE17: 2015-12-04
A18: 003-PE-0037 | B18: Inspection (Recorded) | C18: Spec | D18: S | E18: 1.5 | F18: 64 | G18: 1.7 | H18: 0 | I18: 1 | J18: 0 | K18: 1 | L18: 0 | M18: 1 | O18: 1 | P18: 2.55 | Q18: 2.2 | R18: 1.8 | S18: 1.8 | T18: 1.8 | U18: 2.2 | V18: 2.2 | W18: 1.8 | X18: 1.4 | Y18: 1.8 | Z18: 1.4 | AA18: 1.4 | AB18: 1.8 | AC18: 21.78 | AD18: 55.539 | AE18: 2015-12-04
A19: 003-PE-0038 | B19: Safety | C19: Spec | D19: S | E19: 1.5 | F19: 45 | G19: 1.8 | H19: 0 | I19: 1 | J19: 0 | K19: 1 | L19: 0 | M19: 1 | O19: 1 | P19: 2.7 | Q19: 2.2 | R19: 1.8 | S19: 1.8 | T19: 1.8 | U19: 2.2 | V19: 2.2 | W19: 1.8 | X19: 1.4 | Y19: 1.8 | Z19: 1.4 | AA19: 1.4 | AB19: 1.8 | AC19: 21.78 | AD19: 58.806 | AE19: 2015-12-04
A20: 003-PE-0039 | B20: Q.A. | C20: Spec | D20: S | E20: 1.5 | F20: 28 | G20: 1.9 | H20: 0 | I20: 1 | J20: 0 | K20: 1 | L20: 0 | M20: 1 | O20: 1 | P20: 2.85 | Q20: 2.2 | R20: 1.8 | S20: 1.8 | T20: 1.8 | U20: 2.2 | V20: 2.2 | W20: 1.8 | X20: 1.4 | Y20: 1.8 | Z20: 1.4 | AA20: 1.4 | AB20: 1.8 | AC20: 21.78 | AD20: 62.073 | AE20: 2015-12-02
A21: 003-PE-0040 | B21: Equipment (Test) | C21: Spec | D21: S | E21: 1.5 | F21: 46 | G21: 1.8 | H21: 0 | I21: 1 | J21: 0 | K21: 1 | L21: 0 | M21: 1 | O21: 1 | P21: 2.7 | Q21: 2.2 | R21: 1.8 | S21: 1.8 | T21: 1.8 | U21: 2.2 | V21: 2.2 | W21: 1.8 | X21: 1.4 | Y21: 1.8 | Z21: 1.4 | AA21: 1.4 | AB21: 1.8 | AC21: 21.78 | AD21: 58.806 | AE21: 2015-12-02
A22: 003-PE-0041 | B22: Missed I & I Items | C22: Spec | D22: S | E22: 1.5 | F22: 0 | G22: 2 | H22: 0 | I22: 1 | J22: 0 | K22: 1 | L22: 0 | M22: 1 | O22: 1 | P22: 3 | Q22: 2.2 | R22: 1.8 | S22: 1.8 | T22: 1.8 | U22: 2.2 | V22: 2.2 | W22: 1.8 | X22: 1.4 | Y22: 1.8 | Z22: 1.4 | AA22: 1.4 | AB22: 1.8 | AC22: 21.78 | AD22: 65.34
A23: 003-PE-0042 | B23: Compartment Tightness Testing | C23: Spec | D23: S | E23: 1.5 | F23: 0 | G23: 2 | H23: 0 | I23: 1 | J23: 0 | K23: 1 | L23: 0 | M23: 1 | O23: 1 | P23: 3 | Q23: 2.2 | R23: 1.8 | S23: 1.8 | T23: 1.8 | U23: 2.2 | V23: 2.2 | W23: 1.8 | X23: 1.4 | Y23: 1.8 | Z23: 1.4 | AA23: 1.4 | AB23: 1.8 | AC23: 21.78 | AD23: 65.34
A24: 003-PE-0043 | B24: Test Change Proposal: Primary Reviewer CDRL Test Review | C24: Spec | D24: S | E24: 1.5 | F24: 1 | G24: 2 | H24: 0 | I24: 1 | J24: 0 | K24: 1 | L24: 0 | M24: 1 | O24: 1 | P24: 3 | Q24: 2.2 | R24: 1.8 | S24: 1.8 | T24: 1.8 | U24: 2.2 | V24: 2.2 | W24: 1.8 | X24: 1.4 | Y24: 1.8 | Z24: 1.4 | AA24: 1.4 | AB24: 1.8 | AC24: 21.78 | AD24: 65.34 | AE24: 2015-11-10
A25: 003-PE-0044 | B25: Test Change Proposal: Secondary Reviewer CDRL Test Review | C25: Spec | D25: S | E25: 1.5 | F25: 1 | G25: 2 | H25: 0 | I25: 1 | J25: 0 | K25: 1 | L25: 0 | M25: 1 | O25: 1 | P25: 3 | Q25: 2.2 | R25: 1.8 | S25: 1.8 | T25: 1.8 | U25: 2.2 | V25: 2.2 | W25: 1.8 | X25: 1.4 | Y25: 1.8 | Z25: 1.4 | AA25: 1.4 | AB25: 1.8 | AC25: 21.78 | AD25: 65.34 | AE25: 2015-11-13
A26: 003-PE-0045 | B26: New Test Procedure: Primary Reviewer for CDRL Review | C26: Spec | D26: S | E26: 1.5 | F26: 1 | G26: 2 | H26: 0 | I26: 1 | J26: 0 | K26: 1 | L26: 0 | M26: 1 | O26: 1 | P26: 3 | Q26: 2.2 | R26: 1.8 | S26: 1.8 | T26: 1.8 | U26: 2.2 | V26: 2.2 | W26: 1.8 | X26: 1.4 | Y26: 1.8 | Z26: 1.4 | AA26: 1.4 | AB26: 1.8 | AC26: 21.78 | AD26: 65.34 | AE26: 2015-11-20
A27: 003-PE-0046 | B27: New Test Procedure: Secondary Reviewer for CDRL Review | C27: Spec | D27: S | E27: 1.5 | F27: 4 | G27: 2 | H27: 0 | I27: 1 | J27: 0 | K27: 1 | L27: 0 | M27: 1 | O27: 1 | P27: 3 | Q27: 2.2 | R27: 1.8 | S27: 1.8 | T27: 1.8 | U27: 2.2 | V27: 2.2 | W27: 1.8 | X27: 1.4 | Y27: 1.8 | Z27: 1.4 | AA27: 1.4 | AB27: 1.8 | AC27: 21.78 | AD27: 65.34 | AE27: 2015-11-20
A28: 003-PE-0047 | B28: Completed Test: Primary Reviewer for CDRL Review | C28: Spec | D28: S | E28: 1.5 | F28: 2 | G28: 2 | H28: 0 | I28: 1 | J28: 0 | K28: 1 | L28: 0 | M28: 1 | O28: 1 | P28: 3 | Q28: 2.2 | R28: 1.8 | S28: 1.8 | T28: 1.8 | U28: 2.2 | V28: 2.2 | W28: 1.8 | X28: 1.4 | Y28: 1.8 | Z28: 1.4 | AA28: 1.4 | AB28: 1.8 | AC28: 21.78 | AD28: 65.34 | AE28: 2015-12-01
A29: 003-PE-0048 | B29: Completed Test: Secondary Reviewer for CDRL Review | C29: Spec | D29: S | E29: 1.5 | F29: 1 | G29: 2 | H29: 0 | I29: 1 | J29: 0 | K29: 1 | L29: 0 | M29: 1 | O29: 1 | P29: 3 | Q29: 2.2 | R29: 1.8 | S29: 1.8 | T29: 1.8 | U29: 2.2 | V29: 2.2 | W29: 1.8 | X29: 1.4 | Y29: 1.8 | Z29: 1.4 | AA29: 1.4 | AB29: 1.8 | AC29: 21.78 | AD29: 65.34 | AE29: 2015-11-10
A30: 003-Z-Z-0032 | B30: Quick OBS | C30: Spec | D30: S | E30: 1.5 | F30: 0 | G30: 2 | H30: 0 | I30: 1 | J30: 0 | K30: 1 | L30: 0 | M30: 1 | O30: 1 | P30: 3 | Q30: 2.2 | R30: 1.8 | S30: 1.8 | T30: 1.8 | U30: 2.2 | V30: 2.2 | W30: 1.8 | X30: 1.4 | Y30: 1.8 | Z30: 1.4 | AA30: 1.4 | AB30: 1.8 | AC30: 21.78 | AD30: 65.34
P32: Prob of Quality Failure | Q32: Unlikely to occur [1.0] | R32: Unlikely to occur [1.0] | S32: Unlikely to occur [1.0] | T32: Unlikely to occur [1.0] | U32: Unlikely to occur [1.0] | W32: Unlikely to occur [1.0] | X32: Unlikely to occur [1.0] | Y32: Unlikely to occur [1.0] | Z32: Unlikely to occur [1.0] | AA32: Unlikely to occur [1.0]
C39: Reject
A40: Total | B40: 003-TESTING | C40: 2 | D40: =GetOversight("003-TESTING",30) -> S | E40: =IF($D40="M",2,IF($D40="C",1,IF($D40="P",1.25,IF($D40="S",1.5)))) -> 1.5 | F40: 1760 | G40: =VLOOKUP($F40,OBSCheckListWeight,2,TRUE) -> 1.1 | H40: =IF(F40>0,C40/F40,0) -> 0.001136363636 | I40: =GetRejectProbability("003", H40) -> 2 | J40: =GetCARCountCL("A","003-TESTING",I40) -> 1 | K40: =GetCARWeight("A",J40) -> 1.5 | L40: =GetCARCountCL("B","003-TESTING",K40) -> 1 | M40: =GetCARWeight("B",L40) -> 1.8 | O40: =(K40+M40)/2 -> 1.65 | P40: =(E40*G40*I40)*O40 -> 5.445 | Q40: =MAX(Q4:Q30) -> 2.2 | R40: =MAX(R4:R30) -> 1.8 | S40: =MAX(S4:S30) -> 1.8 | T40: =MAX(T4:T30) -> 1.8 | U40: =MAX(U4:U30) -> 2.2 | V40: =MAX($Q40,$R40,$S40,$T40,$U40) -> 2.2 | W40: =MAX(W4:W30) -> 1.8 | X40: =MAX(X4:X30) -> 1.4 | Y40: =MAX(Y4:Y30) -> 3 | Z40: =MAX(Z4:Z30) -> 1.4 | AA40: =MAX(AA4:AA30) -> 1.4 | AB40: =MAX($W40,$X40,$Y40,$Z40,$AA40) -> 3 | AC40: =$V40*$AB40*$W$1 -> 36.3 | AD40: =P40*AC40 -> 197.6535

Sheet 004-Hull Fairness (hidden)
A1: Checklist Formulas | C1: M - Mandatory / Statutory S - Specification driven P - Builder Process C - Crew/Customer request | M1: Reviewed: | N1: 2009-08-01 | O1: =IF(NOW()-N1< 365,1,IF(NOW()-N1>545,2,1.5)) -> 2 | V1: Phase Factor | W1: =VLOOKUP(ShipPhase,ShipPhase!A2:B1000,2,FALSE) -> 5.5
B2: Process Details | C2: Governed by | D2: Oversight Requirements | E2: Necessity Modifier | F2: Total OBS | G2: OBS Weight | H2: Procedure Evaluation Reject Rate | I2: Reject Probability | J2: Method A Count | K2: Method A Weight | L2: Method B Count | M2: Method B Weight | N2: N/A | O2: CAR Average | P2: Probability of Quality Failure | Q2: Failure Affects | V2: Impact Modifier | W2: Severity of Failure | AB2: Severity Modifier | AC2: Severity Factor | AD2: Max Risk | AE2: Date
E3: =MAX(E4:E19) -> 1.5 | P3: =MAX(P4:P19) -> 10.5 | Q3: Personnel | R3: Vessel | S3: Milestone | T3: Schedule | U3: Cost | V3: =MAX(V4:V19) -> 3 | W3: SOLAS | X3: Mission Degrade | Y3: Significant Impact | Z3: Moderate Impact | AA3: Little Impact | AB3: =MAX(AB4:AB19) -> 3 | AC3: =V3*AB3*$W$1 -> 49.5 | AD3: =MAX(AD4:AD19) -> 519.75
A4: 003-Z-Z-0032 | B4: Quick OBS | C4: Spec | D4: S | E4: =IF($D4="M",2,IF($D4="C",1,IF($D4="P",1.25,IF($D4="S",1.5)))) -> 1.5 | F4: 0 | G4: =VLOOKUP($F4,OBSWeight,2,TRUE) -> 2 | H4: 0 | I4: =GetRejectProbability("004-Hull", H4) -> 1 | J4: =GetCARCountAttr("A","004-Hull Fairness", A4,I4) -> 0 | K4: =GetCARWeight("A",J4) -> 1 | L4: =GetCARCountAttr("B","004-Hull Fairness",A4,K4) -> 0 | M4: =GetCARWeight("B",L4) -> 1 | O4: =(K4+M4)/2 -> 1 | P4: =(E4*G4*I4)*O4 -> 3 | Q4: 1.8 | R4: 2.2 | S4: 3 | T4: 1 | U4: 2.2 | V4: =MAX($Q4,$R4,$S4,$T4,$U4) -> 3 | W4: 2.6 | X4: 1.4 | Y4: 2.6 | Z4: 2.6 | AA4: 3 | AB4: =MAX($W4,$X4,$Y4,$Z4,$AA4) -> 3 | AC4: =$V4*$AB4*$W$1 -> 49.5 | AD4: =P4*AC4 -> 148.5
A5: 004-PVI-0049 | B5: Local Flatness Below 01 Level | C5: Spec | D5: S | E5: 1.5 | F5: 0 | G5: 2 | H5: 0 | I5: 1 | J5: 0 | K5: 1 | L5: 0 | M5: 1 | O5: 1 | P5: 3 | Q5: 1.8 | R5: 2.2 | S5: 3 | T5: 1 | U5: 2.2 | V5: 3 | W5: 2.6 | X5: 1.4 | Y5: 2.6 | Z5: 2.6 | AA5: 3 | AB5: 3 | AC5: 49.5 | AD5: 148.5
A6: 004-PVI-0050 | B6: Weld Fariness | C6: Spec | D6: S | E6: 1.5 | F6: 0 | G6: 2 | H6: 0 | I6: 1 | J6: 0 | K6: 1 | L6: 0 | M6: 1 | O6: 1 | P6: 3 | Q6: 1.8 | R6: 2.2 | S6: 3 | T6: 1 | U6: 2.2 | V6: 3 | W6: 2.6 | X6: 1.4 | Y6: 2.6 | Z6: 2.6 | AA6: 3 | AB6: 3 | AC6: 49.5 | AD6: 148.5
A7: 004-PVI-0051 | B7: Local Flatness Above 01 Level | C7: Spec | D7: S | E7: 1.5 | F7: 200 | G7: 1.4 | H7: =87/200 -> 0.435 | I7: 5 | J7: 0 | K7: 1 | L7: 0 | M7: 1 | O7: 1 | P7: 10.5 | Q7: 1.8 | R7: 2.2 | S7: 3 | T7: 1 | U7: 2.2 | V7: 3 | W7: 2.6 | X7: 1.4 | Y7: 2.6 | Z7: 2.6 | AA7: 3 | AB7: 3 | AC7: 49.5 | AD7: 519.75
A8: 004-PVI-0052 | B8: Vertical Weld Fairness | C8: Spec | D8: S | E8: 1.5 | F8: 0 | G8: 2 | H8: 0 | I8: 1 | J8: 0 | K8: 1 | L8: 0 | M8: 1 | O8: 1 | P8: 3 | Q8: 1.8 | R8: 2.2 | S8: 3 | T8: 1 | U8: 2.2 | V8: 3 | W8: 2.6 | X8: 1.4 | Y8: 2.6 | Z8: 2.6 | AA8: 3 | AB8: 3 | AC8: 49.5 | AD8: 148.5
A9: 004-PVI-0053 | B9: Horizontal Weld Fariness | C9: Spec | D9: S | E9: 1.5 | F9: 0 | G9: 2 | H9: 0 | I9: 1 | J9: 0 | K9: 1 | L9: 0 | M9: 1 | O9: 1 | P9: 3 | Q9: 1.8 | R9: 2.2 | S9: 3 | T9: 1 | U9: 2.2 | V9: 3 | W9: 2.6 | X9: 1.4 | Y9: 2.6 | Z9: 2.6 | AA9: 3 | AB9: 3 | AC9: 49.5 | AD9: 148.5
A10: 004-PVI-0054 | B10: Verify Radii to Design | C10: Spec | D10: S | E10: 1.5 | F10: 0 | G10: 2 | H10: 0 | I10: 1 | J10: 0 | K10: 1 | L10: 0 | M10: 1 | O10: 1 | P10: 3 | Q10: 1.8 | R10: 2.2 | S10: 3 | T10: 1 | U10: 2.2 | V10: 3 | W10: 2.6 | X10: 1.4 | Y10: 2.6 | Z10: 2.6 | AA10: 3 | AB10: 3 | AC10: 49.5 | AD10: 148.5
A11: 004-PVI-0055 | B11: Radii Contour | C11: Spec | D11: S | E11: 1.5 | F11: 0 | G11: 2 | H11: 0 | I11: 1 | J11: 0 | K11: 1 | L11: 0 | M11: 1 | O11: 1 | P11: 3 | Q11: 1.8 | R11: 2.2 | S11: 3 | T11: 1 | U11: 2.2 | V11: 3 | W11: 2.6 | X11: 1.4 | Y11: 2.6 | Z11: 2.6 | AA11: 3 | AB11: 3 | AC11: 49.5 | AD11: 148.5
A12: 004-PVI-0056 | B12: Global Alignment of Facets and Primary Ship Edges | C12: Spec | D12: S | E12: 1.5 | F12: 200 | G12: 1.4 | H12: =110/200 -> 0.55 | I12: 5 | J12: 0 | K12: 1 | L12: 0 | M12: 1 | O12: 1 | P12: 10.5 | Q12: 1.8 | R12: 2.2 | S12: 3 | T12: 1 | U12: 2.2 | V12: 3 | W12: 2.6 | X12: 1.4 | Y12: 2.6 | Z12: 2.6 | AA12: 3 | AB12: 3 | AC12: 49.5 | AD12: 519.75
A13: 004-PVI-0057 | B13: Butted Shell Plate Offset | C13: Spec | D13: S | E13: 1.5 | F13: 0 | G13: 2 | H13: 0 | I13: 1 | J13: 0 | K13: 1 | L13: 0 | M13: 1 | O13: 1 | P13: 3 | Q13: 1.8 | R13: 2.2 | S13: 3 | T13: 1 | U13: 2.2 | V13: 3 | W13: 2.6 | X13: 1.4 | Y13: 2.6 | Z13: 2.6 | AA13: 3 | AB13: 3 | AC13: 49.5 | AD13: 148.5
A14: 004-PVI-0058 | B14: Butted Shell Plate Fairing | C14: Spec | D14: S | E14: 1.5 | F14: 0 | G14: 2 | H14: 0 | I14: 1 | J14: 0 | K14: 1 | L14: 0 | M14: 1 | O14: 1 | P14: 3 | Q14: 1.8 | R14: 2.2 | S14: 3 | T14: 1 | U14: 2.2 | V14: 3 | W14: 2.6 | X14: 1.4 | Y14: 2.6 | Z14: 2.6 | AA14: 3 | AB14: 3 | AC14: 49.5 | AD14: 148.5
A15: 004-PVI-0059 | B15: PCMS | C15: Spec | D15: S | E15: 1.5 | F15: 0 | G15: 2 | H15: 0 | I15: 1 | J15: 0 | K15: 1 | L15: 0 | M15: 1 | O15: 1 | P15: 3 | Q15: 1.8 | R15: 2.2 | S15: 3 | T15: 1 | U15: 2.2 | V15: 3 | W15: 2.6 | X15: 1.4 | Y15: 2.6 | Z15: 2.6 | AA15: 3 | AB15: 3 | AC15: 49.5 | AD15: 148.5
A16: 004-PVI-0060 | B16: Shaping | C16: Spec | D16: S | E16: 1.5 | F16: 0 | G16: 2 | H16: 0 | I16: 1 | J16: 0 | K16: 1 | L16: 0 | M16: 1 | O16: 1 | P16: 3 | Q16: 1.8 | R16: 2.2 | S16: 3 | T16: 1 | U16: 2.2 | V16: 3 | W16: 2.6 | X16: 1.4 | Y16: 2.6 | Z16: 2.6 | AA16: 3 | AB16: 3 | AC16: 49.5 | AD16: 148.5
A17: 004-PVI-0061 | B17: Edge Straightness 0.2 meter | C17: Spec | D17: S | E17: 1.5 | F17: 400 | G17: 1.3 | H17: =320/400 -> 0.8 | I17: 5 | J17: 0 | K17: 1 | L17: 0 | M17: 1 | O17: 1 | P17: 9.75 | Q17: 1.8 | R17: 2.2 | S17: 3 | T17: 1 | U17: 2.2 | V17: 3 | W17: 2.6 | X17: 1.4 | Y17: 2.6 | Z17: 2.6 | AA17: 3 | AB17: 3 | AC17: 49.5 | AD17: 482.625
A18: 004-PVI-0062 | B18: Edge Straightness 1.0 meter | C18: Spec | D18: S | E18: 1.5 | F18: 0 | G18: 2 | H18: 0 | I18: 1 | J18: 0 | K18: 1 | L18: 0 | M18: 1 | O18: 1 | P18: 3 | Q18: 1.8 | R18: 2.2 | S18: 3 | T18: 1 | U18: 2.2 | V18: 3 | W18: 2.6 | X18: 1.4 | Y18: 2.6 | Z18: 2.6 | AA18: 3 | AB18: 3 | AC18: 49.5 | AD18: 148.5
A19: 004-PVI-0063 | B19: Edge Straightness 10 meter | C19: Spec | D19: S | E19: 1.5 | F19: 0 | G19: 2 | H19: 0 | I19: 1 | J19: 0 | K19: 1 | L19: 0 | M19: 1 | O19: 1 | P19: 3 | Q19: 1.8 | R19: 2.2 | S19: 3 | T19: 1 | U19: 2.2 | V19: 3 | W19: 2.6 | X19: 1.4 | Y19: 2.6 | Z19: 2.6 | AA19: 3 | AB19: 3 | AC19: 49.5 | AD19: 148.5
P21: Prob of Quality Failure | Q21: Probably will occur in time [1.8] | R21: Likely to occur within a short period of time [2.2] | S21: Inevitable [3.0] | T21: Unlikely to occur [1.0] | U21: Likely to occur within a short period of time [2.2] | W21: Likely to occur immediately [2.6] | X21: May occur in time [1.4] | Y21: Likely to occur immediately [2.6] | Z21: Likely to occur immediately [2.6] | AA21: Inevitable [3.0]
C28: Reject
A29: Total | B29: 004-Hull Fairness | C29: 0 | D29: =GetOversight("004-Hull Fairness",19) -> S | E29: =IF($D29="M",2,IF($D29="C",1,IF($D29="P",1.25,IF($D29="S",1.5)))) -> 1.5 | F29: 800 | G29: =VLOOKUP($F29,OBSCheckListWeight,2,TRUE) -> 1.2 | H29: =410/800 -> 0.5125 | I29: =GetRejectProbability("004-Hull", H29) -> 5 | J29: =GetCARCountCL("A","004-Hull Fairness",I29) -> 0 | K29: =GetCARWeight("A",J29) -> 1 | L29: =GetCARCountCL("B","004-Hull Fairness",K29) -> 0 | M29: =GetCARWeight("B",L29) -> 1 | O29: =(K29+M29)/2 -> 1 | P29: =(E29*G29*I29)*O29 -> 9 | Q29: =MAX(Q4:Q19) -> 1.8 | R29: =MAX(R4:R19) -> 2.2 | S29: =MAX(S4:S19) -> 3 | T29: =MAX(T4:T19) -> 1 | U29: =MAX(U4:U19) -> 2.2 | V29: =MAX($Q29,$R29,$S29,$T29,$U29) -> 3 | W29: =MAX(W4:W19) -> 2.6 | X29: =MAX(X4:X19) -> 1.4 | Y29: =MAX(Y4:Y19) -> 2.6 | Z29: =MAX(Z4:Z19) -> 2.6 | AA29: =MAX(AA4:AA19) -> 3 | AB29: =MAX($W29,$X29,$Y29,$Z29,$AA29) -> 3 | AC29: =$V29*$AB29*$W$1 -> 49.5 | AD29: =P29*AC29 -> 445.5
